Workbook

Sheet Diagram
A1: KOLLMORGEN | D1: =Calc!A2 -> AKM12E | H1: =IF(Calc!D2,Calc2!A2,"") ->  | K1: =IF(Calc!B2="max.","Max motor data",Calc!B2 ) -> Servostar 303 | N1: =Calc!C2*1 -> 75 | Y1: Flange Motor 1 (if AKM) | AC1: =CONCATENATE(MID(AC2,1,4),"-",MID(AC2,8,2)) -> AKM1-AN
AC2: =Motor_Mechanic!AF6 -> AKM12E-AN
Z7: Motor | AA7: Einheit
Z9: Lochkreis | AA9: mm | AC9: =SUMIF(Motor_Mechanic!A:A,AC1,Motor_Mechanic!I:I) -> 46
Z10: Zentrierung | AA10: mm | AC10: =SUMIF(Motor_Mechanic!A:A,AC1,Motor_Mechanic!F:F) -> 30
Z11: Welle | AA11: mm | AC11: =CONCATENATE(SUMIF(Motor_Mechanic!A:A,AC1,Motor_Mechanic!L:L),"x",SUMIF(Motor_Mechanic!A:A,AC1,Motor_Mechanic!O:O)) -> 8x25
Z13: Stillstandsmoment | AA13: Nm | AC13: =Calc!G10 -> 0.3
Z14: Stillstandsstrom | AA14: Arms | AC14: =Calc!H10 -> 2.72
Z15: Max. Drehmoment | AA15: Nm | AC15: =Calc!I10 -> 1.08
Z16: Max. Strom | AA16: Arms | AC16: =Calc!D10 -> 10.9
Z17: Nennmoment | AA17: Nm | AC17: =Calc!A142 -> 0.3
Z18: Nenndrehzahl | AA18: rpm | AC18: =Calc!B142 -> 3000
Z19: Leistung | AA19: W | AC19: =(AC17*AC18)/9.55 -> 94.2408377
Z20: Drehmomentkonstante | AC20: =AC13/AC14 -> 0.1102941176
Z21: Rotorträgheit | AA21: Kgcm² | AC21: =SUMIF(Motor!A:A,Calc!A2,Motor!U:U) -> 0.031

Sheet Motor (hidden)
A1: Motortype | B1: Peak Stall Torque [Nm] | C1: Peak Current [A] | D1: Cont Stall Torque [Nm] | E1: Cont. Stall Current [A] | F1: 24VDC | H1: 48VDC | J1: 75VDC | L1: 160VDC | N1: 320VDC | P1: 560VDC | R1: 640VDC | T1: max Speed [1/min] | U1: Inertia [kgcm2] | V1: R [Ohm] | W1: L [mH] | X1: Ke [mV/rpm] | Y1: Poles | AA1: Ist ein SFD Feedback Möglich?
F2: Cont Rate Torque [Nm] | G2: Rated Speed [1/min] | H2: Cont Rate Torque [Nm] | I2: Rated Speed [1/min] | J2: Cont Rate Torque [Nm] | K2: Rated Speed [1/min] | L2: Cont Rate Torque [Nm] | M2: Rated Speed [1/min] | N2: Cont Rate Torque [Nm] | O2: Rated Speed [1/min] | P2: Cont Rate Torque [Nm] | Q2: Rated Speed [1/min] | R2: Cont Rate Torque [Nm] | S2: Rated Speed [1/min]
A9: 6SM27M-4000 | B9: 1.2 | C9: 3.5 | D9: 0.32 | E9: 0.8 | P9: 0.3 | Q9: 4000 | T9: 9000 | U9: 0.08 | V9: 31 | W9: 21 | X9: 25 | Y9: 6 | AA9: Nein
A10: 6SM27LL-4500 | B10: 3.2 | C10: 3.7 | D10: 0.8 | E10: 0.82 | P10: 0.72 | Q10: 4500 | T10: 9000 | U10: 0.14 | V10: 37 | W10: 42 | X10: 59 | Y10: 6 | AA10: Nein
A11: 6SM37S-6000 | B11: 1.8 | C11: 4 | D11: 0.5 | E11: 1 | P11: 0.4 | Q11: 6000 | T11: 9000 | U11: 0.45 | V11: 36 | W11: 32 | X11: 30 | Y11: 6 | AA11: Nein
A12: 6SM37M-6000 | B12: 3.6 | C12: 6.5 | D12: 1 | E12: 1.6 | P12: 0.8 | Q12: 6000 | T12: 9000 | U12: 0.7 | V12: 12.8 | W12: 21 | X12: 38 | Y12: 6 | AA12: Nein
A13: 6SM37L-4000 | B13: 5.4 | C13: 6.4 | D13: 1.5 | E13: 1.6 | P13: 1.2 | Q13: 4000 | T13: 9000 | U13: 1 | V13: 15.5 | W13: 30 | X13: 58 | Y13: 6 | AA13: Nein
A14: 6SM37VL-6000 | B14: 10.8 | C14: 15.2 | D14: 3 | E14: 3.8 | P14: 2 | Q14: 6000 | T14: 9000 | U14: 1.6 | V14: 3.65 | W14: 8 | X14: 48 | Y14: 6 | AA14: Nein
A15: 6SM47L-3000 | B15: 10.6 | C15: 9 | D15: 3 | E15: 2.3 | P15: 2.2 | Q15: 3000 | T15: 6000 | U15: 1.6 | V15: 11 | W15: 25 | X15: 81 | Y15: 6 | AA15: Nein
A16: 6SM57S-3000 | B16: 16.3 | C16: 11 | D16: 4.6 | E16: 2.8 | P16: 3 | Q16: 3000 | T16: 6000 | U16: 3.1 | V16: 6.3 | W16: 35 | X16: 97 | Y16: 6 | AA16: Nein
A17: 6SM57M-3000 | B17: 28.5 | C17: 17 | D17: 8 | E17: 4.3 | P17: 6 | Q17: 3000 | T17: 6000 | U17: 4.5 | V17: 3.9 | W17: 24 | X17: 112 | Y17: 6 | AA17: Nein
A18: 6SM77K-3000 | B18: 39.6 | C18: 24 | D18: 11 | E18: 6 | P18: 8.5 | Q18: 3000 | T18: 6000 | U18: 12 | V18: 2.2 | W18: 18 | X18: 112 | Y18: 6 | AA18: Nein
A19: 6SM77S-3000 | B19: 61.2 | C19: 40 | D19: 17 | E19: 10 | P19: 12 | Q19: 3000 | T19: 6000 | U19: 18 | V19: 1.1 | W19: 8.3 | X19: 103 | Y19: 6 | AA19: Nein
A20: 6SM107K-3000 | B20: 100.2 | C20: 70 | D20: 26 | E20: 16 | P20: 20 | Q20: 3000 | T20: 6000 | U20: 82 | V20: 0.45 | W20: 4.4 | X20: 97 | Y20: 6 | AA20: Nein
A21: 6SM107S-3000 | B21: 120.7 | C21: 85 | D21: 32 | E21: 20 | P21: 23 | Q21: 3000 | T21: 6000 | U21: 104 | V21: 0.37 | W21: 3.6 | X21: 97 | Y21: 6 | AA21: Nein
A22: 6SM45S-3000 | B22: 2.8 | C22: 4.7 | D22: 0.85 | E22: 1.3 | P22: 0.8 | Q22: 3000 | T22: 8000 | U22: 1.5 | V22: 25.4 | W22: 54 | X22: 41.01219331 | Y22: 6 | AA22: Nein
A23: 6SM45M-3000 | B23: 6.5 | C23: 5.6 | D23: 1.7 | E23: 1.3 | P23: 1.6 | Q23: 3000 | T23: 8000 | U23: 2.1 | V23: 34 | W23: 99 | X23: 82.02438662 | Y23: 6 | AA23: Nein
A24: 6SM45L-3000 | B24: 11.5 | C24: 9.6 | D24: 3.2 | E24: 2.4 | P24: 2.9 | Q24: 3000 | T24: 8000 | U24: 3.4 | V24: 11.9 | W24: 47 | X24: 82.02438662 | Y24: 6 | AA24: Nein
A25: 6SM56S-3000 | B25: 14.8 | C25: 12.4 | D25: 3.8 | E25: 2.8 | P25: 3.6 | Q25: 3000 | T25: 8000 | U25: 5.2 | V25: 9.4 | W25: 54 | X25: 80.61017306 | Y25: 6 | AA25: Nein
A26: 6SM56M-3000 | B26: 25.6 | C26: 19.6 | D26: 7 | E26: 4.8 | P26: 6.4 | Q26: 3000 | T26: 8000 | U26: 10 | V26: 4 | W26: 30 | X26: 87.68124087 | Y26: 6 | AA26: Nein
A27: 6SM56L-3000 | B27: 34 | C27: 28.3 | D27: 10 | E27: 7.6 | P27: 8.4 | Q27: 3000 | T27: 8000 | U27: 15 | V27: 1.8 | W27: 15.8 | X27: 79.90306627 | Y27: 6 | AA27: Nein
A28: 6SM71K-3000 | B28: 37.8 | C28: 32 | D28: 10.5 | E28: 8 | P28: 9.5 | Q28: 3000 | T28: 6000 | U28: 20 | V28: 1.65 | W28: 19.6 | X28: 79.19595949 | Y28: 6 | AA28: Nein
A29: 6SM71S-3000 | B29: 54.4 | C29: 44 | D29: 16.5 | E29: 12.3 | P29: 13.4 | Q29: 3000 | T29: 6000 | U29: 31 | V29: 0.8 | W29: 12 | X29: 81.31727984 | Y29: 6 | AA29: Nein
A30: 6SM71M-3000 | B30: 67.4 | C30: 51 | D30: 22 | E30: 15.6 | P30: 16.3 | Q30: 3000 | T30: 6000 | U30: 42 | V30: 0.57 | W30: 9 | X30: 85.55992052 | Y30: 6 | AA30: Nein
A31: 6SM100K-3000 | B31: 87 | C31: 72 | D31: 25 | E31: 18.8 | P31: 19.9 | Q31: 3000 | T31: 6000 | U31: 74 | V31: 0.46 | W31: 10.5 | X31: 80.61017306 | Y31: 6 | AA31: Nein
A32: 6SM100S-3000 | B32: 135.4 | C32: 113 | D32: 36 | E32: 26.7 | P32: 24.6 | Q32: 3000 | T32: 6000 | U32: 108 | V32: 0.22 | W32: 7 | X32: 82.02438662 | Y32: 6 | AA32: Nein
A33: 6SM100M-3000 | B33: 174.6 | C33: 150 | D33: 46 | E33: 35 | P33: 27.1 | Q33: 3000 | T33: 6000 | U33: 141 | V33: 0.16 | W33: 5 | X33: 79.90306627 | Y33: 6 | AA33: Nein
A34: 6SM100L-3000 | B34: 216.4 | C34: 180 | D34: 57 | E34: 42 | P34: 28 | Q34: 3000 | T34: 6000 | U34: 175 | V34: 0.12 | W34: 4 | X34: 81.31727984 | Y34: 6 | AA34: Nein
A35: AKM11B | B35: 0.61 | C35: 4.6 | D35: 0.18 | E35: 1.16 | L35: 0.18 | M35: 4000 | N35: 0.17 | O35: 8000 | T35: 8000 | U35: 0.017 | V35: 20.2 | W35: 12.5 | X35: 10.2 | Y35: 6 | AA35: Ja
A36: AKM11C | B36: 0.61 | C36: 5.8 | D36: 0.19 | E36: 1.45 | L36: 0.18 | M36: 6000 | T36: 8000 | U36: 0.017 | V36: 13.1 | W36: 8.3 | X36: 8.3 | Y36: 6 | AA36: Ja
A37: AKM11E | B37: 0.61 | C37: 11.6 | D37: 0.19 | E37: 2.91 | J37: 0.18 | K37: 6000 | T37: 8000 | U37: 0.017 | V37: 3.3 | W37: 2.04 | X37: 4.1 | Y37: 6 | AA37: Ja
A38: AKM11F | B38: 0.59 | C38: 15.5 | D38: 0.18 | E38: 3.87 | F38: 0.18 | G38: 1000 | H38: 0.17 | I38: 5000 | J38: 0.16 | K38: 8000 | T38: 8000 | U38: 0.017 | V38: 1.8 | W38: 1.04 | X38: 2.94 | Y38: 6 | AA38: Ja
A39: AKM12C | B39: 1.08 | C39: 6 | D39: 0.31 | E39: 1.5 | L39: 0.3 | M39: 4000 | N39: 0.28 | O39: 8000 | T39: 8000 | U39: 0.031 | V39: 12.4 | W39: 9.1 | X39: 13.3 | Y39: 6 | AA39: Ja
A40: AKM12E | B40: 1.08 | C40: 10.9 | D40: 0.3 | E40: 2.72 | H40: 0.3 | I40: 1500 | J40: 0.3 | K40: 3000 | L40: 0.27 | M40: 8000 | T40: 8000 | U40: 0.031 | V40: 3.9 | W40: 2.7 | X40: 7.2 | Y40: 6 | AA40: Ja
A41: AKM13C | B41: 1.16 | C41: 5.9 | D41: 0.41 | E41: 1.48 | N41: 0.36 | O41: 8000 | T41: 8000 | U41: 0.045 | V41: 13.5 | W41: 10.3 | X41: 17.9 | Y41: 6 | AA41: Ja
A42: AKM13D | B42: 1.44 | C42: 9.6 | D42: 0.4 | E42: 2.4 | J42: 0.4 | K42: 2000 | L42: 0.36 | M42: 7000 | T42: 8000 | U42: 0.045 | V42: 5.21 | W42: 3.8 | X42: 10.9 | Y42: 6 | AA42: Ja
A43: AKM21C | B43: 1.47 | C43: 6.3 | D43: 0.45 | E43: 1.5 | L43: 0.45 | M43: 2500 | N43: 0.39 | O43: 8000 | T43: 8000 | U43: 0.107 | V43: 13 | W43: 19 | X43: 19.5 | Y43: 6 | AA43: Ja
A44: AKM21E | B44: 1.49 | C44: 12.4 | D44: 0.48 | E44: 3 | J44: 0.48 | K44: 2000 | L44: 0.41 | M44: 7000 | T44: 8000 | U44: 0.107 | V44: 3.42 | W44: 5.2 | X44: 10.2 | Y44: 6 | AA44: Ja
A45: AKM21G | B45: 1.51 | C45: 19.5 | D45: 0.5 | E45: 4.87 | J45: 0.46 | K45: 4000 | T45: 8000 | U45: 0.107 | V45: 1.44 | W45: 2.18 | X45: 6.6 | Y45: 6 | AA45: Ja
A46: AKM21J | B46: 1.38 | C46: 28.5 | D46: 0.43 | E46: 7.13 | F46: 0.42 | G46: 1200 | H46: 0.39 | I46: 4500 | J46: 0.35 | K46: 8000 | T46: 8000 | U46: 0.11 | V46: 0.68 | W46: 0.8 | X46: 3.9 | Y46: 6 | AA46: Ja
A47: AKM22C | B47: 2.73 | C47: 5.6 | D47: 0.84 | E47: 1.39 | L47: 0.83 | M47: 1000 | N47: 0.78 | O47: 3500 | P47: 0.68 | Q47: 8000 | R47: 0.68 | S47: 8000 | T47: 8000 | U47: 0.161 | V47: 19.4 | W47: 35.5 | X47: 39 | Y47: 6 | AA47: Ja
A48: AKM22E | B48: 2.76 | C48: 11 | D48: 0.87 | E48: 2.73 | J48: 0.85 | K48: 1000 | L48: 0.81 | M48: 3500 | N48: 0.7 | O48: 8000 | T48: 8000 | U48: 0.161 | V48: 5.09 | W48: 9.7 | X48: 22.4 | Y48: 6 | AA48: Ja
A49: AKM22G | B49: 2.79 | C49: 19.3 | D49: 0.88 | E49: 4.82 | J49: 0.84 | K49: 2500 | L49: 0.74 | M49: 7000 | T49: 8000 | U49: 0.161 | V49: 1.69 | W49: 3.19 | X49: 11.7 | Y49: 6 | AA49: Ja
A50: AKM22H | B50: 2.8 | C50: 21.6 | D50: 0.88 | E50: 5.41 | H50: 0.85 | I50: 1500 | J50: 0.82 | K50: 3000 | L50: 0.7 | M50: 8000 | T50: 8000 | U50: 0.16 | V50: 1.4 | W50: 2.57 | X50: 10.51 | Y50: 6 | AA50: Ja
A51: AKM23C | B51: 3.77 | C51: 5.6 | D51: 1.13 | E51: 1.41 | L51: 1.11 | M51: 1000 | N51: 1.08 | O51: 2500 | P51: 0.99 | Q51: 5500 | R51: 0.95 | S51: 7000 | T51: 8000 | U51: 0.216 | V51: 20.3 | W51: 40.7 | X51: 51.8 | Y51: 6 | AA51: Ja
A52: AKM23D | B52: 3.84 | C52: 8.8 | D52: 1.16 | E52: 2.19 | L52: 1.12 | M52: 1500 | N52: 1.03 | O52: 5000 | P52: 0.92 | Q52: 8000 | R52: 0.92 | S52: 8000 | T52: 8000 | U52: 0.216 | V52: 8.36 | W52: 17.3 | X52: 33.8 | Y52: 6 | AA52: Ja
A53: AKM23E | B53: 3.88 | C53: 11.3 | D53: 1.16 | E53: 2.78 | L53: 1.1 | M53: 2500 | N53: 0.98 | O53: 6500 | T53: 8000 | U53: 0.22 | V53: 5.44 | W53: 11.1 | X53: 27 | Y53: 6 | AA53: Ja
A54: AKM23F | B54: 3.88 | C54: 17.2 | D54: 1.18 | E54: 4.31 | J54: 1.15 | K54: 1500 | L54: 1.07 | M54: 4500 | N54: 0.94 | O54: 8000 | T54: 8000 | U54: 0.216 | V54: 2.23 | W54: 4.68 | X54: 17.6 | Y54: 6 | AA54: Ja
A55: AKM24C | B55: 4.67 | C55: 5.7 | D55: 1.38 | E55: 1.42 | N55: 1.32 | O55: 2000 | P55: 1.25 | Q55: 4500 | R55: 1.22 | S55: 5500 | T55: 8000 | U55: 0.27 | V55: 20.4 | W55: 43.8 | X55: 62.4 | Y55: 6 | AA55: Ja
A56: AKM24D | B56: 4.76 | C56: 8.8 | D56: 1.41 | E56: 2.21 | L56: 1.36 | M56: 1500 | N56: 1.29 | O56: 4000 | P56: 1.11 | Q56: 8000 | R56: 1.11 | S56: 8000 | T56: 8000 | U56: 0.27 | V56: 8.4 | W56: 18.7 | X56: 40.8 | Y56: 6 | AA56: Ja
A57: AKM24E | B57: 4.76 | C57: 9.5 | D57: 1.4 | E57: 2.79 | L57: 1.34 | M57: 2000 | N57: 1.24 | O57: 5500 | T57: 8000 | U57: 0.27 | V57: 5.44 | W57: 11.8 | X57: 32.4 | Y57: 6 | AA57: Ja
A58: AKM24F | B58: 4.82 | C58: 15.6 | D58: 1.42 | E58: 3.89 | J58: 1.39 | K58: 1000 | L58: 1.33 | M58: 3000 | N58: 1.12 | O58: 8000 | T58: 8000 | U58: 0.27 | V58: 2.77 | W58: 6.16 | X58: 23.4 | Y58: 6 | AA58: Ja
A59: AKM31C | B59: 3.88 | C59: 5.5 | D59: 1.15 | E59: 1.37 | N59: 1.12 | O59: 2500 | P59: 1 | Q59: 5000 | R59: 0.91 | S59: 6000 | T59: 8000 | U59: 0.33 | V59: 21.4 | W59: 37.5 | X59: 54.5 | Y59: 8 | AA59: Ja
A60: AKM31E | B60: 4 | C60: 12 | D60: 1.2 | E60: 2.99 | J60: 1.19 | K60: 750 | L60: 1.17 | M60: 2500 | N60: 0.95 | O60: 6000 | T60: 8000 | U60: 0.33 | V60: 4.58 | W60: 8.6 | X60: 26.1 | Y60: 8 | AA60: Ja
A61: AKM31H | B61: 4.06 | C61: 23.4 | D61: 1.23 | E61: 5.85 | J61: 1.2 | K61: 2000 | L61: 0.97 | M61: 6000 | T61: 8000 | U61: 0.33 | V61: 1.25 | W61: 2.4 | X61: 13.7 | Y61: 8 | AA61: Ja
A62: AKM31K | B62: 4.12 | C62: 36.4 | D62: 1.25 | E62: 9.1 | H62: 1.23 | I62: 2000 | J62: 1.19 | K62: 3500 | L62: 0.76 | M62: 8000 | T62: 8000 | U62: 0.33 | V62: 0.58 | W62: 1.02 | X62: 8.98 | Y62: 8 | AA62: Ja
A63: AKM32C | B63: 6.92 | C63: 5.8 | D63: 2 | E63: 1.44 | N63: 1.95 | O63: 1500 | P63: 1.86 | Q63: 3000 | R63: 1.83 | S63: 3500 | T63: 8000 | U63: 0.59 | V63: 23 | W63: 46.5 | X63: 89.8 | Y63: 8 | AA63: Ja
A64: AKM32D | B64: 7.1 | C64: 8.9 | D64: 2.04 | E64: 2.23 | L64: 2 | M64: 1000 | N64: 1.93 | O64: 2500 | P64: 1.65 | Q64: 5500 | R64: 1.58 | S64: 6000 | T64: 8000 | U64: 0.59 | V64: 9.57 | W64: 20.1 | X64: 59 | Y64: 8 | AA64: Ja
A65: AKM32E | B65: 7.11 | C65: 11.3 | D65: 2.04 | E65: 2.82 | N65: 1.87 | O65: 3500 | P65: 1.41 | Q65: 7000 | R65: 1.22 | S65: 8000 | T65: 8000 | U65: 0.59 | V65: 6.3 | W65: 12.8 | X65: 47.1 | Y65: 8 | AA65: Ja
A66: AKM32H | B66: 7.26 | C66: 22 | D66: 2.1 | E66: 5.5 | J66: 2.06 | K66: 1200 | L66: 1.96 | M66: 3000 | N66: 1.45 | O66: 7000 | T66: 8000 | U66: 0.59 | V66: 1.64 | W66: 3.55 | X66: 24.8 | Y66: 8 | AA66: Ja
A67: AKM33C | B67: 9.76 | C67: 5.9 | D67: 2.71 | E67: 1.47 | N67: 2.64 | O67: 1000 | P67: 2.54 | Q67: 2000 | R67: 2.5 | S67: 2500 | T67: 8000 | U67: 0.85 | V67: 25.4 | W67: 53.6 | X67: 120 | Y67: 8 | AA67: Ja
A68: AKM33E | B68: 9.96 | C68: 10.3 | D68: 2.79 | E68: 2.58 | N68: 2.62 | O68: 2000 | P68: 2.34 | Q68: 4500 | R68: 2.27 | S68: 5000 | T68: 8000 | U68: 0.85 | V68: 8.36 | W68: 18.5 | X68: 70.6 | Y68: 8 | AA68: Ja
A69: AKM33H | B69: 10.22 | C69: 22.5 | D69: 2.88 | E69: 5.62 | J69: 2.82 | K69: 800 | L69: 2.66 | M69: 2500 | N69: 2.27 | O69: 5500 | T69: 8000 | U69: 0.85 | V69: 1.82 | W69: 4.1 | X69: 33.4 | Y69: 8 | AA69: Ja
A70: AKM41C | B70: 6.12 | C70: 5.8 | D70: 1.95 | E70: 1.46 | N70: 1.88 | O70: 1200 | P70: 1.77 | Q70: 3000 | R70: 1.74 | S70: 3500 | T70: 6000 | U70: 0.81 | V70: 21.7 | W70: 66.1 | X70: 86.3 | Y70: 10 | AA70: Ja
A71: AKM41E | B71: 6.28 | C71: 11.4 | D71: 2.02 | E71: 2.85 | L71: 1.94 | M71: 1200 | N71: 1.82 | O71: 3000 | P71: 1.58 | Q71: 6000 | R71: 1.58 | S71: 6000 | T71: 6000 | U71: 0.81 | V71: 5.7 | W71: 18.4 | X71: 45.6 | Y71: 10 | AA71: Ja
A72: AKM41H | B72: 6.36 | C72: 22.4 | D72: 2.06 | E72: 5.6 | J72: 1.99 | K72: 1000 | L72: 1.86 | M72: 3000 | N72: 1.62 | O72: 6000 | T72: 6000 | U72: 0.81 | V72: 1.51 | W72: 5 | X72: 23.7 | Y72: 10 | AA72: Ja
A73: AKM42C | B73: 11.3 | C73: 5.6 | D73: 3.35 | E73: 1.4 | P73: 3.1 | Q73: 1500 | R73: 3.02 | S73: 2000 | T73: 6000 | U73: 1.45 | V73: 27.52 | W73: 97.4 | X73: 154 | Y73: 10 | AA73: Ja
A74: AKM42E | B74: 11.3 | C74: 11 | D74: 3.42 | E74: 2.74 | N74: 3.12 | O74: 1800 | P74: 2.81 | Q74: 3500 | R74: 2.72 | S74: 4000 | T74: 6000 | U74: 1.45 | V74: 7.22 | W74: 26.8 | X74: 80.9 | Y74: 10 | AA74: Ja
A75: AKM42G | B75: 11.5 | C75: 19.2 | D75: 3.53 | E75: 4.8 | N75: 2.9 | O75: 3500 | P75: 2.35 | Q75: 6000 | R75: 2.35 | S75: 6000 | T75: 6000 | U75: 1.45 | V75: 2.38 | W75: 9.2 | X75: 47.5 | Y75: 10 | AA75: Ja
A76: AKM42H | B76: 11.5 | C76: 24 | D76: 3.54 | E76: 6 | L76: 3.2 | M76: 2000 | N76: 2.72 | O76: 4500 | T76: 6000 | U76: 1.5 | V76: 1.65 | W76: 6 | X76: 38.3 | Y76: 10 | AA76: Ja
A77: AKM42J | B77: 11.6 | C77: 33.6 | D77: 3.56 | E77: 8.4 | L77: 3.03 | M77: 3000 | N77: 2.38 | O77: 6000 | T77: 6000 | U77: 1.45 | V77: 0.8 | W77: 3.1 | X77: 27.5 | Y77: 10 | AA77: Ja
A78: AKM43E | B78: 15.9 | C78: 11 | D78: 4.7 | E78: 2.76 | N78: 4.24 | O78: 1500 | P78: 3.92 | Q78: 2500 | R78: 3.76 | S78: 3000 | T78: 6000 | U78: 2.09 | V78: 8.04 | W78: 32.6 | X78: 111 | Y78: 10 | AA78: Ja
A79: AKM43G | B79: 16.1 | C79: 19.5 | D79: 4.8 | E79: 4.87 | N79: 4 | O79: 2500 | P79: 3.01 | Q79: 5000 | R79: 2.57 | S79: 6000 | T79: 6000 | U79: 2.09 | V79: 2.61 | W79: 10.8 | X79: 63.9 | Y79: 10 | AA79: Ja
A80: AKM43H | B80: 16.1 | C80: 22 | D80: 4.82 | E80: 5.4 | N80: 3.86 | O80: 3000 | P80: 2.58 | Q80: 6000 | T80: 6000 | U80: 2.1 | V80: 2.1 | W80: 6.8 | X80: 57.4 | Y80: 10 | AA80: Ja
A81: AKM43K | B81: 16.4 | C81: 38.4 | D81: 4.9 | E81: 9.6 | L81: 4.08 | M81: 2500 | N81: 2.62 | O81: 6000 | T81: 6000 | U81: 2.09 | V81: 0.7 | W81: 2.9 | X81: 33.2 | Y81: 10 | AA81: Ja
A82: AKM43L | B82: 16.4 | C82: 47.3 | D82: 4.73 | E82: 11.2 | L82: 3.78 | M82: 3000 | N82: 2.53 | O82: 6000 | T82: 6000 | U82: 2.1 | V82: 0.57 | W82: 2 | X82: 27.5 | Y82: 10 | AA82: Ja
A83: AKM44E | B83: 19.9 | C83: 11.4 | D83: 5.76 | E83: 2.85 | N83: 5.2 | O83: 1200 | P83: 4.8 | Q83: 2000 | R83: 4.56 | S83: 2500 | T83: 6000 | U83: 2.73 | V83: 8.08 | W83: 33.9 | X83: 132 | Y83: 10 | AA83: Ja
A84: AKM44G | B84: 20.3 | C84: 20 | D84: 5.88 | E84: 5 | N84: 4.9 | O84: 2000 | P84: 3.76 | Q84: 4000 | R84: 3.19 | S84: 5000 | T84: 6000 | U84: 2.73 | V84: 2.65 | W84: 11.5 | X84: 76.6 | Y84: 10 | AA84: Ja
A85: AKM44H | B85: 20.3 | C85: 23.5 | D85: 5.89 | E85: 5.6 | N85: 4.66 | O85: 2500 | P85: 3.19 | Q85: 5000 | R85: 2.7 | S85: 6000 | T85: 6000 | U85: 2.7 | V85: 2.23 | W85: 9.1 | X85: 68 | Y85: 10 | AA85: Ja
A86: AKM44J | B86: 20.4 | C86: 35.2 | D86: 6 | E86: 8.8 | L86: 5 | M86: 2000 | N86: 3.84 | O86: 4000 | P86: 2.75 | Q86: 6000 | R86: 2.75 | S86: 6000 | T86: 6000 | U86: 2.73 | V86: 0.88 | W86: 3.8 | X86: 44.2 | Y86: 10 | AA86: Ja
A87: AKM44K | B87: 20.4 | C87: 42.7 | D87: 5.88 | E87: 10.1 | L87: 4.9 | M87: 2000 | N87: 3.18 | O87: 5000 | T87: 6000 | U87: 2.7 | V87: 0.68 | W87: 2.8 | X87: 37.8 | Y87: 10 | AA87: Ja
A88: AKM51E | B88: 11.6 | C88: 8.2 | D88: 4.7 | E88: 2.75 | N88: 4.41 | O88: 1200 | P88: 3.98 | Q88: 2500 | R88: 3.8 | S88: 3000 | T88: 6000 | U88: 3.42 | V88: 8.47 | W88: 36.6 | X88: 110 | Y88: 10 | AA88: Ja
A89: AKM51G | B89: 11.7 | C89: 14.5 | D89: 4.75 | E89: 4.84 | N89: 4.03 | O89: 2500 | P89: 2.62 | Q89: 5000 | R89: 1.94 | S89: 6000 | T89: 6000 | U89: 3.42 | V89: 2.75 | W89: 12.1 | X89: 63.6 | Y89: 10 | AA89: Ja
A90: AKM51H | B90: 11.7 | C90: 18 | D90: 4.79 | E90: 6 | N90: 3.87 | O90: 3000 | P90: 1.95 | Q90: 6000 | R90: 1.95 | S90: 6000 | T90: 6000 | U90: 3.4 | V90: 1.97 | W90: 7.9 | X90: 51.3 | Y90: 10 | AA90: Ja
A91: AKM51I | B91: 11.8 | C91: 22.5 | D91: 4.83 | E91: 7.5 | L91: 4.35 | M91: 1750 | N91: 3.35 | O91: 4000 | P91: 1.97 | Q91: 6000 | R91: 1.97 | S91: 6000 | T91: 6000 | U91: 3.4 | V91: 1.3 | W91: 5.15 | X91: 41.4 | Y91: 10 | AA91: Ja
A92: AKM51K | B92: 11.9 | C92: 28.2 | D92: 4.9 | E92: 9.4 | L92: 4.15 | M92: 2500 | N92: 2.35 | O92: 5500 | T92: 6000 | U92: 3.42 | V92: 0.75 | W92: 3.4 | X92: 33.5 | Y92: 10 | AA92: Ja
A93: AKM51L | B93: 11.9 | C93: 35 | D93: 4.89 | E93: 11.9 | L93: 3.95 | M93: 3000 | N93: 2 | O93: 6000 | T93: 6000 | U93: 3.4 | V93: 0.56 | W93: 2.1 | X93: 26.6 | Y93: 10 | AA93: Ja
A94: AKM52E | B94: 21.3 | C94: 9 | D94: 8.34 | E94: 2.99 | P94: 7.61 | Q94: 1500 | R94: 7.28 | S94: 2000 | T94: 6000 | U94: 6.22 | V94: 8.59 | W94: 44.7 | X94: 179 | Y94: 10 | AA94: Ja
A95: AKM52G | B95: 21.5 | C95: 14.2 | D95: 8.43 | E95: 4.72 | N95: 7.69 | O95: 1500 | P95: 7.06 | Q95: 2500 | R95: 6.66 | S95: 3000 | T95: 6000 | U95: 6.22 | V95: 3.47 | W95: 18.5 | X95: 115 | Y95: 10 | AA95: Ja
A96: AKM52H | B96: 21.6 | C96: 17.7 | D96: 8.48 | E96: 5.9 | N96: 7.53 | O96: 1800 | P96: 6.26 | Q96: 3500 | R96: 5.77 | S96: 4000 | T96: 6000 | U96: 6.2 | V96: 2.35 | W96: 11.9 | X96: 92.7 | Y96: 10 | AA96: Ja
A97: AKM52I | B97: 21.6 | C97: 22.2 | D97: 8.53 | E97: 7.4 | N97: 5.79 | O97: 2250 | P97: 5.16 | Q97: 4500 | R97: 4.51 | S97: 5000 | T97: 6000 | U97: 6.2 | V97: 1.57 | W97: 7.8 | X97: 74.9 | Y97: 10 | AA97: Ja
A98: AKM52K | B98: 21.9 | C98: 27.9 | D98: 8.6 | E98: 9.3 | N98: 6.8 | O98: 3000 | P98: 3.9 | Q98: 5500 | R98: 3.25 | S98: 6000 | T98: 6000 | U98: 6.22 | V98: 0.93 | W98: 5 | X98: 60.1 | Y98: 10 | AA98: Ja
A99: AKM52L | B99: 21.9 | C99: 35.7 | D99: 8.67 | E99: 11.6 | N99: 6.4 | O99: 3500 | P99: 3.27 | Q99: 6000 | R99: 3.27 | S99: 6000 | T99: 6000 | U99: 6.2 | V99: 0.61 | W99: 3.24 | X99: 48.3 | Y99: 10 | AA99: Ja
A100: AKM52M | B100: 21.9 | C100: 39.4 | D100: 8.6 | E100: 13.1 | N100: 5.2 | O100: 4500 | T100: 6000 | U100: 6.22 | V100: 0.48 | W100: 2.5 | X100: 42.4 | Y100: 10 | AA100: Ja
A101: AKM53G | B101: 29.7 | C101: 14.3 | D101: 11.4 | E101: 4.77 | N101: 10.7 | O101: 1000 | P101: 9.85 | Q101: 2000 | R101: 9.5 | S101: 2400 | T101: 6000 | U101: 9.12 | V101: 3.75 | W101: 21.3 | X101: 154 | Y101: 10 | AA101: Ja
A102: AKM53H | B102: 30 | C102: 19.8 | D102: 11.51 | E102: 6.6 | P102: 8.83 | Q102: 3000 | R102: 8.23 | S102: 3500 | T102: 6000 | U102: 9.1 | V102: 2.1 | W102: 11.4 | X102: 112.4 | Y102: 10 | AA102: Ja
A103: AKM53I | B103: 30 | C103: 22.2 | D103: 11.58 | E103: 7.4 | N103: 10.28 | O103: 1750 | P103: 8.58 | Q103: 3250 | R103: 7.63 | S103: 4000 | T103: 6000 | U103: 9.1 | V103: 1.66 | W103: 9.11 | X103: 100.6 | Y103: 10 | AA103: Ja
A104: AKM53K | B104: 30.3 | C104: 28.2 | D104: 11.6 | E104: 9.4 | N104: 10.1 | O104: 2000 | P104: 7.65 | Q104: 4000 | R104: 6.85 | S104: 4500 | T104: 6000 | U104: 9.12 | V104: 1 | W104: 5.7 | X104: 79.8 | Y104: 10 | AA104: Ja
A105: AKM53L | B105: 30.3 | C105: 37.6 | D105: 11.6 | E105: 11.8 | N105: 8.9 | O105: 3000 | P105: 5.06 | Q105: 5500 | R105: 4.05 | S105: 6000 | T105: 6000 | U105: 9.1 | V105: 0.69 | W105: 3.64 | X105: 63.6 | Y105: 10 | AA105: Ja
A106: AKM53M | B106: 29.7 | C106: 40.2 | D106: 11.4 | E106: 13.4 | N106: 8.72 | O106: 3000 | T106: 6000 | U106: 9.12 | V106: 0.51 | W106: 2.7 | X106: 54.7 | Y106: 10 | AA106: Ja
A107: AKM53P | B107: 29.8 | C107: 57.4 | D107: 11.4 | E107: 19.1 | N107: 5.88 | O107: 5000 | T107: 6000 | U107: 9.12 | V107: 0.27 | W107: 1.3 | X107: 38.4 | Y107: 10 | AA107: Ja
A108: AKM53Q | B108: 29.8 | C108: 63.3 | D108: 11.57 | E108: 21.1 | L108: 9.58 | M108: 2500 | N108: 4.99 | O108: 5500 | T108: 6000 | U108: 9.1 | V108: 0.25 | W108: 1.13 | X108: 35.5 | Y108: 10 | AA108: Ja
A109: AKM54G | B109: 38 | C109: 15 | D109: 14.3 | E109: 4.98 | P109: 12.9 | Q109: 1500 | R109: 12.3 | S109: 2000 | T109: 6000 | U109: 11.9 | V109: 3.8 | W109: 22.9 | X109: 185 | Y109: 10 | AA109: Ja
A110: AKM54H | B110: 37.5 | C110: 16.5 | D110: 14.19 | E110: 5.5 | N110: 13.35 | O110: 1000 | P110: 12.6 | Q110: 1800 | R110: 12.22 | S110: 2000 | T110: 6000 | U110: 12 | V110: 3.2 | W110: 18.3 | X110: 165.6 | Y110: 10 | AA110: Ja
A111: AKM54I | B111: 38 | C111: 23.1 | D111: 14.42 | E111: 7.7 | N111: 13.07 | O111: 1500 | P111: 11.71 | Q111: 2500 | R111: 10.81 | S111: 3000 | T111: 6000 | U111: 12 | V111: 1.66 | W111: 9.84 | X111: 120.3 | Y111: 10 | AA111: Ja
A112: AKM54K | B112: 38.4 | C112: 29.2 | D112: 14.4 | E112: 9.7 | N112: 12.7 | O112: 1800 | P112: 10.1 | Q112: 3500 | R112: 9.25 | S112: 4000 | T112: 8000 | U112: 11.9 | V112: 1.02 | W112: 6.2 | X112: 96.6 | Y112: 10 | AA112: Ja
A113: AKM54L | B113: 37.5 | C113: 37.5 | D113: 14.1 | E113: 12.5 | N113: 11.5 | O113: 2500 | P113: 8.13 | Q113: 4500 | T113: 6000 | U113: 11.9 | V113: 0.63 | W113: 3.5 | X113: 72.9 | Y113: 10 | AA113: Ja
A114: AKM54N | B114: 37.6 | C114: 53.4 | D114: 14.1 | E114: 17.8 | N114: 9.85 | O114: 3500 | T114: 8000 | U114: 11.9 | V114: 0.33 | W114: 1.8 | X114: 51.3 | Y114: 10 | AA114: Ja
A115: AKM54P | B115: 38 | C115: 58.8 | D115: 14.36 | E115: 19.6 | N115: 9.23 | O115: 4000 | T115: 6000 | U115: 12 | V115: 0.3 | W115: 1.5 | X115: 47.3 | Y115: 10 | AA115: Ja
A116: AKM62G | B116: 29.7 | C116: 14.7 | D116: 11.9 | E116: 4.85 | P116: 10.7 | Q116: 1800 | R116: 10.2 | S116: 2000 | T116: 6000 | U116: 16.9 | V116: 3.94 | W116: 31.7 | X116: 159 | Y116: 10 | AA116: Ja
A117: AKM62H | B117: 29.7 | C117: 16.4 | D117: 11.9 | E117: 5.4 | N117: 11.2 | O117: 1000 | P117: 10.2 | Q117: 2000 | R117: 9.9 | S117: 2400 | T117: 6000 | U117: 17 | V117: 3.3 | W117: 25.4 | X117: 142.1 | Y117: 10 | AA117: Ja
A118: AKM62I | B118: 29.9 | C118: 22.8 | D118: 12.1 | E118: 7.6 | N118: 10.8 | O118: 1500 | P118: 9.4 | Q118: 3000 | R118: 8.9 | S118: 3500 | T118: 6000 | U118: 17 | V118: 1.75 | W118: 13.4 | X118: 103.2 | Y118: 10 | AA118: Ja
A119: AKM62K | B119: 30.2 | C119: 28.8 | D119: 12.2 | E119: 9.6 | N119: 10.4 | O119: 2000 | P119: 9.01 | Q119: 3500 | R119: 8.02 | S119: 4500 | T119: 6000 | U119: 16.9 | V119: 1.05 | W119: 8.5 | X119: 82.1 | Y119: 10 | AA119: Ja
A120: AKM62L | B120: 30.2 | C120: 36 | D120: 12.2 | E120: 12 | N120: 10 | O120: 2500 | P120: 7.42 | Q120: 5000 | R120: 5.74 | S120: 6000 | T120: 6000 | U120: 17 | V120: 0.74 | W120: 5.4 | X120: 65.5 | Y120: 10 | AA120: Ja
A121: AKM62M | B121: 30.2 | C121: 40.3 | D121: 12.2 | E121: 13.4 | N121: 9.5 | O121: 3000 | P121: 5.74 | Q121: 6000 | R121: 5.74 | S121: 6000 | T121: 6000 | U121: 16.9 | V121: 0.55 | W121: 4.4 | X121: 58.8 | Y121: 10 | AA121: Ja
A122: AKM62P | B122: 30.3 | C122: 56.4 | D122: 12.3 | E122: 18.8 | N122: 8.1 | O122: 4500 | T122: 6000 | U122: 16.9 | V122: 0.3 | W122: 2.2 | X122: 42.2 | Y122: 10 | AA122: Ja
A123: AKM62Q | B123: 30.3 | C123: 67 | D123: 12 | E123: 21.8 | N123: 6.5 | O123: 5500 | T123: 6000 | U123: 17 | V123: 0.27 | W123: 1.6 | X123: 35.5 | Y123: 10 | AA123: Ja
A124: AKM63G | B124: 42.1 | C124: 13.5 | D124: 16.5 | E124: 4.48 | P124: 15.3 | Q124: 1200 | R124: 14.6 | S124: 1500 | T124: 6000 | U124: 24.2 | V124: 5.16 | W124: 43.5 | X124: 238 | Y124: 10 | AA124: Ja
A125: AKM63H | B125: 42.2 | C125: 17.5 | D125: 16.6 | E125: 5.6 | P125: 14.6 | Q125: 1500 | R125: 14.2 | S125: 1800 | T125: 6000 | U125: 24 | V125: 3.43 | W125: 28.1 | X125: 191.5 | Y125: 10 | AA125: Ja
A126: AKM63I | B126: 42.2 | C126: 24.2 | D126: 16.8 | E126: 7.9 | N126: 15.3 | O126: 1200 | P126: 14.1 | Q126: 2000 | R126: 13.5 | S126: 2500 | T126: 6000 | U126: 24 | V126: 1.5 | W126: 14.6 | X126: 138.2 | Y126: 10 | AA126: Ja
A127: AKM63K | B127: 42.6 | C127: 29.7 | D127: 16.8 | E127: 9.9 | N127: 14.9 | O127: 1500 | P127: 12.9 | Q127: 3000 | R127: 12 | S127: 3500 | T127: 6000 | U127: 24.2 | V127: 1.09 | W127: 9.3 | X127: 110 | Y127: 10 | AA127: Ja
A128: AKM63L | B128: 42.6 | C128: 34.3 | D128: 16.8 | E128: 11.1 | N128: 14.4 | O128: 1800 | P128: 12.9 | Q128: 3000 | R128: 12 | S128: 3500 | T128: 6000 | U128: 24 | V128: 0.94 | W128: 7.4 | X128: 98.2 | Y128: 10 | AA128: Ja
A129: AKM63M | B129: 43 | C129: 41.4 | D129: 17 | E129: 13.8 | N129: 14.3 | O129: 2000 | P129: 11.3 | Q129: 4000 | R129: 10.5 | S129: 4500 | T129: 6000 | U129: 24.2 | V129: 0.58 | W129: 4.9 | X129: 79.9 | Y129: 10 | AA129: Ja
A130: AKM63N | B130: 43 | C130: 52.2 | D130: 17 | E130: 17.4 | N130: 13 | O130: 3000 | P130: 9.6 | Q130: 5000 | R130: 7 | S130: 6000 | T130: 6000 | U130: 24.2 | V130: 0.38 | W130: 3.1 | X130: 63.3 | Y130: 10 | AA130: Ja
A131: AKM63Q | B131: 43 | C131: 70.3 | D131: 16.7 | E131: 22.4 | N131: 11.9 | O131: 3500 | T131: 6000 | U131: 24 | V131: 0.23 | W131: 1.8 | X131: 48.3 | Y131: 10 | AA131: Ja
A132: AKM64K | B132: 53.5 | C132: 27.6 | D132: 20.8 | E132: 9.2 | N132: 19.2 | O132: 1200 | P132: 17.2 | Q132: 2000 | R132: 16.3 | S132: 2500 | T132: 6000 | U132: 31.6 | V132: 1.34 | W132: 11.8 | X132: 147 | Y132: 10 | AA132: Ja
A133: AKM64L | B133: 54.1 | C133: 38.4 | D133: 21 | E133: 12.8 | N133: 18.4 | O133: 1500 | P133: 15.6 | Q133: 3000 | R133: 14.4 | S133: 3500 | T133: 6000 | U133: 31.6 | V133: 0.71 | W133: 6.2 | X133: 107 | Y133: 10 | AA133: Ja
A134: AKM64P | B134: 52.9 | C134: 55.9 | D134: 20.4 | E134: 18.6 | N134: 16 | O134: 2500 | P134: 11.9 | Q134: 4500 | R134: 9.02 | S134: 5500 | T134: 6000 | U134: 31.6 | V134: 0.36 | W134: 2.8 | X134: 71 | Y134: 10 | AA134: Ja
A135: AKM64Q | B135: 53.2 | C135: 62.1 | D135: 20 | E135: 20.7 | N135: 15.3 | O135: 3000 | P135: 10.7 | Q135: 5000 | R135: 7.4 | S135: 6000 | T135: 6000 | U135: 32 | V135: 0.32 | W135: 2.3 | X135: 64.4 | Y135: 10 | AA135: Ja
A136: AKM65K | B136: 64.5 | C136: 29.4 | D136: 24.8 | E136: 9.8 | N136: 22.8 | O136: 1000 | P136: 20.2 | Q136: 2000 | R136: 19.7 | S136: 2200 | T136: 6000 | U136: 40 | V136: 1.27 | W136: 11.4 | X136: 164 | Y136: 10 | AA136: Ja
A137: AKM65M | B137: 65.2 | C137: 40.8 | D137: 25 | E137: 13.6 | N137: 21.9 | O137: 1500 | P137: 19.2 | Q137: 2500 | R137: 18.1 | S137: 3000 | T137: 6000 | U137: 40 | V137: 0.68 | W137: 6.1 | X137: 119 | Y137: 10 | AA137: Ja
A138: AKM65N | B138: 63.7 | C138: 53.4 | D138: 24.3 | E138: 17.8 | N138: 19.8 | O138: 2000 | P138: 16 | Q138: 3500 | R138: 14.7 | S138: 4000 | T138: 6000 | U138: 40 | V138: 0.42 | W138: 3.4 | X138: 88.8 | Y138: 10 | AA138: Ja
A139: AKM65L | B139: 63.7 | C139: 38 | D139: 25 | E139: 12.2 | N139: 22.4 | O139: 1300 | P139: 19.2 | Q139: 2500 | R139: 18.3 | S139: 2800 | T139: 6000 | U139: 40 | V139: 0.9 | W139: 7.6 | X139: 133.2 | Y139: 10 | AA139: Ja
A140: AKM65P | B140: 64.1 | C140: 59.3 | D140: 24.5 | E140: 19.8 | N140: 19.1 | O140: 2400 | P140: 14.9 | Q140: 4000 | R140: 11.6 | S140: 5000 | T140: 6000 | U140: 40 | V140: 0.37 | W140: 2.8 | X140: 80.5 | Y140: 10 | AA140: Ja
A141: AKM72K | B141: 79.4 | C141: 27.9 | D141: 29.7 | E141: 9.3 | P141: 25.1 | Q141: 1500 | R141: 24 | S141: 1800 | T141: 6000 | U141: 64.5 | V141: 1.22 | W141: 20.7 | X141: 208 | Y141: 10 | AA141: Ja
A142: AKM72L | B142: 79.4 | C142: 37.1 | D142: 30 | E142: 11.5 | P142: 24.3 | Q142: 1800 | R142: 23.6 | S142: 2000 | T142: 6000 | U142: 65 | V142: 0.92 | W142: 13.6 | X142: 168.5 | Y142: 10 | AA142: Ja
A143: AKM72M | B143: 79.8 | C143: 39 | D143: 30 | E143: 13 | P143: 23.6 | Q143: 2000 | R143: 22.1 | S143: 2500 | T143: 6000 | U143: 64.5 | V143: 0.64 | W143: 10.8 | X143: 150 | Y143: 10 | AA143: Ja
A144: AKM72P | B144: 78.5 | C144: 56.1 | D144: 29.4 | E144: 18.7 | N144: 23.8 | O144: 1800 | P144: 20.1 | Q144: 3000 | R144: 18.2 | S144: 3500 | T144: 6000 | U144: 64.5 | V144: 0.33 | W144: 5 | X144: 102 | Y144: 10 | AA144: Ja
A145: AKM72Q | B145: 78.4 | C145: 70.5 | D145: 29.5 | E145: 23.5 | N145: 23.2 | O145: 2000 | P145: 16.3 | Q145: 4000 | R145: 14.1 | S145: 4500 | T145: 6000 | U145: 65 | V145: 0.26 | W145: 3.2 | X145: 81.2 | Y145: 10 | AA145: Ja
A146: AKM73L | B146: 112 | C146: 39.4 | D146: 42 | E146: 12.1 | P146: 34.4 | Q146: 1400 | R146: 33.8 | S146: 1500 | T146: 6000 | U146: 92 | V146: 0.95 | W146: 15.7 | X146: 224.7 | Y146: 10 | AA146: Ja
A147: AKM73M | B147: 112 | C147: 40.8 | D147: 42 | E147: 13.6 | P147: 33.8 | Q147: 1500 | R147: 32.1 | S147: 1800 | T147: 6000 | U147: 92.1 | V147: 0.68 | W147: 12.4 | X147: 200 | Y147: 10 | AA147: Ja
A148: AKM73P | B148: 111 | C148: 58.6 | D148: 41.6 | E148: 19.5 | N148: 34.7 | O148: 1300 | P148: 28.5 | Q148: 2400 | R148: 26.3 | S148: 2800 | T148: 6000 | U148: 92.1 | V148: 0.35 | W148: 5.9 | X148: 137 | Y148: 10 | AA148: Ja
A149: AKM73Q | B149: 111 | C149: 73.5 | D149: 41.5 | E149: 24.5 | N149: 33.4 | O149: 1500 | P149: 25.2 | Q149: 3000 | R149: 22 | S149: 3500 | T149: 6000 | U149: 92 | V149: 0.27 | W149: 3.7 | X149: 109.2 | Y149: 10 | AA149: Ja
A150: AKM74L | B150: 143 | C150: 38.7 | D150: 53 | E150: 12.9 | P150: 45.5 | Q150: 1200 | R150: 41.5 | S150: 1400 | T150: 6000 | U150: 120 | V150: 0.85 | W150: 16.4 | X150: 266 | Y150: 10 | AA150: Ja
A151: AKM74P | B151: 142 | C151: 55.5 | D151: 52.5 | E151: 18.5 | P151: 37.6 | Q151: 1800 | R151: 35.9 | S151: 2000 | T151: 6000 | U151: 120 | V151: 0.43 | W151: 7.7 | X151: 183 | Y151: 10 | AA151: Ja
A152: AKM74Q | B152: 141 | C152: 78.3 | D152: 52.2 | E152: 26.1 | N152: 41.9 | O152: 1300 | P152: 31.5 | Q152: 2500 | R152: 27.3 | S152: 3000 | T152: 6000 | U152: 120 | V152: 0.26 | W152: 3.8 | X152: 129 | Y152: 10 | AA152: Ja
A153: AKM82T | B153: 210 | C153: 144 | D153: 75 | E153: 48 | P153: 47.5 | Q153: 2500 | R153: 38 | S153: 3000 | T153: 4000 | U153: 172 | V153: 0.092 | W153: 2.73 | X153: 108.4 | Y153: 10 | AA153: Ja
A154: AKM83T | B154: 456 | C154: 186 | D154: 130 | E154: 62 | P154: 70 | Q154: 2200 | R154: 60 | S154: 2500 | T154: 4000 | U154: 334 | V154: 0.061 | W154: 2.36 | X154: 140.1 | Y154: 10 | AA154: Ja
A155: AKM84T | B155: 668 | C155: 201 | D155: 180 | E155: 67 | P155: 105 | Q155: 2000 | R155: 93 | S155: 2000 | T155: 4000 | U155: 495 | V155: 0.058 | W155: 2.5 | X155: 177.4 | Y155: 10 | AA155: Ja
A156: DBK4N00100 | B156: 4 | C156: 5 | D156: 1 | E156: 1.1 | P156: 0.9 | Q156: 3000 | R156: 0.88 | S156: 3600 | T156: 9000 | U156: 0.79 | V156: 38 | W156: 70 | X156: 56 | Y156: 6 | AA156: Nein
A157: DBK4H00100 | B157: 4 | C157: 8.7 | D157: 1 | E157: 1.9 | N157: 0.9 | O157: 3000 | T157: 9000 | U157: 0.79 | V157: 13 | W157: 24 | X157: 32 | Y157: 6 | AA157: Nein
A158: DBK4N00160 | B158: 6.3 | C158: 4.9 | D158: 1.6 | E158: 1.1 | P158: 1.4 | Q158: 3000 | R158: 1.35 | S158: 3600 | T158: 9000 | U158: 1.28 | V158: 25 | W158: 68 | X158: 90 | Y158: 6 | AA158: Nein
A159: DBK4H00160 | B159: 5.5 | C159: 7.1 | D159: 1.6 | E159: 1.9 | N159: 1.4 | O159: 3000 | T159: 9000 | U159: 1.28 | V159: 7.6 | W159: 18 | X159: 51 | Y159: 6 | AA159: Nein
A160: DBK5N00210 | B160: 8.5 | C160: 7 | D160: 2.1 | E160: 1.5 | P160: 1.9 | Q160: 3000 | R160: 1.8 | S160: 3600 | T160: 9000 | U160: 4.13 | V160: 22 | W160: 60 | X160: 83 | Y160: 6 | AA160: Nein
A161: DBK5H00210 | B161: 7 | C161: 14.6 | D161: 2.1 | E161: 4 | N161: 1.9 | O161: 3000 | T161: 9000 | U161: 4.13 | V161: 3.1 | W161: 10 | X161: 32 | Y161: 6 | AA161: Nein
A162: DBK5N00430 | B162: 16.9 | C162: 13 | D162: 4.3 | E162: 2.9 | P162: 3.9 | Q162: 3000 | R162: 3.8 | S162: 3600 | T162: 9000 | U162: 5.78 | V162: 7.1 | W162: 32 | X162: 90 | Y162: 6 | AA162: Nein
A163: DBK5H00430 | B163: 16.9 | C163: 22.5 | D163: 4.3 | E163: 5 | N163: 3.9 | O163: 3000 | T163: 9000 | U163: 5.78 | V163: 2.2 | W163: 10 | X163: 53 | Y163: 6 | AA163: Nein
A164: DBK6N00350 | B164: 14.1 | C164: 13 | D164: 3.5 | E164: 2.8 | P164: 3 | Q164: 3000 | R164: 2.9 | S164: 3600 | T164: 9000 | U164: 8 | V164: 12 | W164: 56 | X164: 77 | Y164: 6 | AA164: Nein
A165: DBK6N00700 | B165: 28 | C165: 23 | D165: 7 | E165: 5 | P165: 6 | Q165: 3000 | R165: 5.7 | S165: 3600 | T165: 9000 | U165: 11.35 | V165: 4.4 | W165: 34 | X165: 84 | Y165: 6 | AA165: Nein
A166: DBK7N00650 | B166: 26.3 | C166: 21 | D166: 6.5 | E166: 4.5 | P166: 5 | Q166: 3000 | R166: 4.7 | S166: 3600 | T166: 9000 | U166: 32.36 | V166: 4.15 | W166: 22 | X166: 87 | Y166: 6 | AA166: Nein
A167: DBK7N01200 | B167: 48 | C167: 34.5 | D167: 12 | E167: 7.5 | P167: 10 | Q167: 3000 | R167: 9.6 | S167: 3600 | T167: 9000 | U167: 53.11 | V167: 1.65 | W167: 11.5 | X167: 98 | Y167: 6 | AA167: Nein
A168: DBK7N01950 | B168: 78.8 | C168: 55 | D168: 19.5 | E168: 11.8 | P168: 15 | Q168: 3000 | R168: 14 | S168: 3600 | T168: 9000 | U168: 69.16 | V168: 0.9 | W168: 7 | X168: 100 | Y168: 6 | AA168: Nein
A169: DBL1X00010 | B169: 0.4 | C169: 2.8 | D169: 0.1 | E169: 0.6 | N169: 0.09 | O169: 6000 | T169: 12000 | U169: 0.06 | V169: 38.2 | W169: 6.5 | X169: 10 | Y169: 6 | AA169: Nein
A170: DBL1X00020 | B170: 0.8 | C170: 4.3 | D170: 0.2 | E170: 0.93 | N170: 0.18 | O170: 6000 | T170: 12000 | U170: 0.12 | V170: 22 | W170: 4.7 | X170: 13 | Y170: 6 | AA170: Nein
A171: DBL2H00040 | B171: 1.6 | C171: 4.3 | D171: 0.4 | E171: 0.93 | N171: 0.36 | O171: 4500 | P171: 0.34 | Q171: 6000 | T171: 12000 | U171: 0.08 | V171: 26.5 | W171: 20 | X171: 26 | Y171: 6 | AA171: Nein
A172: DBL2H00060 | B172: 2.4 | C172: 6.8 | D172: 0.6 | E172: 1.5 | N172: 0.55 | O172: 4500 | P172: 0.52 | Q172: 6000 | T172: 12000 | U172: 0.11 | V172: 14.8 | W172: 13.2 | X172: 25 | Y172: 6 | AA172: Nein
A173: DBL2M00080 | B173: 3.2 | C173: 3.8 | D173: 0.8 | E173: 0.83 | P173: 0.72 | Q173: 4500 | T173: 12000 | U173: 0.13 | V173: 47.7 | W173: 43 | X173: 58 | Y173: 6 | AA173: Nein
A174: DBL2H00080 | B174: 3.2 | C174: 6.8 | D174: 0.8 | E174: 1.49 | N174: 0.72 | O174: 4500 | P174: 0.69 | Q174: 6000 | T174: 12000 | U174: 0.13 | V174: 14.7 | W174: 13 | X174: 33 | Y174: 6 | AA174: Nein
A175: DBL3N00065 | B175: 2.5 | C175: 3 | D175: 0.65 | E175: 0.67 | P175: 0.6 | Q175: 3000 | R175: 0.58 | S175: 3600 | T175: 9000 | U175: 0.5 | V175: 79 | W175: 82.8 | X175: 59 | Y175: 6 | AA175: Nein
A176: DBL3H00065 | B176: 2.6 | C176: 5 | D176: 0.65 | E176: 1.08 | N176: 0.6 | O176: 3000 | P176: 0.48 | Q176: 6000 | T176: 9000 | U176: 0.5 | V176: 30.3 | W176: 31 | X176: 36.5 | Y176: 6 | AA176: Nein
A177: DBL3N00130 | B177: 5.1 | C177: 4.5 | D177: 1.3 | E177: 1 | P177: 1.2 | Q177: 3000 | R177: 1.15 | S177: 3600 | T177: 9000 | U177: 0.8 | V177: 35.5 | W177: 61 | X177: 77.5 | Y177: 6 | AA177: Nein
A178: DBL3H00130 | B178: 4.9 | C178: 7.5 | D178: 1.3 | E178: 1.75 | N178: 1.2 | O178: 3000 | P178: 1.1 | Q178: 6000 | T178: 9000 | U178: 0.8 | V178: 13 | W178: 22 | X178: 45 | Y178: 6 | AA178: Nein
A179: DBL3M00190 | B179: 7.6 | C179: 6.9 | D179: 1.9 | E179: 1.5 | P179: 1.6 | Q179: 3000 | R179: 1.54 | S179: 3600 | T179: 9000 | U179: 1 | V179: 21.3 | W179: 40 | X179: 77 | Y179: 6 | AA179: Nein
A180: DBL3H00250 | B180: 10.1 | C180: 13.9 | D180: 2.5 | E180: 3 | N180: 2.2 | O180: 3000 | P180: 1.8 | Q180: 6000 | T180: 9000 | U180: 1.4 | V180: 5.1 | W180: 11 | X180: 50 | Y180: 6 | AA180: Nein
A181: DBL3N00300 | B181: 11.9 | C181: 9.5 | D181: 3 | E181: 2.1 | P181: 2.6 | Q181: 3000 | R181: 2.5 | S181: 3600 | T181: 9000 | U181: 1.7 | V181: 11.5 | W181: 25 | X181: 88 | Y181: 6 | AA181: Nein
A182: DBL4N00260 | B182: 10.3 | C182: 8.6 | D182: 2.6 | E182: 1.9 | P182: 2.3 | Q182: 3000 | R182: 2.2 | S182: 3600 | T182: 9000 | U182: 2.1 | V182: 9.5 | W182: 40 | X182: 82 | Y182: 6 | AA182: Nein
A183: DBL4H00260 | B183: 10 | C183: 13 | D183: 2.6 | E183: 3 | N183: 2.3 | O183: 3000 | T183: 9000 | U183: 2.1 | V183: 3.8 | W183: 15 | X183: 52 | Y183: 6 | AA183: Nein
A184: DBL4N00530 | B184: 21.5 | C184: 15 | D184: 5.3 | E184: 3.2 | P184: 4.6 | Q184: 3000 | R184: 4.4 | S184: 3600 | T184: 9000 | U184: 2.8 | V184: 6.14 | W184: 30 | X184: 100 | Y184: 6 | AA184: Nein
A185: DBL4H00530 | B185: 21.3 | C185: 30 | D185: 5.3 | E185: 6.5 | N185: 4.6 | O185: 3000 | T185: 9000 | U185: 2.8 | V185: 1.65 | W185: 9.3 | X185: 49 | Y185: 6 | AA185: Nein
A186: DBL4N00750 | B186: 30.2 | C186: 19 | D186: 7.5 | E186: 4.1 | P186: 6.5 | Q186: 3000 | R186: 6.25 | S186: 3600 | T186: 9000 | U186: 4.3 | V186: 3.8 | W186: 22.6 | X186: 112 | Y186: 6 | AA186: Nein
A187: DBL4H00750 | B187: 29.9 | C187: 42.6 | D187: 7.5 | E187: 9.3 | N187: 6.4 | O187: 3000 | T187: 9000 | U187: 4.3 | V187: 0.86 | W187: 5.3 | X187: 49 | Y187: 6 | AA187: Nein
A188: DBL4N00950 | B188: 37.5 | C188: 27.5 | D188: 9.5 | E188: 6.1 | P188: 8 | Q188: 3000 | R188: 7.8 | S188: 3600 | T188: 9000 | U188: 6.5 | V188: 1.61 | W188: 10 | X188: 94 | Y188: 6 | AA188: Nein
A189: DBL5N01050 | B189: 42.1 | C189: 30 | D189: 10.5 | E189: 6.5 | P189: 8.5 | Q189: 3000 | R189: 8 | S189: 3600 | T189: 9000 | U189: 8.1 | V189: 2.25 | W189: 19.8 | X189: 97 | Y189: 6 | AA189: Nein
A190: DBL5H01050 | B190: 44.8 | C190: 71 | D190: 10.5 | E190: 14.1 | N190: 8.5 | O190: 3000 | T190: 9000 | U190: 8.1 | V190: 0.52 | W190: 4.5 | X190: 45 | Y190: 6 | AA190: Nein
A191: DBL5N01350 | B191: 54 | C191: 40 | D191: 13.5 | E191: 8.7 | P191: 10.7 | Q191: 3000 | R191: 10 | S191: 3600 | T191: 9000 | U191: 9.1 | V191: 1.71 | W191: 16.5 | X191: 94 | Y191: 6 | AA191: Nein
A192: DBL5H01350 | B192: 53.8 | C192: 85 | D192: 13.5 | E192: 18.6 | N192: 10.7 | O192: 3000 | T192: 9000 | U192: 9.1 | V192: 0.38 | W192: 3.1 | X192: 44 | Y192: 6 | AA192: Nein
A193: DBL5N01700 | B193: 68.2 | C193: 48 | D193: 17 | E193: 10.4 | P193: 14 | Q193: 3000 | R193: 13.4 | S193: 3600 | T193: 9000 | U193: 11.3 | V193: 1.25 | W193: 12.6 | X193: 99 | Y193: 6 | AA193: Nein
A194: DBL5H01700 | B194: 67.5 | C194: 91 | D194: 17 | E194: 20 | N194: 14 | O194: 3000 | T194: 9000 | U194: 11.3 | V194: 0.36 | W194: 3.3 | X194: 52 | Y194: 6 | AA194: Nein
A195: DBL5N02200 | B195: 88 | C195: 63 | D195: 22 | E195: 13.7 | P195: 17 | Q195: 3000 | R195: 16 | S195: 3600 | T195: 9000 | U195: 13.1 | V195: 0.94 | W195: 9 | X195: 97 | Y195: 6 | AA195: Nein
A196: DBL6N02200 | B196: 88.1 | C196: 69.5 | D196: 22 | E196: 15.1 | P196: 16 | Q196: 3000 | R196: 14.8 | S196: 3600 | T196: 9000 | U196: 25.1 | V196: 0.72 | W196: 8.5 | X196: 88 | Y196: 6 | AA196: Nein
A197: DBL6N02900 | B197: 116.6 | C197: 81 | D197: 29 | E197: 17.5 | P197: 20 | Q197: 3000 | R197: 18.4 | S197: 3600 | T197: 9000 | U197: 38.2 | V197: 0.55 | W197: 6.5 | X197: 100 | Y197: 6 | AA197: Nein
A198: DBL7N02600 | B198: 101.9 | C198: 76 | D198: 26 | E198: 17 | P198: 20 | Q198: 3000 | R198: 18.8 | S198: 3600 | T198: 9000 | U198: 97.4 | V198: 0.46 | W198: 4.5 | X198: 92.5 | Y198: 6 | AA198: Nein
A199: DBL7N03200 | B199: 125.8 | C199: 89.8 | D199: 32 | E199: 20 | P199: 23 | Q199: 3000 | R199: 21 | S199: 3600 | T199: 9000 | U199: 114.1 | V199: 0.36 | W199: 3.6 | X199: 97 | Y199: 6 | AA199: Nein
A200: DBL7N04000 | B200: 144.5 | C200: 94 | D200: 40 | E200: 23.4 | P200: 26 | Q200: 3000 | R200: 23.2 | S200: 3600 | T200: 9000 | U200: 139.4 | V200: 0.3 | W200: 2.9 | X200: 103.5 | Y200: 6 | AA200: Nein
A201: DBL8N04000 | B201: 128.8 | C201: 80 | D201: 40 | E201: 23 | P201: 32 | Q201: 3000 | R201: 30.4 | S201: 3600 | T201: 9000 | U201: 71.1 | V201: 0.35 | W201: 7.5 | X201: 105 | Y201: 6 | AA201: Nein
A202: DBL8N06800 | B202: 234.3 | C202: 140 | D202: 68 | E202: 37 | P202: 50 | Q202: 3000 | R202: 45.6 | S202: 3600 | T202: 9000 | U202: 113.6 | V202: 0.12 | W202: 3.4 | X202: 112 | Y202: 6 | AA202: Nein
A203: DBL8L09300 | B203: 299 | C203: 118 | D203: 93 | E203: 34 | P203: 70 | Q203: 2000 | T203: 6000 | U203: 153 | V203: 0.16 | W203: 4.4 | X203: 164 | Y203: 6 | AA203: Nein
A204: DBL8L11500 | B204: 363.2 | C204: 146 | D204: 115 | E204: 43 | P204: 85 | Q204: 2000 | T204: 6000 | U204: 190 | V204: 0.11 | W204: 3.9 | X204: 164 | Y204: 6 | AA204: Nein
A205: SBK4-0100 (320V) | B205: 4 | C205: 11 | D205: 1 | E205: 1.82 | N205: 0.9 | O205: 3000 | T205: 12000 | U205: 0.79 | V205: 13 | W205: 24 | X205: 33.5 | Y205: 6 | AA205: Nein
A206: SBK4-0100 (560V) | B206: 4 | C206: 5 | D206: 1 | E206: 1.1 | P206: 0.9 | Q206: 3000 | T206: 12000 | U206: 0.79 | V206: 38 | W206: 70 | X206: 56 | Y206: 6 | AA206: Nein
... 1079 more rows

Sheet Calc (hidden)
A1: Motor Nr | B1: Drive Nr | C1: DC-Voltage | D1: 2. Motor | F1: AC | G1: DC | K1: Drives | L1: AC-Voltage | M1: Icont | N1: Ipeak | O1: SFD Unterstützung?
A2: AKM12E | B2: Servostar 303 | C2: 75 | D2: FALSE | E2: 2 | F2: =24/SQRT(2) -> 16.97056275 | G2: =IF($C$13>F2,24,"") -> 24 | K2: Servostar 303 | L2: 230 | M2: 3 | N2: 9 | O2: Nein
B3: V < 75V | C3: =C2*1<G4*1 -> FALSE | F3: =48/SQRT(2) -> 33.9411255 | G3: =IF($C$13>F3,48,"") -> 48 | K3: Servostar 306 | L3: 230 | M3: 6 | N3: 15 | O3: Nein
F4: =75/SQRT(2) -> 53.03300859 | G4: =IF($C$13>F4,75,"") -> 75 | K4: Servostar 310 | L4: 230 | M4: 10 | N4: 20 | O4: Nein
F5: =160/SQRT(2) -> 113.137085 | G5: =IF($C$13>F5,160,"") -> 160 | K5: Servostar 341 | L5: 480 | M5: 1.5 | N5: 4.5 | O5: Nein
F6: =320/SQRT(2) -> 226.27417 | G6: =IF($C$13>F6,320,"") -> 320 | K6: Servostar 343 | L6: 480 | M6: 3 | N6: 7.5 | O6: Nein
F7: =560/SQRT(2) -> 395.9797975 | G7: =IF($C$13>F7,560,"") ->  | K7: Servostar 346 | L7: 480 | M7: 6 | N7: 12 | O7: Nein
A8: Motor | F8: =640/SQRT(2) -> 452.54834 | G8: =IF($C$13>F8,640,"") ->  | K8: Servostar 403M/A | L8: 230 | M8: 3 | N8: 9 | O8: Nein
A9: r | B9: l | C9: ke | D9: Ipeak | E9: poles | F9: nmax | G9: Mo | H9: Io | I9: Mpeak | K9: Servostar 406M/A | L9: 230 | M9: 6 | N9: 12 | O9: Nein
A10: =IF(C3=TRUE,VLOOKUP($A$2,Motor!$A$9:$Y$1285,22,FALSE)*1.4,VLOOKUP($A$2,Motor!$A$9:$Y$1285,22,FALSE)) -> 3.9 | B10: =VLOOKUP($A$2,Motor!$A$9:$Y$1285,23,FALSE) -> 2.7 | C10: =VLOOKUP($A$2,Motor!$A$9:$Y$1285,24,FALSE) -> 7.2 | D10: =VLOOKUP($A$2,Motor!$A$9:$Y$1285,3,FALSE) -> 10.9 | E10: =VLOOKUP($A$2,Motor!$A$9:$Y$1285,25,FALSE) -> 6 | F10: =VLOOKUP($A$2,Motor!$A$9:$Y$1285,20,FALSE) -> 8000 | G10: =VLOOKUP($A$2,Motor!$A$9:$Y$1285,4,FALSE) -> 0.3 | H10: =VLOOKUP($A$2,Motor!$A$9:$Y$1285,5,FALSE) -> 2.72 | I10: =VLOOKUP($A$2,Motor!$A$9:$Y$1285,2,FALSE) -> 1.08 | K10: Servostar 443M/403A | L10: 400 | M10: 3 | N10: 9 | O10: Nein
A11: Drive | G11: =G10/H10 -> 0.1102941176 | I11: =I10/D10 -> 0.09908256881 | K11: Servostar 446M/406A | L11: 400 | M11: 6 | N11: 12 | O11: Nein
A12: I peak | B12: I rms | C12: AC-Voltage | K12: Servostar 601 | L12: 480 | M12: 1.5 | N12: 3 | O12: Nein
A13: =VALUE(VLOOKUP($B$2,$K$2:$N$43,4,FALSE)) -> 9 | B13: =VALUE(VLOOKUP($B$2,$K$2:$N$43,3,FALSE)) -> 3 | C13: =VALUE(VLOOKUP($B$2,$K$2:$N$45,2,FALSE)) -> 230 | K13: Servostar 603 | L13: 480 | M13: 3 | N13: 6 | O13: Nein
A14: =VALUE(VLOOKUP($B$2,$K$2:$N$43,4,FALSE)) -> 9 | K14: Servostar 606 | L14: 480 | M14: 6 | N14: 12 | O14: Nein
A15: A - U 18 | B15: 19 | C15: 20 | D15: 3 | E15: 21 | F15: 16 | G15: 4 | H15: 5 | I15: 2 | K15: Servostar 610 | L15: 480 | M15: 10 | N15: 20 | O15: Nein
K16: Servostar 610/30 | L16: 480 | M16: 10 | N16: 30 | O16: Nein
K17: Servostar 614 | L17: 480 | M17: 14 | N17: 28 | O17: Nein
A18: Cyclic duty | K18: Servostar 620 | L18: 480 | M18: 20 | N18: 40 | O18: Nein
A19: M | B19: n | C19: a | D19: b | E19: c | F19: speed | G19: Ipeak | H19: Kt | I19: Error_1 | K19: Servostar 640 | L19: 480 | M19: 40 | N19: 80 | O19: Nein | T19: Answer_1 | U19: Answer_2
A20: =VLOOKUP(FALSE,I21:U71,12,0) -> 0.9093318794 | B20: =IF(I21,VLOOKUP(FALSE,I21:U71,13,0),0) -> 0 | K20: Servostar 670 | L20: 480 | M20: 70 | N20: 140 | O20: Nein
A21: =IF(I21,$A$20,G21*($G$10/$H$10-($G$10/$H$10-$I$10/$D$10)/$D$10*G21)) -> 0.9093318794 | B21: =IF(I21,$B$20,MAX(MIN(F21,$F$10),0)) -> 2592.6 | C21: =($C$10^2)/1000000+(($B$10/1000)^2*G21^2*PI()*PI()*($E$10/2)^2)/1200 -> 9.554927027e-05 | D21: =SQRT(3)*$C$10*$A$10*G21/1000 -> 0.4377238801 | E21: =0.75*$A$10^2*G21^2-($C$2/SQRT(2)*0.98)^2 -> -1777.1175 | F21: =ROUND((-D21/2/C21+SQRT((D21/2/C21)^2-E21/C21)),1) -> 2592.6 | G21: =MIN($D$10,$A$13)*1 -> 9 | H21: =A21/G21 -> 0.1010368755 | I21: =OR(IF(ISERROR(F21),TRUE,FALSE),IFERROR(IF(F21<0,TRUE,FALSE),TRUE)) -> FALSE | K21: Servostar S20260 | L21: 230 | M21: 1.5 | N21: 4.5 | O21: Ja | T21: =A21 -> 0.9093318794 | U21: =B21 -> 2592.6
A22: =IF(I22,$A$20,G22*($G$10/$H$10-($G$10/$H$10-$I$10/$D$10)/$D$10*G22)) -> 0.8927782193 | B22: =IF(I22,$B$20,MAX(MIN(F22,$F$10),0)) -> 2669.5 | C22: =($C$10^2)/1000000+(($B$10/1000)^2*G22^2*PI()*PI()*($E$10/2)^2)/1200 -> 9.381838317e-05 | D22: =SQRT(3)*$C$10*$A$10*G22/1000 -> 0.4289694025 | E22: =0.75*$A$10^2*G22^2-($C$2/SQRT(2)*0.98)^2 -> -1813.708197 | F22: =ROUND((-D22/2/C22+SQRT((D22/2/C22)^2-E22/C22)),1) -> 2669.5 | G22: =MIN($D$10,$A$13)*0.98 -> 8.82 | H22: =A22/G22 -> 0.1012220203 | I22: =OR(IF(ISERROR(F22),TRUE,FALSE),IFERROR(IF(F22<0,TRUE,FALSE),TRUE)) -> FALSE | K22: Servostar S20360 | L22: 230 | M22: 3 | N22: 9 | O22: Ja | T22: =A22 -> 0.8927782193 | U22: =B22 -> 2669.5
A23: 0.8761579071 | B23: 2747.1 | C23: 9.212246348e-05 | D23: 0.4202149249 | E23: -1849.559688 | F23: 2747.1 | G23: =MIN($D$10,$A$13)*0.96 -> 8.64 | H23: 0.1014071652 | I23: FALSE | K23: Servostar S20330 | L23: 50 | M23: 3 | N23: 9 | O23: Ja | T23: 0.8761579071 | U23: 2747.1
A24: 0.8594709427 | B24: 2825.4 | C24: 9.046151121e-05 | D24: 0.4114604473 | E24: -1884.671973 | F24: 2825.4 | G24: =MIN($D$10,$A$13)*0.94 -> 8.46 | H24: 0.10159231 | I24: FALSE | K24: Servostar S20630 | L24: 50 | M24: 6 | N24: 18 | O24: Ja | T24: 0.8594709427 | U24: 2825.4
A25: 0.8427173262 | B25: 2904.5 | C25: 8.883552636e-05 | D25: 0.4027059697 | E25: -1919.045052 | F25: 2904.5 | G25: =MIN($D$10,$A$13)*0.92 -> 8.28 | H25: 0.1017774549 | I25: FALSE | K25: S 701 | L25: 480 | M25: 1.5 | N25: 4.5 | O25: Nein | T25: 0.8427173262 | U25: 2904.5
A26: 0.8258970576 | B26: 2984.3 | C26: 8.724450892e-05 | D26: 0.3939514921 | E26: -1952.678925 | F26: 2984.3 | G26: =MIN($D$10,$A$13)*0.9 -> 8.1 | H26: 0.1019625997 | I26: FALSE | K26: S 703 | L26: 480 | M26: 3 | N26: 9 | O26: Nein | T26: 0.8258970576 | U26: 2984.3
A27: 0.8090101368 | B27: 3065 | C27: 8.56884589e-05 | D27: 0.3851970145 | E27: -1985.573592 | F27: 3065 | G27: =MIN($D$10,$A$13)*0.88 -> 7.92 | H27: 0.1021477445 | I27: FALSE | K27: S 706 | L27: 480 | M27: 6 | N27: 18 | O27: Nein | T27: 0.8090101368 | U27: 3065
A28: 0.7920565639 | B28: 3146.5 | C28: =($C$10^2)/1000000+(($B$10/1000)^2*G28^2*PI()*PI()*($E$10/2)^2)/1200 -> 8.416737629e-05 | D28: =SQRT(3)*$C$10*$A$10*G28/1000 -> 0.3764425369 | E28: =0.75*$A$10^2*G28^2-($C$2/SQRT(2)*0.98)^2 -> -2017.729053 | F28: 3146.5 | G28: =MIN($D$10,$A$13)*0.86 -> 7.74 | H28: =A28/G28 -> 0.1023328894 | I28: FALSE | K28: S 712 | L28: 480 | M28: 12 | N28: 24 | O28: Nein | T28: 0.7920565639 | U28: 3146.5
A29: 0.7750363388 | B29: 3228.8 | C29: 8.26812611e-05 | D29: 0.3676880593 | E29: -2049.145308 | F29: 3228.8 | G29: =MIN($D$10,$A$13)*0.84 -> 7.56 | H29: 0.1025180342 | I29: FALSE | K29: S 712P | L29: 480 | M29: 12 | N29: 30 | O29: Nein | T29: 0.7750363388 | U29: 3228.8
A30: 0.7579494616 | B30: 3312 | C30: 8.123011333e-05 | D30: 0.3589335817 | E30: -2079.822357 | F30: 3312 | G30: =MIN($D$10,$A$13)*0.82 -> 7.38 | H30: 0.1027031791 | I30: FALSE | K30: S 724 | L30: 480 | M30: 24 | N30: 48 | O30: Nein | T30: 0.7579494616 | U30: 3312
A31: 0.7407959322 | B31: 3396.1 | C31: 7.981393297e-05 | D31: 0.3501791041 | E31: -2109.7602 | F31: 3396.1 | G31: =MIN($D$10,$A$13)*0.8 -> 7.2 | H31: 0.1028883239 | I31: FALSE | K31: S 724P | L31: 480 | M31: 24 | N31: 72 | O31: Nein | T31: 0.7407959322 | U31: 3396.1
A32: 0.7235757507 | B32: 3481.1 | C32: 7.843272003e-05 | D32: 0.3414246265 | E32: -2138.958837 | F32: 3481.1 | G32: =MIN($D$10,$A$13)*0.78 -> 7.02 | H32: 0.1030734688 | I32: FALSE | K32: S 748 | L32: 480 | M32: 48 | N32: 96 | O32: Nein | T32: 0.7235757507 | U32: 3481.1
A33: 0.7062889171 | B33: 3567 | C33: 7.708647451e-05 | D33: 0.3326701489 | E33: -2167.418268 | F33: 3567 | G33: =MIN($D$10,$A$13)*0.76 -> 6.84 | H33: 0.1032586136 | I33: FALSE | K33: S 772 | L33: 480 | M33: 72 | N33: 140 | O33: Nein | T33: 0.7062889171 | U33: 3567
A34: 0.6889354313 | B34: 3653.8 | C34: 7.57751964e-05 | D34: 0.3239156713 | E34: -2195.138493 | F34: 3653.8 | G34: =MIN($D$10,$A$13)*0.74 -> 6.66 | H34: 0.1034437584 | I34: FALSE | K34: AKD-x00306 | L34: 230 | M34: 3 | N34: 9 | O34: Ja | T34: 0.6889354313 | U34: 3653.8
A35: 0.6715152933 | B35: 3741.6 | C35: 7.449888571e-05 | D35: 0.3151611937 | E35: -2222.119512 | F35: 3741.6 | G35: =MIN($D$10,$A$13)*0.72 -> 6.48 | H35: 0.1036289033 | I35: FALSE | K35: AKD-x00606 | L35: 230 | M35: 6 | N35: 18 | O35: Ja | T35: 0.6715152933 | U35: 3741.6
A36: 0.6540285032 | B36: 3830.2 | C36: 7.325754243e-05 | D36: 0.3064067161 | E36: -2248.361325 | F36: 3830.2 | G36: =MIN($D$10,$A$13)*0.7 -> 6.3 | H36: 0.1038140481 | I36: FALSE | K36: AKD-x01206 | L36: 230 | M36: 12 | N36: 30 | O36: Ja | T36: 0.6540285032 | U36: 3830.2
A37: 0.636475061 | B37: 3919.9 | C37: 7.205116657e-05 | D37: 0.2976522385 | E37: -2273.863932 | F37: 3919.9 | G37: =MIN($D$10,$A$13)*0.68 -> 6.12 | H37: 0.103999193 | I37: FALSE | K37: AKD-x02406 | L37: 230 | M37: 24 | N37: 48 | O37: Ja | T37: 0.636475061 | U37: 3919.9
A38: 0.6188549667 | B38: 4010.5 | C38: 7.087975813e-05 | D38: 0.2888977609 | E38: -2298.627333 | F38: 4010.5 | G38: =MIN($D$10,$A$13)*0.66 -> 5.94 | H38: 0.1041843378 | I38: FALSE | K38: AKD-x00307 | L38: 480 | M38: 3 | N38: 9 | O38: Ja | T38: 0.6188549667 | U38: 4010.5
A39: 0.6011682201 | B39: 4102 | C39: 6.97433171e-05 | D39: 0.2801432833 | E39: -2322.651528 | F39: 4102 | G39: =MIN($D$10,$A$13)*0.64 -> 5.76 | H39: 0.1043694827 | I39: FALSE | K39: AKD-x00607 | L39: 480 | M39: 6 | N39: 18 | O39: Ja | T39: 0.6011682201 | U39: 4102
A40: 0.5834148215 | B40: 4194.4 | C40: 6.864184349e-05 | D40: 0.2713888057 | E40: -2345.936517 | F40: 4194.4 | G40: =MIN($D$10,$A$13)*0.62 -> 5.58 | H40: 0.1045546275 | I40: FALSE | K40: AKD-x01207 | L40: 480 | M40: 12 | N40: 30 | O40: Ja | T40: 0.5834148215 | U40: 4194.4
A41: 0.5655947707 | B41: 4287.8 | C41: 6.75753373e-05 | D41: 0.2626343281 | E41: -2368.4823 | F41: 4287.8 | G41: =MIN($D$10,$A$13)*0.6 -> 5.4 | H41: 0.1047397724 | I41: FALSE | K41: AKD-x02407 | L41: 480 | M41: 24 | N41: 48 | O41: Ja | T41: 0.5655947707 | U41: 4287.8
A42: 0.5477080678 | B42: 4382 | C42: 6.654379852e-05 | D42: 0.2538798505 | E42: -2390.288877 | F42: 4382 | G42: =MIN($D$10,$A$13)*0.58 -> 5.22 | H42: 0.1049249172 | I42: FALSE | K42: other drive | L42: 480 | M42: 5 | N42: 10 | O42: Nein | T42: 0.5477080678 | U42: 4382
A43: 0.5297547127 | B43: 4477.2 | C43: 6.554722716e-05 | D43: 0.2451253728 | E43: -2411.356248 | F43: 4477.2 | G43: =MIN($D$10,$A$13)*0.56 -> 5.04 | H43: 0.105110062 | I43: FALSE | K43: max. | L43: 480 | M43: 1000 | N43: 1000 | O43: Nein | T43: 0.5297547127 | U43: 4477.2
A44: 0.5117347054 | B44: 4573.2 | C44: 6.458562321e-05 | D44: 0.2363708952 | E44: -2431.684413 | F44: 4573.2 | G44: =MIN($D$10,$A$13)*0.54 -> 4.86 | H44: 0.1052952069 | I44: FALSE | K44: S 131xx 5A 230V | L44: 230 V | M44: 5 | N44: 10 | O44: Nein | T44: 0.5117347054 | U44: 4573.2
A45: 0.4936480461 | B45: 4670 | C45: 6.365898668e-05 | D45: 0.2276164176 | E45: -2451.273372 | F45: 4670 | G45: =MIN($D$10,$A$13)*0.52 -> 4.68 | H45: 0.1054803517 | I45: FALSE | K45: S 132xx 10A 480V | L45: 480 | M45: 10 | N45: 20 | O45: Nein | T45: 0.4936480461 | U45: 4670
A46: 0.4754947345 | B46: 4767.6 | C46: 6.276731757e-05 | D46: 0.21886194 | E46: -2470.123125 | F46: 4767.6 | G46: =MIN($D$10,$A$13)*0.5 -> 4.5 | H46: 0.1056654966 | I46: FALSE | K46: S 132xx 15A 480V | L46: 480 | M46: 15 | N46: 30 | O46: Nein | T46: 0.4754947345 | U46: 4767.6
A47: 0.4572747709 | B47: 4865.9 | C47: 6.191061587e-05 | D47: 0.2101074624 | E47: -2488.233672 | F47: 4865.9 | G47: =MIN($D$10,$A$13)*0.48 -> 4.32 | H47: 0.1058506414 | I47: FALSE | K47: S 132xx 20A 480V | L47: 480 | M47: 20 | N47: 40 | O47: Nein | T47: 0.4572747709 | U47: 4865.9
A48: 0.4389881551 | B48: 4965 | C48: 6.108888159e-05 | D48: 0.2013529848 | E48: -2505.605013 | F48: 4965 | G48: =MIN($D$10,$A$13)*0.46 -> 4.14 | H48: 0.1060357863 | I48: FALSE | T48: 0.4389881551 | U48: 4965
A49: 0.4206348871 | B49: 5064.7 | C49: 6.030211472e-05 | D49: 0.1925985072 | E49: -2522.237148 | F49: 5064.7 | G49: =MIN($D$10,$A$13)*0.44 -> 3.96 | H49: 0.1062209311 | I49: FALSE | T49: 0.4206348871 | U49: 5064.7
A50: 0.4022149671 | B50: 5164.9 | C50: 5.955031528e-05 | D50: 0.1838440296 | E50: -2538.130077 | F50: 5164.9 | G50: =MIN($D$10,$A$13)*0.42 -> 3.78 | H50: 0.1064060759 | I50: FALSE | T50: 0.4022149671 | U50: 5164.9
A51: 0.3837283948 | B51: 5265.7 | C51: 5.883348324e-05 | D51: 0.175089552 | E51: -2553.2838 | F51: 5265.7 | G51: =MIN($D$10,$A$13)*0.399999999999999 -> 3.6 | H51: 0.1065912208 | I51: FALSE | T51: 0.3837283948 | U51: 5265.7
A52: 0.3651751704 | B52: 5366.9 | C52: =($C$10^2)/1000000+(($B$10/1000)^2*G52^2*PI()*PI()*($E$10/2)^2)/1200 -> 5.815161863e-05 | D52: =SQRT(3)*$C$10*$A$10*G52/1000 -> 0.1663350744 | E52: =0.75*$A$10^2*G52^2-($C$2/SQRT(2)*0.98)^2 -> -2567.698317 | F52: 5366.9 | G52: =MIN($D$10,$A$13)*0.379999999999999 -> 3.42 | H52: =A52/G52 -> 0.1067763656 | I52: FALSE | T52: 0.3651751704 | U52: 5366.9
A53: 0.3465552939 | B53: 5468.5 | C53: 5.750472143e-05 | D53: 0.1575805968 | E53: -2581.373628 | F53: 5468.5 | G53: =MIN($D$10,$A$13)*0.359999999999999 -> 3.24 | H53: 0.1069615105 | I53: FALSE | T53: 0.3465552939 | U53: 5468.5
A54: 0.3278687653 | B54: 5570.3 | C54: 5.689279164e-05 | D54: 0.1488261192 | E54: -2594.309733 | F54: 5570.3 | G54: =MIN($D$10,$A$13)*0.339999999999999 -> 3.06 | H54: 0.1071466553 | I54: FALSE | T54: 0.3278687653 | U54: 5570.3
A55: 0.3091155844 | B55: 5672.3 | C55: 5.631582928e-05 | D55: 0.1400716416 | E55: -2606.506632 | F55: 5672.3 | G55: =MIN($D$10,$A$13)*0.319999999999999 -> 2.88 | H55: 0.1073318002 | I55: FALSE | T55: 0.3091155844 | U55: 5672.3
A56: 0.2902957515 | B56: 5774.4 | C56: 5.577383432e-05 | D56: 0.131317164 | E56: -2617.964325 | F56: 5774.4 | G56: =MIN($D$10,$A$13)*0.299999999999999 -> 2.7 | H56: 0.107516945 | I56: FALSE | T56: 0.2902957515 | U56: 5774.4
A57: 0.2714092664 | B57: 5876.4 | C57: 5.526680679e-05 | D57: 0.1225626864 | E57: -2628.682812 | F57: 5876.4 | G57: =MIN($D$10,$A$13)*0.279999999999999 -> 2.52 | H57: 0.1077020898 | I57: FALSE | T57: 0.2714092664 | U57: 5876.4
A58: 0.2524561292 | B58: 5978.2 | C58: 5.479474667e-05 | D58: 0.1138082088 | E58: -2638.662093 | F58: 5978.2 | G58: =MIN($D$10,$A$13)*0.259999999999999 -> 2.34 | H58: 0.1078872347 | I58: FALSE | T58: 0.2524561292 | U58: 5978.2
A59: 0.2334363398 | B59: 6079.7 | C59: 5.435765397e-05 | D59: 0.1050537312 | E59: -2647.902168 | F59: 6079.7 | G59: =MIN($D$10,$A$13)*0.239999999999999 -> 2.16 | H59: 0.1080723795 | I59: FALSE | T59: 0.2334363398 | U59: 6079.7
A60: 0.2143498983 | B60: 6180.8 | C60: 5.395552868e-05 | D60: 0.09629925362 | E60: -2656.403037 | F60: 6180.8 | G60: =MIN($D$10,$A$13)*0.219999999999999 -> 1.98 | H60: 0.1082575244 | I60: FALSE | T60: 0.2143498983 | U60: 6180.8
A61: 0.1951968046 | B61: 6281.2 | C61: 5.358837081e-05 | D61: 0.08754477602 | E61: -2664.1647 | F61: 6281.2 | G61: =MIN($D$10,$A$13)*0.199999999999999 -> 1.8 | H61: 0.1084426692 | I61: FALSE | T61: 0.1951968046 | U61: 6281.2
A62: 0.1759770588 | B62: 6381 | C62: 5.325618036e-05 | D62: 0.07879029842 | E62: -2671.187157 | F62: 6381 | G62: =MIN($D$10,$A$13)*0.179999999999999 -> 1.62 | H62: 0.1086278141 | I62: FALSE | T62: 0.1759770588 | U62: 6381
A63: 0.1566906608 | B63: 6479.8 | C63: 5.295895732e-05 | D63: 0.07003582081 | E63: -2677.470408 | F63: 6479.8 | G63: =MIN($D$10,$A$13)*0.159999999999999 -> 1.44 | H63: 0.1088129589 | I63: FALSE | T63: 0.1566906608 | U63: 6479.8
A64: 0.1373376107 | B64: 6577.6 | C64: 5.26967017e-05 | D64: 0.06128134321 | E64: -2683.014453 | F64: 6577.6 | G64: =MIN($D$10,$A$13)*0.139999999999999 -> 1.26 | H64: 0.1089981037 | I64: FALSE | T64: 0.1373376107 | U64: 6577.6
A65: 0.1179179085 | B65: 6674.2 | C65: 5.246941349e-05 | D65: 0.05252686561 | E65: -2687.819292 | F65: 6674.2 | G65: =MIN($D$10,$A$13)*0.119999999999999 -> 1.08 | H65: 0.1091832486 | I65: FALSE | T65: 0.1179179085 | U65: 6674.2
A66: 0.09843155409 | B66: 6769.4 | C66: 5.22770927e-05 | D66: 0.04377238801 | E66: -2691.884925 | F66: 6769.4 | G66: =MIN($D$10,$A$13)*0.099999999999999 -> 0.9 | H66: 0.1093683934 | I66: FALSE | T66: 0.09843155409 | U66: 6769.4
A67: 0.07887854756 | B67: 6863 | C67: 5.211973933e-05 | D67: 0.03501791041 | E67: -2695.211352 | F67: 6863 | G67: =MIN($D$10,$A$13)*0.079999999999999 -> 0.72 | H67: 0.1095535383 | I67: FALSE | T67: 0.07887854756 | U67: 6863
A68: 0.05925888888 | B68: 6954.9 | C68: 5.199735337e-05 | D68: 0.02626343281 | E68: -2697.798573 | F68: 6954.9 | G68: =MIN($D$10,$A$13)*0.0599999999999989 -> 0.54 | H68: 0.1097386831 | I68: FALSE | T68: 0.05925888888 | U68: 6954.9
A69: 0.03957257807 | B69: 7044.9 | C69: 5.190993483e-05 | D69: 0.0175089552 | E69: -2699.646588 | F69: 7044.9 | G69: =MIN($D$10,$A$13)*0.039999999999999 -> 0.36 | H69: 0.109923828 | I69: FALSE | T69: 0.03957257807 | U69: 7044.9
A70: 0.0198196151 | B70: 7132.8 | C70: 5.185748371e-05 | D70: 0.008754477602 | E70: -2700.755397 | F70: 7132.8 | G70: =MIN($D$10,$A$13)*0.019999999999999 -> 0.18 | H70: 0.1101089728 | I70: FALSE | T70: 0.0198196151 | U70: 7132.8
A71: 0 | B71: 7218.4 | C71: 5.184e-05 | D71: 0 | E71: -2701.125 | F71: 7218.4 | G71: =MIN($D$10,$A$13)*0 -> 0 | I71: FALSE | T71: 0 | U71: 7218.4
B73: =MAX(MIN(F73,$F$10),0) -> 5917 | C73: =($C$10^2)/1000000+(($B$10/1000)^2*G73^2*PI()*PI()*($E$10/2)^2)/1200 -> 5.507378665e-05 | D73: =SQRT(3)*$C$10*$A$10*G73/1000 -> 0.1190608954 | E73: =0.75*$A$10^2*G73^2-($C$2/SQRT(2)*0.98)^2 -> -2632.763229 | F73: =ROUND((-D73/2/C73+SQRT((D73/2/C73)^2-E73/C73)),0) -> 5917 | G73: =MIN(B13,H10/G10*C83) -> 2.448
A76: S1
A77: M | B77: n
A78: =IF(D78>$B$71,"",C78) -> 0.3 | B78: =IF(D78>$B$71,"",D78) -> 0 | C78: =G10 -> 0.3 | D78: 0 | E78: 0 | F78: =MIN(A78,$A$154) -> 0.3
A79: =IF(D79>$B$71,A78,C79) -> 0.3 | B79: =IF(D79>$B$71,B78,D79) -> 0 | C79: =IF(VLOOKUP($A$2,Motorenmatrix,6,FALSE)=0,C78,VLOOKUP($A$2,Motorenmatrix,6,FALSE)) -> 0.3 | D79: =IF(VLOOKUP($A$2,Motorenmatrix,7,FALSE)=0,D78,VLOOKUP($A$2,Motorenmatrix,7,FALSE)) -> 0 | E79: =IF(D79-D78=0,E78,(C79-C78)/(D79-D78)) -> 0 | F79: =MIN(A79,$A$154) -> 0.3
A80: =IF(D80>$B$71,A79,C80) -> 0.3 | B80: =IF(D80>$B$71,B79,D80) -> 1500 | C80: =IF(VLOOKUP($A$2,Motorenmatrix,8,FALSE)=0,C79,VLOOKUP($A$2,Motorenmatrix,8,FALSE)) -> 0.3 | D80: =IF(VLOOKUP($A$2,Motorenmatrix,9,FALSE)=0,D79,VLOOKUP($A$2,Motorenmatrix,9,FALSE)) -> 1500 | E80: =IF(D80-D79=0,E79,(C80-C79)/(D80-D79)) -> 0 | F80: 0.3
A81: =IF(D81>$B$71,A80,C81) -> 0.3 | B81: =IF(D81>$B$71,B80,D81) -> 3000 | C81: =IF(VLOOKUP($A$2,Motorenmatrix,10,FALSE)=0,C80,VLOOKUP($A$2,Motorenmatrix,10,FALSE)) -> 0.3 | D81: =IF(VLOOKUP($A$2,Motorenmatrix,11,FALSE)=0,D80,VLOOKUP($A$2,Motorenmatrix,11,FALSE)) -> 3000 | E81: =IF(D81-D80=0,E80,(C81-C80)/(D81-D80)) -> 0 | F81: 0.3
A82: =IF(D82>$B$71,A81,C82) -> 0.3 | B82: =IF(D82>$B$71,B81,D82) -> 3000 | C82: =IF(VLOOKUP($A$2,Motorenmatrix,12,FALSE)=0,C81,VLOOKUP($A$2,Motorenmatrix,12,FALSE)) -> 0.27 | D82: =IF(VLOOKUP($A$2,Motorenmatrix,13,FALSE)=0,D81,VLOOKUP($A$2,Motorenmatrix,13,FALSE)) -> 8000 | E82: =IF(D82-D81=0,E81,(C82-C81)/(D82-D81)) -> -6e-06 | F82: 0.3
A83: =IF(D83>$B$71,A82,C83) -> 0.3 | B83: =IF(D83>$B$71,B82,D83) -> 3000 | C83: =IF(VLOOKUP($A$2,Motorenmatrix,14,FALSE)=0,C82,VLOOKUP($A$2,Motorenmatrix,14,FALSE)) -> 0.27 | D83: =IF(VLOOKUP($A$2,Motorenmatrix,15,FALSE)=0,D82,VLOOKUP($A$2,Motorenmatrix,15,FALSE)) -> 8000 | E83: =IF(D83-D82=0,E82,(C83-C82)/(D83-D82)) -> -6e-06 | F83: 0.3
A84: =A83+(B84-B83)*E83 -> 0.282498 | B84: =B73 -> 5917 | C84: =A83+(B84-B83)*E83 -> 0.282498 | F84: 0.282498
A86: =C78 -> 0.3 | B86: 0 | D86: =MIN(A86,$A$154) -> 0.3
A87: =A86+(B87-B86)*C87 -> 0.3 | B87: =0.02*$B$84 -> 118.34 | C87: =IF(B87<$B$79,$E$79,IF(B87<$B$80,$E$80,IF(B87<$B$81,$E$81,IF(B87<$B$82,$E$82,$E$83 ) ) )) -> 0 | D87: =MIN(A87,$A$154) -> 0.3
A88: =A87+(B88-B87)*C88 -> 0.3 | B88: =0.04*$B$84 -> 236.68 | C88: =IF(B88<$B$79,$E$79,IF(B88<$B$80,$E$80,IF(B88<$B$81,$E$81,IF(B88<$B$82,$E$82,$E$83 ) ) )) -> 0 | D88: 0.3
A89: 0.3 | B89: =0.06*$B$84 -> 355.02 | C89: 0 | D89: 0.3
A90: 0.3 | B90: =0.08*$B$84 -> 473.36 | C90: 0 | D90: 0.3
A91: 0.3 | B91: =0.1*$B$84 -> 591.7 | C91: 0 | D91: 0.3
A92: 0.3 | B92: =0.12*$B$84 -> 710.04 | C92: 0 | D92: 0.3
A93: 0.3 | B93: =0.14*$B$84 -> 828.38 | C93: 0 | D93: 0.3
A94: 0.3 | B94: =0.16*$B$84 -> 946.72 | C94: 0 | D94: 0.3
A95: 0.3 | B95: =0.18*$B$84 -> 1065.06 | C95: 0 | D95: 0.3
A96: 0.3 | B96: =0.2*$B$84 -> 1183.4 | C96: 0 | D96: 0.3
A97: 0.3 | B97: =0.22*$B$84 -> 1301.74 | C97: 0 | D97: 0.3
A98: 0.3 | B98: =0.24*$B$84 -> 1420.08 | C98: 0 | D98: 0.3
A99: 0.3 | B99: =0.26*$B$84 -> 1538.42 | C99: 0 | D99: 0.3
A100: 0.3 | B100: =0.28*$B$84 -> 1656.76 | C100: 0 | D100: 0.3
A101: 0.3 | B101: =0.3*$B$84 -> 1775.1 | C101: 0 | D101: 0.3
A102: 0.3 | B102: =0.32*$B$84 -> 1893.44 | C102: 0 | D102: 0.3
A103: 0.3 | B103: =0.34*$B$84 -> 2011.78 | C103: 0 | D103: 0.3
A104: 0.3 | B104: =0.36*$B$84 -> 2130.12 | C104: 0 | D104: 0.3
A105: 0.3 | B105: =0.38*$B$84 -> 2248.46 | C105: 0 | D105: 0.3
A106: 0.3 | B106: =0.4*$B$84 -> 2366.8 | C106: =IF(B106<$B$79,$E$79,IF(B106<$B$80,$E$80,IF(B106<$B$81,$E$81,IF(B106<$B$82,$E$82,$E$83 ) ) )) -> 0 | D106: =MIN(A106,$A$154) -> 0.3
A107: 0.3 | B107: =0.42*$B$84 -> 2485.14 | C107: =IF(B107<$B$79,$E$79,IF(B107<$B$80,$E$80,IF(B107<$B$81,$E$81,IF(B107<$B$82,$E$82,$E$83 ) ) )) -> 0 | D107: 0.3
A108: 0.3 | B108: =0.44*$B$84 -> 2603.48 | C108: 0 | D108: 0.3
A109: 0.3 | B109: =0.46*$B$84 -> 2721.82 | C109: 0 | D109: 0.3
A110: 0.3 | B110: =0.48*$B$84 -> 2840.16 | C110: 0 | D110: 0.3
A111: 0.3 | B111: =0.5*$B$84 -> 2958.5 | C111: 0 | D111: 0.3
A112: 0.29928996 | B112: =0.52*$B$84 -> 3076.84 | C112: -6e-06 | D112: 0.29928996
A113: 0.29857992 | B113: =0.54*$B$84 -> 3195.18 | C113: -6e-06 | D113: 0.29857992
A114: 0.29786988 | B114: =0.56*$B$84 -> 3313.52 | C114: -6e-06 | D114: 0.29786988
A115: 0.29715984 | B115: =0.58*$B$84 -> 3431.86 | C115: -6e-06 | D115: 0.29715984
A116: 0.2964498 | B116: =0.6*$B$84 -> 3550.2 | C116: -6e-06 | D116: 0.2964498
A117: 0.29573976 | B117: =0.62*$B$84 -> 3668.54 | C117: -6e-06 | D117: 0.29573976
A118: 0.29502972 | B118: =0.64*$B$84 -> 3786.88 | C118: -6e-06 | D118: 0.29502972
A119: 0.29431968 | B119: =0.66*$B$84 -> 3905.22 | C119: -6e-06 | D119: 0.29431968
A120: 0.29360964 | B120: =0.68*$B$84 -> 4023.56 | C120: -6e-06 | D120: 0.29360964
A121: 0.2928996 | B121: =0.7*$B$84 -> 4141.9 | C121: -6e-06 | D121: 0.2928996
A122: 0.29218956 | B122: =0.72*$B$84 -> 4260.24 | C122: -6e-06 | D122: 0.29218956
A123: 0.29147952 | B123: =0.74*$B$84 -> 4378.58 | C123: -6e-06 | D123: 0.29147952
A124: 0.29076948 | B124: =0.76*$B$84 -> 4496.92 | C124: -6e-06 | D124: 0.29076948
A125: 0.29005944 | B125: =0.78*$B$84 -> 4615.26 | C125: =IF(B125<$B$79,$E$79,IF(B125<$B$80,$E$80,IF(B125<$B$81,$E$81,IF(B125<$B$82,$E$82,$E$83 ) ) )) -> -6e-06 | D125: =MIN(A125,$A$154) -> 0.29005944
A126: 0.2893494 | B126: =0.8*$B$84 -> 4733.6 | C126: =IF(B126<$B$79,$E$79,IF(B126<$B$80,$E$80,IF(B126<$B$81,$E$81,IF(B126<$B$82,$E$82,$E$83 ) ) )) -> -6e-06 | D126: 0.2893494
A127: 0.28863936 | B127: =0.82*$B$84 -> 4851.94 | C127: -6e-06 | D127: 0.28863936
A128: 0.28792932 | B128: =0.84*$B$84 -> 4970.28 | C128: -6e-06 | D128: 0.28792932
A129: 0.28721928 | B129: =0.86*$B$84 -> 5088.62 | C129: -6e-06 | D129: 0.28721928
A130: 0.28650924 | B130: =0.88*$B$84 -> 5206.96 | C130: -6e-06 | D130: 0.28650924
A131: 0.2857992 | B131: =0.9*$B$84 -> 5325.3 | C131: -6e-06 | D131: 0.2857992
A132: 0.28508916 | B132: =0.92*$B$84 -> 5443.64 | C132: -6e-06 | D132: 0.28508916
A133: 0.28437912 | B133: =0.94*$B$84 -> 5561.98 | C133: -6e-06 | D133: 0.28437912
A134: 0.28366908 | B134: =0.96*$B$84 -> 5680.32 | C134: -6e-06 | D134: 0.28366908
A135: 0.28295904 | B135: =0.98*$B$84 -> 5798.66 | C135: -6e-06 | D135: 0.28295904
A136: =C84 -> 0.282498 | B136: =1*$B$73 -> 5917 | D136: 0.282498
A140: Rated
A141: M | B141: n | C141: =$C$2*1 -> 75
A142: =MIN(VLOOKUP(C141,C142:E148,2,FALSE),A154) -> 0.3 | B142: =VLOOKUP(C141,C142:E148,3,FALSE) -> 3000 | C142: 24 | D142: =IF(VLOOKUP($A$2,Motor!$A$9:$Y$1285,6,FALSE)=0,A78,VLOOKUP($A$2,Motor!$A$9:$Y$1285,6,FALSE)) -> 0.3 | E142: =IF(VLOOKUP($A$2,Motor!$A$9:$Y$1285,7,FALSE)=0,B78,VLOOKUP($A$2,Motor!$A$9:$Y$1285,7,FALSE)) -> 0 | F142: 6 | G142: 7
C143: 48 | D143: =IF(VLOOKUP($A$2,Motor!$A$9:$Y$1285,8,FALSE)=0,D142,VLOOKUP($A$2,Motor!$A$9:$Y$1285,8,FALSE)) -> 0.3 | E143: =IF(VLOOKUP($A$2,Motor!$A$9:$Y$1285,9,FALSE)=0,E142,VLOOKUP($A$2,Motor!$A$9:$Y$1285,9,FALSE)) -> 1500 | F143: 8 | G143: 9
C144: 75 | D144: =IF(VLOOKUP($A$2,Motor!$A$9:$Y$1285,10,FALSE)=0,D143,VLOOKUP($A$2,Motor!$A$9:$Y$1285,10,FALSE)) -> 0.3 | E144: =IF(VLOOKUP($A$2,Motor!$A$9:$Y$1285,11,FALSE)=0,E143,VLOOKUP($A$2,Motor!$A$9:$Y$1285,11,FALSE)) -> 3000 | F144: 10 | G144: 11
C145: 160 | D145: =IF(VLOOKUP($A$2,Motor!$A$9:$Y$1285,12,FALSE)=0,D144,VLOOKUP($A$2,Motor!$A$9:$Y$1285,12,FALSE)) -> 0.27 | E145: =IF(VLOOKUP($A$2,Motor!$A$9:$Y$1285,13,FALSE)=0,E144,VLOOKUP($A$2,Motor!$A$9:$Y$1285,13,FALSE)) -> 8000 | F145: 12 | G145: 13
C146: 320 | D146: =IF(VLOOKUP($A$2,Motor!$A$9:$Y$1285,14,FALSE)=0,D145,VLOOKUP($A$2,Motor!$A$9:$Y$1285,14,FALSE)) -> 0.27 | E146: =IF(VLOOKUP($A$2,Motor!$A$9:$Y$1285,15,FALSE)=0,E145,VLOOKUP($A$2,Motor!$A$9:$Y$1285,15,FALSE)) -> 8000 | F146: 14 | G146: 15
C147: 560 | D147: =IF(VLOOKUP($A$2,Motor!$A$9:$Y$1285,16,FALSE)=0,D146,VLOOKUP($A$2,Motor!$A$9:$Y$1285,16,FALSE)) -> 0.27 | E147: =IF(VLOOKUP($A$2,Motor!$A$9:$Y$1285,17,FALSE)=0,E146,VLOOKUP($A$2,Motor!$A$9:$Y$1285,17,FALSE)) -> 8000
A148: I peak | C148: 640 | D148: =IF(VLOOKUP($A$2,Motor!$A$9:$Y$1285,18,FALSE)=0,D147,VLOOKUP($A$2,Motor!$A$9:$Y$1285,18,FALSE)) -> 0.27 | E148: =IF(VLOOKUP($A$2,Motor!$A$9:$Y$1285,19,FALSE)=0,E147,VLOOKUP($A$2,Motor!$A$9:$Y$1285,19,FALSE)) -> 8000
A149: =A14*MAX(($G$10/$H$10-($G$10/$H$10-$I$10/$D$10)/$D$10*A14),$I$10/$D$10) -> 0.9093318794 | B149: 0
A150: =A149 -> 0.9093318794 | B150: =B71*1.05 -> 7579.32
A153: I rms
A154: =B13*MAX(($G$10/$H$10-($G$10/$H$10-$I$10/$D$10)/$D$10*B13),I10/D10) -> 0.3216251108 | B154: 0
A155: =A154 -> 0.3216251108 | B155: =B71*1.05 -> 7579.32

Sheet Calc2 (hidden)
A1: Motor Nr | B1: Drive Nr | C1: DC-Voltage | F1: =Calc!F1 -> AC | G1: =Calc!G1 -> DC | K1: =Calc!K1 -> Drives | L1: =Calc!L1 -> AC-Voltage | M1: =Calc!M1 -> Icont | N1: =Calc!N1 -> Ipeak | O1: =Calc!O1 -> SFD Unterstützung?
A2: AKM11E | B2: =Calc!B2 -> Servostar 303 | C2: =Calc!C2 -> 75 | E2: =Calc!E2 -> 2 | F2: =Calc!F2 -> 16.97056275 | G2: =Calc!G2 -> 24 | K2: =Calc!K2 -> Servostar 303 | L2: =Calc!L2 -> 230 | M2: =Calc!M2 -> 3 | N2: =Calc!N2 -> 9 | O2: =Calc!O2 -> Nein
B3: =Calc!B3 -> V < 75V | C3: =Calc!C3 -> FALSE | F3: =Calc!F3 -> 33.9411255 | G3: =Calc!G3 -> 48 | K3: =Calc!K3 -> Servostar 306 | L3: =Calc!L3 -> 230 | M3: =Calc!M3 -> 6 | N3: =Calc!N3 -> 15 | O3: =Calc!O3 -> Nein
F4: =Calc!F4 -> 53.03300859 | G4: =Calc!G4 -> 75 | K4: =Calc!K4 -> Servostar 310 | L4: =Calc!L4 -> 230 | M4: =Calc!M4 -> 10 | N4: =Calc!N4 -> 20 | O4: =Calc!O4 -> Nein
F5: =Calc!F5 -> 113.137085 | G5: =Calc!G5 -> 160 | K5: =Calc!K5 -> Servostar 341 | L5: =Calc!L5 -> 480 | M5: =Calc!M5 -> 1.5 | N5: =Calc!N5 -> 4.5 | O5: =Calc!O5 -> Nein
F6: =Calc!F6 -> 226.27417 | G6: =Calc!G6 -> 320 | K6: =Calc!K6 -> Servostar 343 | L6: =Calc!L6 -> 480 | M6: =Calc!M6 -> 3 | N6: =Calc!N6 -> 7.5 | O6: =Calc!O6 -> Nein
F7: =Calc!F7 -> 395.9797975 | G7: =Calc!G7 ->  | K7: =Calc!K7 -> Servostar 346 | L7: =Calc!L7 -> 480 | M7: =Calc!M7 -> 6 | N7: =Calc!N7 -> 12 | O7: =Calc!O7 -> Nein
A8: Motor | F8: =Calc!F8 -> 452.54834 | G8: =Calc!G8 ->  | K8: =Calc!K8 -> Servostar 403M/A | L8: =Calc!L8 -> 230 | M8: =Calc!M8 -> 3 | N8: =Calc!N8 -> 9 | O8: =Calc!O8 -> Nein
A9: r | B9: l | C9: ke | D9: Ipeak | E9: poles | F9: nmax | G9: Mo | H9: Io | I9: Mpeak | K9: =Calc!K9 -> Servostar 406M/A | L9: =Calc!L9 -> 230 | M9: =Calc!M9 -> 6 | N9: =Calc!N9 -> 12 | O9: =Calc!O9 -> Nein
A10: =IF(C3=TRUE,VLOOKUP($A$2,Motor!$A$9:$Y$1285,22,FALSE)*1.4,VLOOKUP($A$2,Motor!$A$9:$Y$1285,22,FALSE)) -> 3.3 | B10: =VLOOKUP($A$2,Motor!$A$9:$Y$477,23,FALSE) -> 2.04 | C10: =VLOOKUP($A$2,Motor!$A$9:$Y$477,24,FALSE) -> 4.1 | D10: =VLOOKUP($A$2,Motor!$A$9:$Y$477,3,FALSE) -> 11.6 | E10: =VLOOKUP($A$2,Motor!$A$9:$Y$477,25,FALSE) -> 6 | F10: =VLOOKUP($A$2,Motor!$A$9:$Y$477,20,FALSE) -> 8000 | G10: =VLOOKUP($A$2,Motor!$A$9:$Y$477,4,FALSE) -> 0.19 | H10: =VLOOKUP($A$2,Motor!$A$9:$Y$477,5,FALSE) -> 2.91 | I10: =VLOOKUP($A$2,Motor!$A$9:$Y$477,2,FALSE) -> 0.61 | K10: =Calc!K10 -> Servostar 443M/403A | L10: =Calc!L10 -> 400 | M10: =Calc!M10 -> 3 | N10: =Calc!N10 -> 9 | O10: =Calc!O10 -> Nein
A11: Drive | G11: =G10/H10 -> 0.06529209622 | I11: =I10/D10 -> 0.0525862069 | K11: =Calc!K11 -> Servostar 446M/406A | L11: =Calc!L11 -> 400 | M11: =Calc!M11 -> 6 | N11: =Calc!N11 -> 12 | O11: =Calc!O11 -> Nein
A12: I peak | B12: I rms | K12: =Calc!K12 -> Servostar 601 | L12: =Calc!L12 -> 480 | M12: =Calc!M12 -> 1.5 | N12: =Calc!N12 -> 3 | O12: =Calc!O12 -> Nein
A13: =VALUE(VLOOKUP($B$2,$K$2:$N$43,4,FALSE)) -> 9 | B13: =VALUE(VLOOKUP($B$2,$K$2:$N$43,3,FALSE)) -> 3 | K13: =Calc!K13 -> Servostar 603 | L13: =Calc!L13 -> 480 | M13: =Calc!M13 -> 3 | N13: =Calc!N13 -> 6 | O13: =Calc!O13 -> Nein
A14: =VALUE(VLOOKUP($B$2,$K$2:$N$43,4,FALSE)) -> 9 | K14: =Calc!K14 -> Servostar 606 | L14: =Calc!L14 -> 480 | M14: =Calc!M14 -> 6 | N14: =Calc!N14 -> 12 | O14: =Calc!O14 -> Nein
A15: A - U 18 | B15: 19 | C15: 20 | D15: 3 | E15: 21 | F15: 16 | G15: 4 | H15: 5 | I15: 2 | K15: =Calc!K15 -> Servostar 610 | L15: =Calc!L15 -> 480 | M15: =Calc!M15 -> 10 | N15: =Calc!N15 -> 20 | O15: =Calc!O15 -> Nein
K16: =Calc!K16 -> Servostar 610/30 | L16: =Calc!L16 -> 480 | M16: =Calc!M16 -> 10 | N16: =Calc!N16 -> 30 | O16: =Calc!O16 -> Nein
K17: =Calc!K17 -> Servostar 614 | L17: =Calc!L17 -> 480 | M17: =Calc!M17 -> 14 | N17: =Calc!N17 -> 28 | O17: =Calc!O17 -> Nein
A18: Cyclic duty | K18: =Calc!K18 -> Servostar 620 | L18: =Calc!L18 -> 480 | M18: =Calc!M18 -> 20 | N18: =Calc!N18 -> 40 | O18: =Calc!O18 -> Nein
A19: M | B19: n | C19: a | D19: b | E19: c | F19: speed | G19: Ipeak | H19: Kt | I19: Error_1 | K19: =Calc!K19 -> Servostar 640 | L19: =Calc!L19 -> 480 | M19: =Calc!M19 -> 40 | N19: =Calc!N19 -> 80 | O19: =Calc!O19 -> Nein | T19: Answer_1 | U19: Answer_2
A20: =VLOOKUP(FALSE,I21:U71,12,0) -> 0.4989067078 | B20: =IF(I21,VLOOKUP(FALSE,I21:U71,13,0),0) -> 0 | K20: =Calc!K20 -> Servostar 670 | L20: =Calc!L20 -> 480 | M20: =Calc!M20 -> 70 | N20: =Calc!N20 -> 140 | O20: =Calc!O20 -> Nein
A21: =IF(I21,$A$20,G21*($G$10/$H$10-($G$10/$H$10-$I$10/$D$10)/$D$10*G21)) -> 0.4989067078 | B21: =IF(I21,$B$20,MAX(MIN(F21,$F$10),0)) -> 4905.5 | C21: =($C$10^2)/1000000+(($B$10/1000)^2*G21^2*PI()*PI()*($E$10/2)^2)/1200 -> 4.17620575e-05 | D21: =SQRT(3)*$C$10*$A$10*G21/1000 -> 0.2109118268 | E21: =0.75*$A$10^2*G21^2-($C$2/SQRT(2)*0.98)^2 -> -2039.5575 | F21: =ROUND((-D21/2/C21+SQRT((D21/2/C21)^2-E21/C21)),1) -> 4905.5 | G21: =MIN($D$10,$A$13)*1 -> 9 | H21: =A21/G21 -> 0.05543407864 | I21: =OR(IF(ISERROR(F21),TRUE,FALSE),IFERROR(IF(F21<0,TRUE,FALSE),TRUE)) -> FALSE | K21: =Calc!K21 -> Servostar S20260 | L21: =Calc!L21 -> 230 | M21: =Calc!M21 -> 1.5 | N21: =Calc!N21 -> 4.5 | O21: =Calc!O21 -> Ja | T21: =A21 -> 0.4989067078 | U21: =B21 -> 4905.5
A22: =IF(I22,$A$20,G22*($G$10/$H$10-($G$10/$H$10-$I$10/$D$10)/$D$10*G22)) -> 0.4906675279 | B22: =IF(I22,$B$20,MAX(MIN(F22,$F$10),0)) -> 5021 | C22: 4.077395602e-05 | D22: 0.2066935903 | E22: -2065.755573 | F22: =ROUND((-D22/2/C22+SQRT((D22/2/C22)^2-E22/C22)),1) -> 5021 | G22: =MIN($D$10,$A$13)*0.98 -> 8.82 | H22: 0.05563123899 | I22: =OR(IF(ISERROR(F22),TRUE,FALSE),IFERROR(IF(F22<0,TRUE,FALSE),TRUE)) -> FALSE | K22: =Calc!K22 -> Servostar S20360 | L22: =Calc!L22 -> 230 | M22: =Calc!M22 -> 3 | N22: =Calc!N22 -> 9 | O22: =Calc!O22 -> Ja | T22: =A22 -> 0.4906675279 | U22: =B22 -> 5021
A23: 0.4823573703 | B23: 5138.4 | C23: 3.980581619e-05 | D23: 0.2024753538 | E23: -2091.424392 | F23: 5138.4 | G23: =MIN($D$10,$A$13)*0.96 -> 8.64 | H23: 0.05582839934 | I23: FALSE | K23: =Calc!K23 -> Servostar S20330 | L23: =Calc!L23 -> 50 | M23: =Calc!M23 -> 3 | N23: =Calc!N23 -> 9 | O23: =Calc!O23 -> Ja | T23: 0.4823573703 | U23: 5138.4
A24: 0.473976235 | B24: 5257.7 | C24: 3.885763801e-05 | D24: 0.1982571172 | E24: -2116.563957 | F24: 5257.7 | G24: =MIN($D$10,$A$13)*0.94 -> 8.46 | H24: 0.0560255597 | I24: FALSE | K24: =Calc!K24 -> Servostar S20630 | L24: =Calc!L24 -> 50 | M24: =Calc!M24 -> 6 | N24: =Calc!N24 -> 18 | O24: =Calc!O24 -> Ja | T24: 0.473976235 | U24: 5257.7
A25: 0.465524122 | B25: 5379 | C25: 3.792942147e-05 | D25: 0.1940388807 | E25: -2141.174268 | F25: 5379 | G25: =MIN($D$10,$A$13)*0.92 -> 8.28 | H25: 0.05622272005 | I25: FALSE | K25: =Calc!K25 -> S 701 | L25: =Calc!L25 -> 480 | M25: =Calc!M25 -> 1.5 | N25: =Calc!N25 -> 4.5 | O25: =Calc!O25 -> Nein | T25: 0.465524122 | U25: 5379
A26: 0.4570010312 | B26: 5502.3 | C26: 3.702116657e-05 | D26: 0.1898206442 | E26: -2165.255325 | F26: 5502.3 | G26: =MIN($D$10,$A$13)*0.9 -> 8.1 | H26: 0.0564198804 | I26: FALSE | K26: =Calc!K26 -> S 703 | L26: =Calc!L26 -> 480 | M26: =Calc!M26 -> 3 | N26: =Calc!N26 -> 9 | O26: =Calc!O26 -> Nein | T26: 0.4570010312 | U26: 5502.3
A27: 0.4484069627 | B27: 5627.6 | C27: 3.613287333e-05 | D27: 0.1856024076 | E27: -2188.807128 | F27: 5627.6 | G27: =MIN($D$10,$A$13)*0.88 -> 7.92 | H27: 0.05661704075 | I27: FALSE | K27: =Calc!K27 -> S 706 | L27: =Calc!L27 -> 480 | M27: =Calc!M27 -> 6 | N27: =Calc!N27 -> 18 | O27: =Calc!O27 -> Nein | T27: 0.4484069627 | U27: 5627.6
A28: 0.4397419165 | B28: 5755 | C28: 3.526454173e-05 | D28: 0.1813841711 | E28: -2211.829677 | F28: 5755 | G28: =MIN($D$10,$A$13)*0.86 -> 7.74 | H28: 0.0568142011 | I28: FALSE | K28: =Calc!K28 -> S 712 | L28: =Calc!L28 -> 480 | M28: =Calc!M28 -> 12 | N28: =Calc!N28 -> 24 | O28: =Calc!O28 -> Nein | T28: 0.4397419165 | U28: 5755
A29: 0.4310058926 | B29: 5884.6 | C29: 3.441617177e-05 | D29: 0.1771659345 | E29: -2234.322972 | F29: 5884.6 | G29: =MIN($D$10,$A$13)*0.84 -> 7.56 | H29: 0.05701136145 | I29: FALSE | K29: =Calc!K29 -> S 712P | L29: =Calc!L29 -> 480 | M29: =Calc!M29 -> 12 | N29: =Calc!N29 -> 30 | O29: =Calc!O29 -> Nein | T29: 0.4310058926 | U29: 5884.6
A30: 0.4221988909 | B30: 6016.4 | C30: 3.358776346e-05 | D30: 0.172947698 | E30: -2256.287013 | F30: 6016.4 | G30: =MIN($D$10,$A$13)*0.82 -> 7.38 | H30: 0.05720852181 | I30: FALSE | K30: =Calc!K30 -> S 724 | L30: =Calc!L30 -> 480 | M30: =Calc!M30 -> 24 | N30: =Calc!N30 -> 48 | O30: =Calc!O30 -> Nein | T30: 0.4221988909 | U30: 6016.4
A31: 0.4133209115 | B31: 6150.4 | C31: 3.27793168e-05 | D31: 0.1687294615 | E31: -2277.7218 | F31: 6150.4 | G31: =MIN($D$10,$A$13)*0.8 -> 7.2 | H31: 0.05740568216 | I31: FALSE | K31: =Calc!K31 -> S 724P | L31: =Calc!L31 -> 480 | M31: =Calc!M31 -> 24 | N31: =Calc!N31 -> 72 | O31: =Calc!O31 -> Nein | T31: 0.4133209115 | U31: 6150.4
A32: 0.4043719544 | B32: 6286.8 | C32: 3.199083178e-05 | D32: 0.1645112249 | E32: -2298.627333 | F32: 6286.8 | G32: =MIN($D$10,$A$13)*0.78 -> 7.02 | H32: 0.05760284251 | I32: FALSE | K32: =Calc!K32 -> S 748 | L32: =Calc!L32 -> 480 | M32: =Calc!M32 -> 48 | N32: =Calc!N32 -> 96 | O32: =Calc!O32 -> Nein | T32: 0.4043719544 | U32: 6286.8
A33: 0.3953520196 | B33: 6425.4 | C33: 3.122230841e-05 | D33: 0.1602929884 | E33: -2319.003612 | F33: 6425.4 | G33: =MIN($D$10,$A$13)*0.76 -> 6.84 | H33: 0.05780000286 | I33: FALSE | K33: =Calc!K33 -> S 772 | L33: =Calc!L33 -> 480 | M33: =Calc!M33 -> 72 | N33: =Calc!N33 -> 140 | O33: =Calc!O33 -> Nein | T33: 0.3953520196 | U33: 6425.4
A34: 0.386261107 | B34: 6566.5 | C34: 3.047374669e-05 | D34: 0.1560747519 | E34: -2338.850637 | F34: 6566.5 | G34: =MIN($D$10,$A$13)*0.74 -> 6.66 | H34: 0.05799716321 | I34: FALSE | K34: =Calc!K34 -> AKD-x00306 | L34: =Calc!L34 -> 230 | M34: =Calc!M34 -> 3 | N34: =Calc!N34 -> 9 | O34: =Calc!O34 -> Ja | T34: 0.386261107 | U34: 6566.5
A35: 0.3770992167 | B35: 6709.9 | C35: 2.974514661e-05 | D35: 0.1518565153 | E35: -2358.168408 | F35: 6709.9 | G35: =MIN($D$10,$A$13)*0.72 -> 6.48 | H35: 0.05819432356 | I35: FALSE | K35: =Calc!K35 -> AKD-x00606 | L35: =Calc!L35 -> 230 | M35: =Calc!M35 -> 6 | N35: =Calc!N35 -> 18 | O35: =Calc!O35 -> Ja | T35: 0.3770992167 | U35: 6709.9
A36: 0.3678663487 | B36: 6855.8 | C36: 2.903650817e-05 | D36: 0.1476382788 | E36: -2376.956925 | F36: 6855.8 | G36: =MIN($D$10,$A$13)*0.7 -> 6.3 | H36: 0.05839148391 | I36: FALSE | K36: =Calc!K36 -> AKD-x01206 | L36: =Calc!L36 -> 230 | M36: =Calc!M36 -> 12 | N36: =Calc!N36 -> 30 | O36: =Calc!O36 -> Ja | T36: 0.3678663487 | U36: 6855.8
A37: 0.3585625029 | B37: 7004.1 | C37: 2.834783139e-05 | D37: 0.1434200422 | E37: -2395.216188 | F37: 7004.1 | G37: =MIN($D$10,$A$13)*0.68 -> 6.12 | H37: 0.05858864427 | I37: FALSE | K37: =Calc!K37 -> AKD-x02406 | L37: =Calc!L37 -> 230 | M37: =Calc!M37 -> 24 | N37: =Calc!N37 -> 48 | O37: =Calc!O37 -> Ja | T37: 0.3585625029 | U37: 7004.1
A38: 0.3491876794 | B38: 7154.9 | C38: 2.767911625e-05 | D38: 0.1392018057 | E38: -2412.946197 | F38: 7154.9 | G38: =MIN($D$10,$A$13)*0.66 -> 5.94 | H38: 0.05878580462 | I38: FALSE | K38: =Calc!K38 -> AKD-x00307 | L38: =Calc!L38 -> 480 | M38: =Calc!M38 -> 3 | N38: =Calc!N38 -> 9 | O38: =Calc!O38 -> Ja | T38: 0.3491876794 | U38: 7154.9
A39: 0.3397418782 | B39: 7308.2 | C39: 2.703036275e-05 | D39: 0.1349835692 | E39: -2430.146952 | F39: 7308.2 | G39: =MIN($D$10,$A$13)*0.64 -> 5.76 | H39: 0.05898296497 | I39: FALSE | K39: =Calc!K39 -> AKD-x00607 | L39: =Calc!L39 -> 480 | M39: =Calc!M39 -> 6 | N39: =Calc!N39 -> 18 | O39: =Calc!O39 -> Ja | T39: 0.3397418782 | U39: 7308.2
A40: 0.3302250993 | B40: 7463.8 | C40: 2.64015709e-05 | D40: 0.1307653326 | E40: -2446.818453 | F40: 7463.8 | G40: =MIN($D$10,$A$13)*0.62 -> 5.58 | H40: 0.05918012532 | I40: FALSE | K40: =Calc!K40 -> AKD-x01207 | L40: =Calc!L40 -> 480 | M40: =Calc!M40 -> 12 | N40: =Calc!N40 -> 30 | O40: =Calc!O40 -> Ja | T40: 0.3302250993 | U40: 7463.8
A41: 0.3206373426 | B41: 7622 | C41: 2.57927407e-05 | D41: 0.1265470961 | E41: -2462.9607 | F41: 7622 | G41: =MIN($D$10,$A$13)*0.6 -> 5.4 | H41: 0.05937728567 | I41: FALSE | K41: =Calc!K41 -> AKD-x02407 | L41: =Calc!L41 -> 480 | M41: =Calc!M41 -> 24 | N41: =Calc!N41 -> 48 | O41: =Calc!O41 -> Ja | T41: 0.3206373426 | U41: 7622
A42: 0.3109786082 | B42: 7782.5 | C42: 2.520387214e-05 | D42: 0.1223288596 | E42: -2478.573693 | F42: 7782.5 | G42: =MIN($D$10,$A$13)*0.58 -> 5.22 | H42: 0.05957444602 | I42: FALSE | K42: =Calc!K42 -> other drive | L42: =Calc!L42 -> 480 | M42: =Calc!M42 -> 5 | N42: =Calc!N42 -> 10 | O42: =Calc!O42 -> Nein | T42: 0.3109786082 | U42: 7782.5
A43: 0.3012488961 | B43: 7945.5 | C43: 2.463496523e-05 | D43: 0.118110623 | E43: -2493.657432 | F43: 7945.5 | G43: =MIN($D$10,$A$13)*0.56 -> 5.04 | H43: 0.05977160638 | I43: FALSE | K43: =Calc!K43 -> max. | L43: =Calc!L43 -> 480 | M43: =Calc!M43 -> 1000 | N43: =Calc!N43 -> 1000 | O43: =Calc!O43 -> Nein | T43: 0.3012488961 | U43: 7945.5
A44: 0.2914482063 | B44: 8000 | C44: 2.408601997e-05 | D44: 0.1138923865 | E44: -2508.211917 | F44: 8110.7 | G44: =MIN($D$10,$A$13)*0.54 -> 4.86 | H44: 0.05996876673 | I44: FALSE | K44: =Calc!K44 -> S 131xx 5A 230V | L44: =Calc!L44 -> 230 V | M44: =Calc!M44 -> 5 | N44: =Calc!N44 -> 10 | O44: =Calc!O44 -> Nein | T44: 0.2914482063 | U44: 8000
A45: 0.2815765387 | B45: 8000 | C45: 2.355703635e-05 | D45: 0.10967415 | E45: -2522.237148 | F45: 8278.2 | G45: =MIN($D$10,$A$13)*0.52 -> 4.68 | H45: 0.06016592708 | I45: FALSE | K45: =Calc!K45 -> S 132xx 10A 480V | L45: =Calc!L45 -> 480 | M45: =Calc!M45 -> 10 | N45: =Calc!N45 -> 20 | O45: =Calc!O45 -> Nein | T45: 0.2815765387 | U45: 8000
A46: 0.2716338934 | B46: 8000 | C46: 2.304801437e-05 | D46: 0.1054559134 | E46: -2535.733125 | F46: 8447.9 | G46: =MIN($D$10,$A$13)*0.5 -> 4.5 | H46: 0.06036308743 | I46: FALSE | K46: =Calc!K46 -> S 132xx 15A 480V | L46: =Calc!L46 -> 480 | M46: =Calc!M46 -> 15 | N46: =Calc!N46 -> 30 | O46: =Calc!O46 -> Nein | T46: 0.2716338934 | U46: 8000
A47: 0.2616202704 | B47: 8000 | C47: 2.255895405e-05 | D47: 0.1012376769 | E47: -2548.699848 | F47: 8619.6 | G47: =MIN($D$10,$A$13)*0.48 -> 4.32 | H47: 0.06056024778 | I47: FALSE | K47: =Calc!K47 -> S 132xx 20A 480V | L47: =Calc!L47 -> 480 | M47: =Calc!M47 -> 20 | N47: =Calc!N47 -> 40 | O47: =Calc!O47 -> Nein | T47: 0.2616202704 | U47: 8000
A48: 0.2515356697 | B48: 8000 | C48: 2.208985537e-05 | D48: 0.09701944035 | E48: -2561.137317 | F48: 8793.3 | G48: =MIN($D$10,$A$13)*0.46 -> 4.14 | H48: 0.06075740813 | I48: FALSE | K48: =Calc!K48 -> 0 | L48: =Calc!L48 -> 0 | M48: =Calc!M48 -> 0 | N48: =Calc!N48 -> 0 | O48: =Calc!O48 -> 0 | T48: 0.2515356697 | U48: 8000
A49: 0.2413800912 | B49: 8000 | C49: 2.164071833e-05 | D49: 0.09280120381 | E49: -2573.045532 | F49: 8968.7 | G49: =MIN($D$10,$A$13)*0.44 -> 3.96 | H49: 0.06095456849 | I49: FALSE | K49: =Calc!K49 -> 0 | L49: =Calc!L49 -> 0 | M49: =Calc!M49 -> 0 | N49: =Calc!N49 -> 0 | O49: =Calc!O49 -> 0 | T49: 0.2413800912 | U49: 8000
A50: 0.231153535 | B50: 8000 | C50: 2.121154294e-05 | D50: 0.08858296727 | E50: -2584.424493 | F50: 9145.8 | G50: =MIN($D$10,$A$13)*0.42 -> 3.78 | H50: 0.06115172884 | I50: FALSE | T50: 0.231153535 | U50: 8000
A51: 0.2208560011 | B51: 8000 | C51: 2.08023292e-05 | D51: 0.08436473074 | E51: -2595.2742 | F51: 9324.4 | G51: =MIN($D$10,$A$13)*0.399999999999999 -> 3.6 | H51: 0.06134888919 | I51: FALSE | T51: 0.2208560011 | U51: 8000
A52: 0.2104874894 | B52: 8000 | C52: 2.04130771e-05 | D52: 0.0801464942 | E52: -2605.594653 | F52: 9504.1 | G52: =MIN($D$10,$A$13)*0.379999999999999 -> 3.42 | H52: 0.06154604954 | I52: FALSE | T52: 0.2104874894 | U52: 8000
A53: 0.200048 | B53: 8000 | C53: =($C$10^2)/1000000+(($B$10/1000)^2*G53^2*PI()*PI()*($E$10/2)^2)/1200 -> 2.004378665e-05 | D53: =SQRT(3)*$C$10*$A$10*G53/1000 -> 0.07592825766 | E53: =0.75*$A$10^2*G53^2-($C$2/SQRT(2)*0.98)^2 -> -2615.385852 | F53: 9684.8 | G53: =MIN($D$10,$A$13)*0.359999999999999 -> 3.24 | H53: =A53/G53 -> 0.06174320989 | I53: FALSE | T53: 0.200048 | U53: 8000
A54: 0.1895375329 | B54: 8000 | C54: 1.969445785e-05 | D54: 0.07171002112 | E54: -2624.647797 | F54: 9866.3 | G54: =MIN($D$10,$A$13)*0.339999999999999 -> 3.06 | H54: 0.06194037024 | I54: FALSE | T54: 0.1895375329 | U54: 8000
A55: 0.1789560881 | B55: 8000 | C55: 1.936509069e-05 | D55: 0.06749178459 | E55: -2633.380488 | F55: 10048.2 | G55: =MIN($D$10,$A$13)*0.319999999999999 -> 2.88 | H55: 0.06213753059 | I55: FALSE | T55: 0.1789560881 | U55: 8000
A56: 0.1683036656 | B56: 8000 | C56: 1.905568517e-05 | D56: 0.06327354805 | E56: -2641.583925 | F56: 10230.1 | G56: =MIN($D$10,$A$13)*0.299999999999999 -> 2.7 | H56: 0.06233469095 | I56: FALSE | T56: 0.1683036656 | U56: 8000
A57: 0.1575802653 | B57: 8000 | C57: 1.876624131e-05 | D57: 0.05905531151 | E57: -2649.258108 | F57: 10411.8 | G57: =MIN($D$10,$A$13)*0.279999999999999 -> 2.52 | H57: 0.0625318513 | I57: FALSE | T57: 0.1575802653 | U57: 8000
A58: 0.1467858873 | B58: 8000 | C58: 1.849675909e-05 | D58: 0.05483707498 | E58: -2656.403037 | F58: 10592.9 | G58: =MIN($D$10,$A$13)*0.259999999999999 -> 2.34 | H58: 0.06272901165 | I58: FALSE | T58: 0.1467858873 | U58: 8000
A59: 0.1359205315 | B59: 8000 | C59: 1.824723851e-05 | D59: 0.05061883844 | E59: -2663.018712 | F59: 10772.9 | G59: =MIN($D$10,$A$13)*0.239999999999999 -> 2.16 | H59: 0.062926172 | I59: FALSE | T59: 0.1359205315 | U59: 8000
A60: 0.1249841981 | B60: 8000 | C60: 1.801767958e-05 | D60: 0.0464006019 | E60: -2669.105133 | F60: 10951.5 | G60: =MIN($D$10,$A$13)*0.219999999999999 -> 1.98 | H60: 0.06312333235 | I60: FALSE | T60: 0.1249841981 | U60: 8000
A61: 0.1139768869 | B61: 8000 | C61: 1.78080823e-05 | D61: 0.04218236537 | E61: -2674.6623 | F61: 11128.1 | G61: =MIN($D$10,$A$13)*0.199999999999999 -> 1.8 | H61: 0.0633204927 | I61: FALSE | T61: 0.1139768869 | U61: 8000
A62: 0.102898598 | B62: 8000 | C62: 1.761844666e-05 | D62: 0.03796412883 | E62: -2679.690213 | F62: 11302.3 | G62: =MIN($D$10,$A$13)*0.179999999999999 -> 1.62 | H62: 0.06351765306 | I62: FALSE | T62: 0.102898598 | U62: 8000
A63: 0.09174933131 | B63: 8000 | C63: 1.744877267e-05 | D63: 0.03374589229 | E63: -2684.188872 | F63: 11473.6 | G63: =MIN($D$10,$A$13)*0.159999999999999 -> 1.44 | H63: 0.06371481341 | I63: FALSE | T63: 0.09174933131 | U63: 8000
A64: 0.08052908694 | B64: 8000 | C64: 1.729906033e-05 | D64: 0.02952765576 | E64: -2688.158277 | F64: 11641.4 | G64: =MIN($D$10,$A$13)*0.139999999999999 -> 1.26 | H64: 0.06391197376 | I64: FALSE | T64: 0.08052908694 | U64: 8000
A65: 0.06923786484 | B65: 8000 | C65: 1.716930963e-05 | D65: 0.02530941922 | E65: -2691.598428 | F65: 11805.3 | G65: =MIN($D$10,$A$13)*0.119999999999999 -> 1.08 | H65: 0.06410913411 | I65: FALSE | T65: 0.06923786484 | U65: 8000
A66: 0.05787566502 | B66: 8000 | C66: 1.705952057e-05 | D66: 0.02109118268 | E66: -2694.509325 | F66: 11964.7 | G66: =MIN($D$10,$A$13)*0.099999999999999 -> 0.9 | H66: 0.06430629446 | I66: FALSE | T66: 0.05787566502 | U66: 8000
A67: 0.04644248747 | B67: 8000 | C67: 1.696969317e-05 | D67: 0.01687294615 | E67: -2696.890968 | F67: 12119.2 | G67: =MIN($D$10,$A$13)*0.079999999999999 -> 0.72 | H67: 0.06450345481 | I67: FALSE | T67: 0.04644248747 | U67: 8000
A68: 0.03493833219 | B68: 8000 | C68: 1.689982741e-05 | D68: 0.01265470961 | E68: -2698.743357 | F68: 12268 | G68: =MIN($D$10,$A$13)*0.0599999999999989 -> 0.54 | H68: 0.06470061517 | I68: FALSE | T68: 0.03493833219 | U68: 8000
A69: 0.02336319919 | B69: 8000 | C69: 1.684992329e-05 | D69: 0.008436473074 | E69: -2700.066492 | F69: 12410.8 | G69: =MIN($D$10,$A$13)*0.039999999999999 -> 0.36 | H69: 0.06489777552 | I69: FALSE | T69: 0.02336319919 | U69: 8000
A70: 0.01171708846 | B70: 8000 | C70: 1.681998082e-05 | D70: 0.004218236537 | E70: -2700.860373 | F70: 12547 | G70: =MIN($D$10,$A$13)*0.019999999999999 -> 0.18 | H70: 0.06509493587 | I70: FALSE | T70: 0.01171708846 | U70: 8000
A71: 0 | B71: 8000 | C71: 1.681e-05 | D71: 0 | E71: -2701.125 | F71: 12676.2 | G71: =MIN($D$10,$A$13)*0 -> 0 | I71: FALSE | T71: 0 | U71: 8000
B73: =MAX(MIN(F73,$F$10),0) -> 8000 | C73: =($C$10^2)/1000000+(($B$10/1000)^2*G73^2*PI()*PI()*($E$10/2)^2)/1200 -> 1.915123566e-05 | D73: =SQRT(3)*$C$10*$A$10*G73/1000 -> 0.06460562275 | E73: =0.75*$A$10^2*G73^2-($C$2/SQRT(2)*0.98)^2 -> -2639.050543 | F73: =ROUND((-D73/2/C73+SQRT((D73/2/C73)^2-E73/C73)),0) -> 10173 | G73: =MIN(B13,H10/G10*C83) -> 2.756842105
A76: S1
A77: M | B77: n
A78: =IF(D78>$B$71,"",C78) -> 0.19 | B78: =IF(D78>$B$71,"",D78) -> 0 | C78: =G10 -> 0.19 | D78: 0 | E78: 0 | F78: =MIN(A78,$A$154) -> 0.1860182711
A79: =IF(D79>$B$71,A78,C79) -> 0.19 | B79: =IF(D79>$B$71,B78,D79) -> 0 | C79: =IF(VLOOKUP($A$2,Motorenmatrix,6,FALSE)=0,C78,VLOOKUP($A$2,Motorenmatrix,6,FALSE)) -> 0.19 | D79: =IF(VLOOKUP($A$2,Motorenmatrix,7,FALSE)=0,D78,VLOOKUP($A$2,Motorenmatrix,7,FALSE)) -> 0 | E79: =IF(D79-D78=0,E78,(C79-C78)/(D79-D78)) -> 0 | F79: 0.1860182711
A80: =IF(D80>$B$71,A79,C80) -> 0.19 | B80: =IF(D80>$B$71,B79,D80) -> 0 | C80: =IF(VLOOKUP($A$2,Motorenmatrix,8,FALSE)=0,C79,VLOOKUP($A$2,Motorenmatrix,8,FALSE)) -> 0.19 | D80: =IF(VLOOKUP($A$2,Motorenmatrix,9,FALSE)=0,D79,VLOOKUP($A$2,Motorenmatrix,9,FALSE)) -> 0 | E80: =IF(D80-D79=0,E79,(C80-C79)/(D80-D79)) -> 0 | F80: 0.1860182711
A81: =IF(D81>$B$71,A80,C81) -> 0.18 | B81: =IF(D81>$B$71,B80,D81) -> 6000 | C81: =IF(VLOOKUP($A$2,Motorenmatrix,10,FALSE)=0,C80,VLOOKUP($A$2,Motorenmatrix,10,FALSE)) -> 0.18 | D81: =IF(VLOOKUP($A$2,Motorenmatrix,11,FALSE)=0,D80,VLOOKUP($A$2,Motorenmatrix,11,FALSE)) -> 6000 | E81: =IF(D81-D80=0,E80,(C81-C80)/(D81-D80)) -> -1.666666667e-06 | F81: 0.18
A82: =IF(D82>$B$71,A81,C82) -> 0.18 | B82: =IF(D82>$B$71,B81,D82) -> 6000 | C82: =IF(VLOOKUP($A$2,Motorenmatrix,12,FALSE)=0,C81,VLOOKUP($A$2,Motorenmatrix,12,FALSE)) -> 0.18 | D82: =IF(VLOOKUP($A$2,Motorenmatrix,13,FALSE)=0,D81,VLOOKUP($A$2,Motorenmatrix,13,FALSE)) -> 6000 | E82: =IF(D82-D81=0,E81,(C82-C81)/(D82-D81)) -> -1.666666667e-06 | F82: 0.18
A83: =IF(D83>$B$71,A82,C83) -> 0.18 | B83: =IF(D83>$B$71,B82,D83) -> 6000 | C83: =IF(VLOOKUP($A$2,Motorenmatrix,14,FALSE)=0,C82,VLOOKUP($A$2,Motorenmatrix,14,FALSE)) -> 0.18 | D83: =IF(VLOOKUP($A$2,Motorenmatrix,15,FALSE)=0,D82,VLOOKUP($A$2,Motorenmatrix,15,FALSE)) -> 6000 | E83: =IF(D83-D82=0,E82,(C83-C82)/(D83-D82)) -> -1.666666667e-06 | F83: 0.18
A84: =A83+(B84-B83)*E83 -> 0.1766666667 | B84: =B73 -> 8000 | C84: =A83+(B84-B83)*E83 -> 0.1766666667 | F84: 0.1766666667
A86: =C78 -> 0.19 | B86: 0 | D86: =MIN(A86,$A$154) -> 0.1860182711
A87: =A86+(B87-B86)*C87 -> 0.1897333333 | B87: =0.02*$B$84 -> 160 | C87: =IF(B87<$B$79,$E$79,IF(B87<$B$80,$E$80,IF(B87<$B$81,$E$81,IF(B87<$B$82,$E$82,$E$83 ) ) )) -> -1.666666667e-06 | D87: 0.1860182711
A88: =A87+(B88-B87)*C88 -> 0.1894666667 | B88: =0.04*$B$84 -> 320 | C88: =IF(B88<$B$79,$E$79,IF(B88<$B$80,$E$80,IF(B88<$B$81,$E$81,IF(B88<$B$82,$E$82,$E$83 ) ) )) -> -1.666666667e-06 | D88: 0.1860182711
A89: 0.1892 | B89: =0.06*$B$84 -> 480 | C89: -1.666666667e-06 | D89: 0.1860182711
A90: 0.1889333333 | B90: =0.08*$B$84 -> 640 | C90: -1.666666667e-06 | D90: 0.1860182711
A91: 0.1886666667 | B91: =0.1*$B$84 -> 800 | C91: -1.666666667e-06 | D91: 0.1860182711
A92: 0.1884 | B92: =0.12*$B$84 -> 960 | C92: -1.666666667e-06 | D92: 0.1860182711
A93: 0.1881333333 | B93: =0.14*$B$84 -> 1120 | C93: -1.666666667e-06 | D93: 0.1860182711
A94: 0.1878666667 | B94: =0.16*$B$84 -> 1280 | C94: -1.666666667e-06 | D94: 0.1860182711
A95: 0.1876 | B95: =0.18*$B$84 -> 1440 | C95: -1.666666667e-06 | D95: 0.1860182711
A96: 0.1873333333 | B96: =0.2*$B$84 -> 1600 | C96: -1.666666667e-06 | D96: 0.1860182711
A97: 0.1870666667 | B97: =0.22*$B$84 -> 1760 | C97: -1.666666667e-06 | D97: 0.1860182711
A98: 0.1868 | B98: =0.24*$B$84 -> 1920 | C98: -1.666666667e-06 | D98: 0.1860182711
A99: 0.1865333333 | B99: =0.26*$B$84 -> 2080 | C99: -1.666666667e-06 | D99: 0.1860182711
A100: 0.1862666667 | B100: =0.28*$B$84 -> 2240 | C100: -1.666666667e-06 | D100: 0.1860182711
A101: 0.186 | B101: =0.3*$B$84 -> 2400 | C101: -1.666666667e-06 | D101: 0.186
A102: 0.1857333333 | B102: =0.32*$B$84 -> 2560 | C102: -1.666666667e-06 | D102: 0.1857333333
A103: 0.1854666667 | B103: =0.34*$B$84 -> 2720 | C103: -1.666666667e-06 | D103: 0.1854666667
A104: 0.1852 | B104: =0.36*$B$84 -> 2880 | C104: -1.666666667e-06 | D104: 0.1852
A105: 0.1849333333 | B105: =0.38*$B$84 -> 3040 | C105: -1.666666667e-06 | D105: 0.1849333333
A106: 0.1846666667 | B106: =0.4*$B$84 -> 3200 | C106: -1.666666667e-06 | D106: 0.1846666667
A107: 0.1844 | B107: =0.42*$B$84 -> 3360 | C107: -1.666666667e-06 | D107: 0.1844
A108: 0.1841333333 | B108: =0.44*$B$84 -> 3520 | C108: -1.666666667e-06 | D108: 0.1841333333
A109: 0.1838666667 | B109: =0.46*$B$84 -> 3680 | C109: -1.666666667e-06 | D109: 0.1838666667
A110: 0.1836 | B110: =0.48*$B$84 -> 3840 | C110: -1.666666667e-06 | D110: 0.1836
A111: 0.1833333333 | B111: =0.5*$B$84 -> 4000 | C111: -1.666666667e-06 | D111: 0.1833333333
A112: 0.1830666667 | B112: =0.52*$B$84 -> 4160 | C112: -1.666666667e-06 | D112: 0.1830666667
A113: 0.1828 | B113: =0.54*$B$84 -> 4320 | C113: -1.666666667e-06 | D113: 0.1828
A114: 0.1825333333 | B114: =0.56*$B$84 -> 4480 | C114: -1.666666667e-06 | D114: 0.1825333333
A115: 0.1822666667 | B115: =0.58*$B$84 -> 4640 | C115: -1.666666667e-06 | D115: 0.1822666667
A116: 0.182 | B116: =0.6*$B$84 -> 4800 | C116: -1.666666667e-06 | D116: 0.182
A117: 0.1817333333 | B117: =0.62*$B$84 -> 4960 | C117: -1.666666667e-06 | D117: 0.1817333333
A118: 0.1814666667 | B118: =0.64*$B$84 -> 5120 | C118: -1.666666667e-06 | D118: =MIN(A118,$A$154) -> 0.1814666667
A119: =A118+(B119-B118)*C119 -> 0.1812 | B119: =0.66*$B$84 -> 5280 | C119: =IF(B119<$B$79,$E$79,IF(B119<$B$80,$E$80,IF(B119<$B$81,$E$81,IF(B119<$B$82,$E$82,$E$83 ) ) )) -> -1.666666667e-06 | D119: 0.1812
A120: 0.1809333333 | B120: =0.68*$B$84 -> 5440 | C120: -1.666666667e-06 | D120: 0.1809333333
A121: 0.1806666667 | B121: =0.7*$B$84 -> 5600 | C121: -1.666666667e-06 | D121: 0.1806666667
A122: 0.1804 | B122: =0.72*$B$84 -> 5760 | C122: -1.666666667e-06 | D122: 0.1804
A123: 0.1801333333 | B123: =0.74*$B$84 -> 5920 | C123: -1.666666667e-06 | D123: 0.1801333333
A124: 0.1798666667 | B124: =0.76*$B$84 -> 6080 | C124: -1.666666667e-06 | D124: 0.1798666667
A125: 0.1796 | B125: =0.78*$B$84 -> 6240 | C125: -1.666666667e-06 | D125: 0.1796
A126: 0.1793333333 | B126: =0.8*$B$84 -> 6400 | C126: -1.666666667e-06 | D126: 0.1793333333
A127: 0.1790666667 | B127: =0.82*$B$84 -> 6560 | C127: -1.666666667e-06 | D127: 0.1790666667
A128: 0.1788 | B128: =0.84*$B$84 -> 6720 | C128: -1.666666667e-06 | D128: 0.1788
A129: 0.1785333333 | B129: =0.86*$B$84 -> 6880 | C129: -1.666666667e-06 | D129: 0.1785333333
A130: 0.1782666667 | B130: =0.88*$B$84 -> 7040 | C130: -1.666666667e-06 | D130: 0.1782666667
A131: 0.178 | B131: =0.9*$B$84 -> 7200 | C131: -1.666666667e-06 | D131: 0.178
A132: 0.1777333333 | B132: =0.92*$B$84 -> 7360 | C132: -1.666666667e-06 | D132: 0.1777333333
A133: 0.1774666667 | B133: =0.94*$B$84 -> 7520 | C133: -1.666666667e-06 | D133: 0.1774666667
A134: 0.1772 | B134: =0.96*$B$84 -> 7680 | C134: -1.666666667e-06 | D134: 0.1772
A135: 0.1769333333 | B135: =0.98*$B$84 -> 7840 | C135: -1.666666667e-06 | D135: 0.1769333333
A136: =C84 -> 0.1766666667 | B136: =1*$B$73 -> 8000 | D136: 0.1766666667
A140: Rated
A141: M | B141: n | C141: =$C$2*1 -> 75
A142: =MIN(VLOOKUP(C141,C142:E148,2,FALSE),A154) -> 0.18 | B142: =VLOOKUP(C141,C142:E148,3,FALSE) -> 6000 | C142: 24 | D142: =IF(VLOOKUP($A$2,Motorenmatrix,6,FALSE)=0,A78,VLOOKUP($A$2,Motorenmatrix,6,FALSE)) -> 0.19 | E142: =IF(VLOOKUP($A$2,Motorenmatrix,7,FALSE)=0,B78,VLOOKUP($A$2,Motorenmatrix,7,FALSE)) -> 0
C143: 48 | D143: =IF(VLOOKUP($A$2,Motorenmatrix,8,FALSE)=0,D142,VLOOKUP($A$2,Motorenmatrix,8,FALSE)) -> 0.19 | E143: =IF(VLOOKUP($A$2,Motorenmatrix,9,FALSE)=0,E142,VLOOKUP($A$2,Motorenmatrix,9,FALSE)) -> 0
C144: 75 | D144: =IF(VLOOKUP($A$2,Motorenmatrix,10,FALSE)=0,D143,VLOOKUP($A$2,Motorenmatrix,10,FALSE)) -> 0.18 | E144: =IF(VLOOKUP($A$2,Motorenmatrix,11,FALSE)=0,E143,VLOOKUP($A$2,Motorenmatrix,11,FALSE)) -> 6000
C145: 160 | D145: =IF(VLOOKUP($A$2,Motorenmatrix,12,FALSE)=0,D144,VLOOKUP($A$2,Motorenmatrix,12,FALSE)) -> 0.18 | E145: =IF(VLOOKUP($A$2,Motorenmatrix,13,FALSE)=0,E144,VLOOKUP($A$2,Motorenmatrix,13,FALSE)) -> 6000
C146: 320 | D146: =IF(VLOOKUP($A$2,Motorenmatrix,14,FALSE)=0,D145,VLOOKUP($A$2,Motorenmatrix,14,FALSE)) -> 0.18 | E146: =IF(VLOOKUP($A$2,Motorenmatrix,15,FALSE)=0,E145,VLOOKUP($A$2,Motorenmatrix,15,FALSE)) -> 6000
C147: 560 | D147: =IF(VLOOKUP($A$2,Motorenmatrix,16,FALSE)=0,D146,VLOOKUP($A$2,Motorenmatrix,16,FALSE)) -> 0.18 | E147: =IF(VLOOKUP($A$2,Motorenmatrix,17,FALSE)=0,E146,VLOOKUP($A$2,Motorenmatrix,17,FALSE)) -> 6000
A148: I peak | C148: 640 | D148: =IF(VLOOKUP($A$2,Motorenmatrix,18,FALSE)=0,D147,VLOOKUP($A$2,Motorenmatrix,18,FALSE)) -> 0.18 | E148: =IF(VLOOKUP($A$2,Motorenmatrix,19,FALSE)=0,E147,VLOOKUP($A$2,Motorenmatrix,19,FALSE)) -> 6000
A149: =A14*MAX(($G$10/$H$10-($G$10/$H$10-$I$10/$D$10)/$D$10*A14),I10/D10) -> 0.4989067078 | B149: 0
A150: =A149 -> 0.4989067078 | B150: =B71*1.05 -> 8400
A153: I rms
A154: =B13*MAX(($G$10/$H$10-($G$10/$H$10-$I$10/$D$10)/$D$10*B13),I10/D10) -> 0.1860182711 | B154: 0
A155: =A154 -> 0.1860182711 | B155: =B71*1.05 -> 8400
J209: Linearmotor Calculator
J210: m/s in elek U/min
J211: Geschwindigkeit [m/s] | K211: 5
J212: Polpitch [mm] | K212: 32
J213: Umdrehungen [U/min] | K213: =K211*1000/K212*60 -> 9375
J215: Ke Umrechner | N215: Kt Rechner
J216: Polpitch [mm] | K216: 32 | N216: Ke mV/rpm | O216: =K218 -> 21.86666667
J217: KE mV/(m/s) | K217: 41000 | N217: Kt Nm/A | O217: =O216*(1.73/6.28) -> 6.023779193
J218: KE mV/rpm | K218: =K217/((1000/K216)*60) -> 21.86666667
J220: Ele U/min in m/s
J221: Umdrehungen [U/min] | K221: 9375
J222: Polpitch [mm] | K222: 32
J223: Geschwindigkeit [m/s] | K223: =K221/60*K222/1000 -> 5

Sheet Motor_Mechanic (hidden)
B1: Created by Online2PDF.com | AA1: Combination | AB1: Is Family | AC1: Choosen | AD1: Same | AE1: possible flange | AF1: Flange | AG1: Same | AH1: (Alle)
B2: AKM Series Brushless Servomotors | AA2: AKM1-AK | AB2: =MID(AA2,1,4) -> AKM1 | AC2: =MID(Calc!$A$2,1,4) -> AKM1 | AD2: =AB2=AC2 -> TRUE | AE2: =IF(AB2=AC2,MID(AA2,6,2),"") -> AK | AF2: AN
B3: Mount/Shaft Model Number Codes | AA3: AKM1-AN | AB3: =MID(AA3,1,4) -> AKM1 | AC3: =MID(Calc!$A$2,1,4) -> AKM1 | AD3: =AB3=AC3 -> TRUE | AE3: =IF(AB3=AC3,MID(AA3,6,2),"") -> AN | AF3: Motor
B4: AKM1xx Models: | AA4: AKM1-BN | AB4: AKM1 | AC4: =MID(Calc!$A$2,1,4) -> AKM1 | AD4: TRUE | AE4: BN | AF4: =Calc!A2 -> AKM12E | AG4: possible flange
A5: Checker | B5: CODE | C5: MOUNT STANDARD | D5: SHAFT STANDARD | E5: BEARING TYPE | F5: PILOT DIAMETER (mm) | I5: BOLT CIRCLE DIAMETER (mm) | J5: HOLE DIAMETER (mm) | L5: SHAFT DIAMETER (mm) | O5: SHAFT LENGTH (mm) | P5: KEYWAY TYPE | Q5: KEY WIDTH (mm) | S5: KEY LENGTH (mm) | U5: SHAFT CENTER | AA5: AKM1-CK | AB5: AKM1 | AC5: =MID(Calc!$A$2,1,4) -> AKM1 | AD5: TRUE | AE5: CK | AF5: Kombi | AG5: CN
A6: AKM1-AN | B6: AN | C6: - | D6: - | E6: STANDARD | F6: 30 | G6: 0 | H6: h7 | I6: 46 | J6: 430 | K6: 30 | L6: 8 | M6: 0 | N6: h7 | O6: 25 | P6: - | Q6: - | R6: - | S6: - | U6: - | AA6: AKM1-CN | AB6: AKM1 | AC6: =MID(Calc!$A$2,1,4) -> AKM1 | AD6: TRUE | AE6: CN | AF6: =CONCATENATE(AF4,"-",AF2) -> AKM12E-AN | AG6: CK
G7: -21 | K7: 0 | M7: -15 | R7: - | AA7: AKM2-AC | AB7: AKM2 | AC7: =MID(Calc!$A$2,1,4) -> AKM1 | AD7: FALSE | AG7: BN
A8: AKM1-AK | B8: AK | C8: - | D8: - | E8: STANDARD | F8: 30 | G8: 0 | H8: h7 | I8: 46 | J8: 430 | K8: 30 | L8: 8 | M8: 0 | N8: h7 | O8: 25 | P8: OPEN | Q8: 3 | R8: 0 | S8: 14 | U8: - | AA8: AKM2-AN | AB8: AKM2 | AC8: =MID(Calc!$A$2,1,4) -> AKM1 | AD8: FALSE | AG8: AN
G9: -21 | K9: 0 | M9: -15 | R9: -25 | AA9: AKM2-BN | AB9: AKM2 | AC9: =MID(Calc!$A$2,1,4) -> AKM1 | AD9: FALSE | AG9: AK
A10: AKM1-BN | B10: BN | C10: - | D10: - | E10: STANDARD | F10: 20.02 | G10: 2 | H10: - | I10: 46.69 | J10: 356 | K10: 30 | L10: 6.35 | M10: 0 | N10: - | O10: 25 | P10: - | Q10: - | R10: - | S10: - | U10: - | AA10: AKM2-CK | AB10: AKM2 | AC10: =MID(Calc!$A$2,1,4) -> AKM1 | AD10: FALSE
G11: -2 | K11: 0 | M11: -12 | R11: - | AA11: AKM2-DC | AB11: AKM2 | AC11: =MID(Calc!$A$2,1,4) -> AKM1 | AD11: FALSE
A12: AKM1-CN | B12: CN | C12: - | D12: - | E12: STANDARD | F12: 30 | G12: 0 | H12: h7 | I12: 45 | J12: 340 | K12: 30 | L12: 8 | M12: 0 | N12: h7 | O12: 25 | P12: - | Q12: - | R12: - | S12: - | U12: - | AA12: AKM2-DN | AB12: AKM2 | AC12: =MID(Calc!$A$2,1,4) -> AKM1 | AD12: FALSE
G13: -21 | K13: 0 | M13: -15 | R13: - | AA13: AKM2-EF | AB13: AKM2 | AC13: =MID(Calc!$A$2,1,4) -> AKM1 | AD13: FALSE
A14: AKM1-CK | B14: CK | C14: - | D14: - | E14: STANDARD | F14: 30 | G14: 0 | H14: h7 | I14: 45 | J14: 340 | K14: 30 | L14: 8 | M14: 0 | N14: h7 | O14: 25 | P14: OPEN | Q14: 3 | R14: 0 | S14: 14 | U14: - | AA14: AKM2-EN | AB14: AKM2 | AC14: =MID(Calc!$A$2,1,4) -> AKM1 | AD14: FALSE
G15: -21 | K15: 0 | M15: -15 | R15: -25 | AA15: AKM3-AC | AB15: AKM3 | AC15: =MID(Calc!$A$2,1,4) -> AKM1 | AD15: FALSE
B16: AKM2xx Models: | AA16: AKM3-AN | AB16: AKM3 | AC16: =MID(Calc!$A$2,1,4) -> AKM1 | AD16: FALSE
B17: CODE | C17: MOUNT STANDARD | D17: SHAFT STANDARD | E17: BEARING TYPE | F17: PILOT DIAMETER (mm) | I17: BOLT CIRCLE DIAMETER (mm) | J17: HOLE DIAMETER (mm) | L17: SHAFT DIAMETER (mm) | O17: SHAFT LENGTH (mm) | P17: KEYWAY TYPE | Q17: KEY WIDTH (mm) | S17: KEY LENGTH (mm) | U17: SHAFT CENTER | AA17: AKM3-CC | AB17: AKM3 | AC17: =MID(Calc!$A$2,1,4) -> AKM1 | AD17: FALSE
A18: AKM2-AN | B18: AN | C18: - | D18: DIN 748 | E18: STANDARD | F18: 40 | G18: 11 | H18: j6 | I18: 63 | J18: 480 | K18: 30 | L18: 9 | M18: 10 | N18: k6 | O18: 20 | P18: - | Q18: - | R18: - | S18: - | U18: D M3 DIN 332 | AA18: AKM3-CN | AB18: AKM3 | AC18: =MID(Calc!$A$2,1,4) -> AKM1 | AD18: FALSE
G19: -5 | K19: 0 | M19: 1 | R19: - | AA19: AKM3-GC | AB19: AKM3 | AC19: =MID(Calc!$A$2,1,4) -> AKM1 | AD19: FALSE
A20: AKM2-AC | B20: AC | C20: - | D20: DIN 748 | E20: STANDARD | F20: 40 | G20: 11 | H20: j6 | I20: 63 | J20: 480 | K20: 30 | L20: 9 | M20: 10 | N20: k6 | O20: 20 | P20: CLOSED DIN 6885 | Q20: 3 | R20: 0 | S20: 12 | U20: D M3 DIN 332 | AA20: AKM3-GN | AB20: AKM3 | AC20: =MID(Calc!$A$2,1,4) -> AKM1 | AD20: FALSE
G21: -5 | K21: 0 | M21: 1 | R21: -25 | AA21: AKM4-AC | AB21: AKM4 | AC21: =MID(Calc!$A$2,1,4) -> AKM1 | AD21: FALSE
A22: AKM2-BN | B22: BN | C22: NEMA ICS 16 INCH (23) | D22: NEMA ICS 16 INCH (038) | E22: STANDARD | F22: 38.1 | G22: 0 | H22: - | I22: 66.68 | J22: 510 | K22: 30 | L22: 9.525 | M22: 0 | N22: - | O22: 31.75 | P22: - | Q22: - | R22: - | S22: - | U22: - | AA22: AKM4-AN | AB22: AKM4 | AC22: =MID(Calc!$A$2,1,4) -> AKM1 | AD22: FALSE
G23: -5 | K23: 0 | M23: -13 | R23: - | AA23: AKM4-BK | AB23: AKM4 | AC23: =MID(Calc!$A$2,1,4) -> AKM1 | AD23: FALSE
A24: AKM2-CK | B24: CK | C24: NEMA ICS 16 METRIC (70) | D24: NEMA ICS 16 METRIC (14) | E24: STANDARD | F24: 50 | G24: 0 | H24: h6 | I24: 70 | J24: 580 | K24: 30 | L24: 14 | M24: 0 | N24: h6 | O24: 30 | P24: OPEN | Q24: 5 | R24: 0 | S24: 20 | U24: - | AA24: AKM4-CC | AB24: AKM4 | AC24: =MID(Calc!$A$2,1,4) -> AKM1 | AD24: FALSE
G25: -16 | K25: 0 | M25: -11 | R25: -3 | AA25: AKM4-CN | AB25: AKM4 | AC25: =MID(Calc!$A$2,1,4) -> AKM1 | AD25: FALSE
A26: AKM2-DN | B26: DN | C26: - | D26: DIN 748 | E26: STANDARD | F26: 40 | G26: 11 | H26: j6 | I26: 65 | J26: 580 | K26: 30 | L26: 9 | M26: 10 | N26: k6 | O26: 20 | P26: - | Q26: - | R26: - | S26: - | U26: D M3 DIN 332 | AA26: AKM4-EK | AB26: AKM4 | AC26: =MID(Calc!$A$2,1,4) -> AKM1 | AD26: FALSE
G27: -5 | K27: 0 | M27: 1 | R27: - | AA27: AKM4-GC | AB27: AKM4 | AC27: =MID(Calc!$A$2,1,4) -> AKM1 | AD27: FALSE
A28: AKM2-DC | B28: DC | C28: - | D28: DIN 748 | E28: STANDARD | F28: 40 | G28: 11 | H28: j6 | I28: 65 | J28: 580 | K28: 30 | L28: 9 | M28: 10 | N28: k6 | O28: 20 | P28: CLOSED DIN 6885 | Q28: 3 | R28: 0 | S28: 12 | U28: D M3 DIN 332 | AA28: AKM4-GN | AB28: AKM4 | AC28: =MID(Calc!$A$2,1,4) -> AKM1 | AD28: FALSE
G29: -5 | K29: 0 | M29: 1 | R29: -25 | AA29: AKM4-HC | AB29: AKM4 | AC29: =MID(Calc!$A$2,1,4) -> AKM1 | AD29: FALSE
A30: AKM2-EF | B30: EF | C30: NEMA ICS 16 INCH (23) | D30: NEMA ICS 16 DIA (038) LENGTH (025) | E30: STANDARD | F30: 38.1 | G30: 0 | H30: - | I30: 66.68 | J30: 510 | K30: 30 | L30: 9.525 | M30: 0 | N30: - | O30: 20.57 | P30: - | Q30: - | R30: - | S30: - | U30: - | AA30: AKM4-HN | AB30: AKM4 | AC30: =MID(Calc!$A$2,1,4) -> AKM1 | AD30: FALSE
G31: -5 | K31: 0 | M31: -13 | R31: - | AA31: AKM4-KK | AB31: AKM4 | AC31: =MID(Calc!$A$2,1,4) -> AKM1 | AD31: FALSE
A32: AKM2-EN | B32: EN | C32: NEMA ICS 16 INCH (23) | D32: NEMA ICS 16 DIA (038) LENGTH (025) | E32: STANDARD | F32: 38.1 | G32: 0 | H32: - | I32: 66.68 | J32: 510 | K32: 30 | L32: 9.525 | M32: 0 | N32: - | O32: 20.57 | P32: - | Q32: - | R32: - | S32: - | U32: - | AA32: AKM5-AC | AB32: AKM5 | AC32: =MID(Calc!$A$2,1,4) -> AKM1 | AD32: FALSE
G33: -5 | K33: 0 | M33: -13 | R33: - | AA33: AKM5-AN | AB33: AKM5 | AC33: =MID(Calc!$A$2,1,4) -> AKM1 | AD33: FALSE
B34: AKM3xx Models: | AA34: AKM5-BK | AB34: AKM5 | AC34: =MID(Calc!$A$2,1,4) -> AKM1 | AD34: FALSE
B35: CODE | C35: MOUNT STANDARD | D35: SHAFT STANDARD | E35: BEARING TYPE | F35: PILOT DIAMETER (mm) | I35: BOLT CIRCLE DIAMETER (mm) | J35: HOLE DIAMETER (mm) | L35: SHAFT DIAMETER (mm) | O35: SHAFT LENGTH (mm) | P35: KEYWAY TYPE | Q35: KEY WIDTH (mm) | S35: KEY LENGTH (mm) | U35: SHAFT CENTER | AA35: AKM5-CC | AB35: AKM5 | AC35: =MID(Calc!$A$2,1,4) -> AKM1 | AD35: FALSE
A36: AKM3-AN | B36: AN | C36: IEC60072 | D36: DIN 748 | E36: STANDARD | F36: 60 | G36: 12 | H36: j6 | I36: 75 | J36: 580 | K36: 30 | L36: 14 | M36: 12 | N36: k6 | O36: 30 | P36: - | Q36: - | R36: - | S36: - | U36: D M5 DIN 332 | AA36: AKM5-CN | AB36: AKM5 | AC36: =MID(Calc!$A$2,1,4) -> AKM1 | AD36: FALSE
G37: -7 | K37: 0 | M37: 1 | R37: - | AA37: AKM5-DK | AB37: AKM5 | AC37: =MID(Calc!$A$2,1,4) -> AKM1 | AD37: FALSE
A38: AKM3-AC | B38: AC | C38: IEC60072 | D38: DIN 748 | E38: STANDARD | F38: 60 | G38: 12 | H38: j6 | I38: 75 | J38: 580 | K38: 30 | L38: 14 | M38: 12 | N38: k6 | O38: 30 | P38: CLOSED DIN 6885 | Q38: 5 | R38: 0 | S38: 20 | U38: D M5 DIN 332 | AA38: AKM5-GC | AB38: AKM5 | AC38: =MID(Calc!$A$2,1,4) -> AKM1 | AD38: FALSE
G39: -7 | K39: 0 | M39: 1 | R39: -3 | AA39: AKM5-GN | AB39: AKM5 | AC39: =MID(Calc!$A$2,1,4) -> AKM1 | AD39: FALSE
A40: AKM3-CN | B40: CN | C40: - | D40: DIN 748 | E40: STANDARD | F40: 60 | G40: 12 | H40: j6 | I40: 85 | J40: 580 | K40: 30 | L40: 14 | M40: 12 | N40: k6 | O40: 30 | P40: - | Q40: - | R40: - | S40: - | U40: D M5 DIN 332 | AA40: AKM5-HC | AB40: AKM5 | AC40: =MID(Calc!$A$2,1,4) -> AKM1 | AD40: FALSE
G41: -7 | K41: 0 | M41: 1 | R41: - | AA41: AKM5-HN | AB41: AKM5 | AC41: =MID(Calc!$A$2,1,4) -> AKM1 | AD41: FALSE
A42: AKM3-CC | B42: CC | C42: - | D42: DIN 748 | E42: STANDARD | F42: 60 | G42: 12 | H42: j6 | I42: 85 | J42: 580 | K42: 30 | L42: 14 | M42: 12 | N42: k6 | O42: 30 | P42: CLOSED DIN 6885 | Q42: 5 | R42: 0 | S42: 20 | U42: D M5 DIN 332 | AA42: AKM6-AC | AB42: AKM6 | AC42: =MID(Calc!$A$2,1,4) -> AKM1 | AD42: FALSE
G43: -7 | K43: 0 | M43: 1 | R43: -3 | AA43: AKM6-AN | AB43: AKM6 | AC43: =MID(Calc!$A$2,1,4) -> AKM1 | AD43: FALSE
B44: Alternate AKM3xx mount predefined for special orders: | AA44: AKM6-GC | AB44: AKM6 | AC44: =MID(Calc!$A$2,1,4) -> AKM1 | AD44: FALSE
A45: AKM3-GN | B45: GN | C45: - | D45: DIN 748 | E45: STANDARD | F45: 60 | G45: 12 | H45: j6 | I45: 75 | J45: 580 | K45: 30 | L45: 11 | M45: 12 | N45: k6 | O45: 23 | P45: - | Q45: - | R45: - | S45: - | U45: D M4 DIN 332 | AA45: AKM6-GN | AB45: AKM6 | AC45: =MID(Calc!$A$2,1,4) -> AKM1 | AD45: FALSE
G46: -7 | K46: 0 | M46: 1 | R46: - | AA46: AKM6-KK | AB46: AKM6 | AC46: =MID(Calc!$A$2,1,4) -> AKM1 | AD46: FALSE
A47: AKM3-GC | B47: GC | C47: - | D47: DIN 748 | E47: STANDARD | F47: 60 | G47: 12 | H47: j6 | I47: 75 | J47: 580 | K47: 30 | L47: 11 | M47: 12 | N47: k6 | O47: 23 | P47: CLOSED DIN 6885 | Q47: 4 | R47: 0 | S47: 16 | U47: D M4 DIN 332 | AA47: AKM6-LK | AB47: AKM6 | AC47: =MID(Calc!$A$2,1,4) -> AKM1 | AD47: FALSE
G48: -7 | K48: 0 | M48: 1 | R48: -3 | AA48: AKM7-AC | AB48: AKM7 | AC48: =MID(Calc!$A$2,1,4) -> AKM1 | AD48: FALSE
B49: Notes: | AA49: AKM7-AN | AB49: AKM7 | AC49: =MID(Calc!$A$2,1,4) -> AKM1 | AD49: FALSE
B50: 1. EF shaft includes a .344" high x .50" min. full depth flat. Items in bold do not match standard | AA50: AKM7-GC | AB50: AKM7 | AC50: =MID(Calc!$A$2,1,4) -> AKM1 | AD50: FALSE
B51: 2. GN & GC mounting flanges and shafts are predefined, tooled and available. | AA51: AKM7-GN | AB51: AKM7 | AC51: =MID(Calc!$A$2,1,4) -> AKM1 | AD51: FALSE
B52: The shaft is special order: | AA52: AKM7-KK | AB52: AKM7 | AC52: =MID(Calc!$A$2,1,4) -> AKM1 | AD52: FALSE
B53: Add two weeks to the standard motor lead-time. | AA53: AKM8-AC | AB53: AKM8 | AC53: =MID(Calc!$A$2,1,4) -> AKM1 | AD53: FALSE
B54: Price adders and minimum quantities apply. Contact customer support. | AA54: AKM8-AN | AB54: AKM8 | AC54: =MID(Calc!$A$2,1,4) -> AKM1 | AD54: FALSE
B55: AKM Series Brushless Servomotors | AA55: AKM8-CC | AB55: AKM8 | AC55: =MID(Calc!$A$2,1,4) -> AKM1 | AD55: FALSE
B56: Mount/Shaft Model Number Codes | AA56: AKM8-CN | AB56: AKM8 | AC56: =MID(Calc!$A$2,1,4) -> AKM1 | AD56: FALSE
B57: AKM4xx Models: | AA57: AKM8-GC | AB57: AKM8 | AC57: =MID(Calc!$A$2,1,4) -> AKM1 | AD57: FALSE
B58: CODE | C58: MOUNT STANDARD | D58: SHAFT STANDARD | E58: BEARING TYPE | F58: PILOT DIAMETER (mm) | I58: BOLT CIRCLE DIAMETER (mm) | J58: HOLE DIAMETER (mm) | L58: SHAFT DIAMETER (mm) | O58: SHAFT LENGTH (mm) | P58: KEYWAY TYPE | Q58: KEY WIDTH (mm) | S58: KEY LENGTH (mm) | U58: SHAFT CENTER | AA58: AKM8-GN | AB58: AKM8 | AC58: =MID(Calc!$A$2,1,4) -> AKM1 | AD58: FALSE
A59: AKM4-AN | B59: AN | C59: IEC60072 | D59: DIN 748 | E59: STANDARD | F59: 80 | G59: 12 | H59: j6 | I59: 100 | J59: 7 | K59: 30 | L59: 19 | M59: 15 | N59: k6 | O59: 40 | P59: - | Q59: - | R59: - | S59: - | U59: D M6 DIN 332 | AA59: AKM8-HC | AB59: AKM8 | AC59: =MID(Calc!$A$2,1,4) -> AKM1 | AD59: FALSE
G60: -7 | K60: 0 | M60: 2 | R60: - | AA60: AKM8-HN | AB60: AKM8 | AC60: =MID(Calc!$A$2,1,4) -> AKM1 | AD60: FALSE
A61: AKM4-AC | B61: AC | C61: IEC60072 | D61: DIN 748 | E61: STANDARD | F61: 80 | G61: 12 | H61: j6 | I61: 100 | J61: 7 | K61: 30 | L61: 19 | M61: 15 | N61: k6 | O61: 40 | P61: CLOSED DIN 6885 | Q61: 6 | R61: 0 | S61: 32 | U61: D M6 DIN 332 | AA61: AKM8-MC | AB61: AKM8 | AC61: =MID(Calc!$A$2,1,4) -> AKM1 | AD61: FALSE
G62: -7 | K62: 0 | M62: 2 | R62: -3 | AA62: AKM8-MN | AB62: AKM8 | AC62: =MID(Calc!$A$2,1,4) -> AKM1 | AD62: FALSE
A63: AKM4-BK | B63: BK | C63: NEMA ICS 16 INCH (34) | D63: NEMA ICS 16 INCH (063) | E63: STANDARD | F63: 73.02 | G63: 0 | H63: - | I63: 98.43 | J63: 554 | K63: 30 | L63: 15.875 | M63: 0 | N63: - | O63: 52.4 | P63: OPEN | Q63: 48 | R63: 0 | S63: 3493 | U63: - | AA63: AKM8-TC | AB63: AKM8 | AC63: =MID(Calc!$A$2,1,4) -> AKM1 | AD63: FALSE
G64: -5 | K64: 0 | M64: -13 | R64: -50 | AA64: AKM8-TN | AB64: AKM8 | AC64: =MID(Calc!$A$2,1,4) -> AKM1 | AD64: FALSE
A65: AKM4-CN | B65: CN | C65: - | D65: DIN 748 | E65: STANDARD | F65: 60 | G65: 12 | H65: j6 | I65: 90 | J65: 554 | K65: 30 | L65: 19 | M65: 15 | N65: k6 | O65: 40 | P65: - | Q65: - | R65: - | S65: - | U65: D M6 DIN 332 | AD65: TRUE
G66: -7 | K66: 0 | M66: 2 | R66: -
A67: AKM4-CC | B67: CC | C67: - | D67: DIN 748 | E67: STANDARD | F67: 60 | G67: 12 | H67: j6 | I67: 90 | J67: 554 | K67: 30 | L67: 19 | M67: 15 | N67: k6 | O67: 40 | P67: CLOSED DIN 6885 | Q67: 6 | R67: 0 | S67: 32 | U67: D M6 DIN 332
G68: -7 | K68: 0 | M68: 2 | R68: -3
A69: AKM4-EK | B69: EK | C69: NEMA ICS 16 INCH (34) | D69: NEMA ICS 16 DIA (050) LENGTH (038) | E69: STANDARD | F69: 73.03 | G69: 0 | H69: - | I69: 98.43 | J69: 554 | K69: 25 | L69: 12.7 | M69: 0 | N69: - | O69: 31.75 | P69: OPEN | Q69: 32 | R69: 0 | S69: 19.05 HK2212S | U69: -
G70: -5 | K70: -25 | M70: -13 | R70: -50
B71: Alternate AKM4xx mount predefined for special orders:
A72: AKM4-GN | B72: GN | C72: - | D72: - | E72: STANDARD | F72: 80 | G72: 12 | H72: j6 | I72: 100 | J72: 7 | K72: 30 | L72: 14 | M72: 12 | N72: k6 | O72: 30 | P72: - | Q72: - | R72: - | S72: - | U72: D M5 DIN 332
G73: -7 | K73: 0 | M73: 1 | R73: -
A74: AKM4-GC | B74: GC | C74: - | D74: - | E74: STANDARD | F74: 80 | G74: 12 | H74: j6 | I74: 100 | J74: 7 | K74: 30 | L74: 14 | M74: 12 | N74: k6 | O74: 30 | P74: CLOSED DIN 6885 | Q74: 5 | R74: 0 | S74: 20 | U74: D M5 DIN 332
G75: -7 | K75: 0 | M75: 1 | R75: -3
A76: AKM4-HN | B76: HN | C76: - | D76: - | E76: STANDARD | F76: 60 | G76: 12 | H76: j6 | I76: 90 | J76: 554 | K76: 30 | L76: 14 | M76: 12 | N76: k6 | O76: 30 | P76: - | Q76: - | R76: - | S76: - | U76: D M5 DIN 332
G77: -7 | K77: 0 | M77: 1 | R77: -
A78: AKM4-HC | B78: HC | C78: - | D78: - | E78: STANDARD | F78: 60 | G78: 12 | H78: j6 | I78: 90 | J78: 554 | K78: 30 | L78: 14 | M78: 12 | N78: k6 | O78: 30 | P78: CLOSED DIN 6885 | Q78: 5 | R78: 0 | S78: 20 | U78: D M5 DIN 332
G79: -7 | K79: 0 | M79: 1 | R79: -3
A80: AKM4-KK | B80: KK | C80: - | D80: - | E80: STANDARD | F80: 70 | G80: 0 | H80: h7 | I80: 90 | J80: 7 | K80: 30 | L80: 16 | M80: 0 | N80: h6 | O80: 40 | P80: OPEN | Q80: 5 | R80: 0 | S80: 30 | U80: -
G81: -3 | K81: 0 | M81: 11 | R81: -3
B82: AKM5xx Models:
B83: CODE | C83: MOUNT STANDARD | D83: SHAFT STANDARD | E83: BEARING TYPE | F83: PILOT DIAMETER (mm) | I83: BOLT CIRCLE DIAMETER (mm) | J83: HOLE DIAMETER (mm) | L83: SHAFT DIAMETER (mm) | O83: SHAFT LENGTH (mm) | P83: KEYWAY TYPE | Q83: KEY WIDTH (mm) | S83: KEY LENGTH (mm) | U83: SHAFT CENTER
A84: AKM5-AN | B84: AN | C84: IEC60072 | D84: DIN 748 | E84: STANDARD | F84: 110 | G84: 13 | H84: j6 | I84: 130 | J84: 9 | K84: 36 | L84: 24 | M84: 15 | N84: k6 | O84: 50 | P84: - | Q84: - | R84: - | S84: - | U84: D M8 DIN 332
G85: -9 | K85: 0 | M85: 2 | R85: -
A86: AKM5-AC | B86: AC | C86: IEC60072 | D86: DIN 748 | E86: STANDARD | F86: 110 | G86: 13 | H86: j6 | I86: 130 | J86: 9 | K86: 36 | L86: 24 | M86: 15 | N86: k6 | O86: 50 | P86: CLOSED DIN 6885 | Q86: 8 | R86: 0 | S86: 40 | U86: D M8 DIN 332
G87: -9 | K87: 0 | M87: 2 | R87: -36
A88: AKM5-BK | B88: BK | C88: NEMA ICS 16 INCH (42) | D88: NEMA ICS 16 INCH (075) | E88: STANDARD | F88: 55.56 | G88: 0 | H88: - | I88: 125.73 | J88: 833 | K88: 36 | L88: 19.05 | M88: 0 | N88: h6 | O88: 57.15 | P88: OPEN | Q88: 48 | R88: 0 | S88: 381 | U88: -
G89: -51 | K89: 0 | M89: -13 | R89: -50
A90: AKM5-CN | B90: CN | C90: IEC60072 | D90: DIN 748 | E90: STANDARD | F90: 95 | G90: 13 | H90: j6 | I90: 115 | J90: 9 | K90: 36 | L90: 24 | M90: 15 | N90: k6 | O90: 50 | P90: - | Q90: - | R90: - | S90: - | U90: D M8 DIN 332
G91: -9 | K91: 0 | M91: 2 | R91: -
A92: AKM5-CC | B92: CC | C92: IEC60072 | D92: DIN 748 | E92: STANDARD | F92: 95 | G92: 13 | H92: j6 | I92: 115 | J92: 9 | K92: 36 | L92: 24 | M92: 15 | N92: k6 | O92: 50 | P92: CLOSED DIN 6885 | Q92: 8 | R92: 0 | S92: 40 | U92: D M8 DIN 332
G93: -9 | K93: 0 | M93: 2 | R93: -36
A94: AKM5-DK | B94: DK | C94: - | D94: NEMA ICS 16 INCH (075) | E94: STANDARD | F94: 63.5 | G94: 0 | H94: - | I94: 127 | J94: 833 | K94: 36 | L94: 19.05 | M94: 0 | N94: h6 | O94: 57.15 | P94: OPEN | Q94: 48 | R94: 0 | S94: 381 | U94: -
G95: -50 | K95: 0 | M95: -13 | R95: -50
B96: Alternate AKM5xx mount predefined for special orders:
A97: AKM5-GN | B97: GN | C97: - | D97: - | E97: STANDARD | F97: 110 | G97: 13 | H97: j6 | I97: 130 | J97: 9 | K97: 36 | L97: 19 | M97: 15 | N97: k6 | O97: 40 | P97: - | Q97: - | R97: - | S97: - | U97: D M6 DIN 332
G98: -9 | K98: 0 | M98: 2 | R98: -
A99: AKM5-GC | B99: GC | C99: - | D99: - | E99: STANDARD | F99: 110 | G99: 13 | H99: j6 | I99: 130 | J99: 9 | K99: 36 | L99: 19 | M99: 15 | N99: k6 | O99: 40 | P99: CLOSED DIN 6885 | Q99: 6 | R99: 0 | S99: 32 | U99: D M6 DIN 332
G100: -9 | K100: 0 | M100: 2 | R100: -3
A101: AKM5-HN | B101: HN | C101: - | D101: - | E101: STANDARD | F101: 95 | G101: 13 | H101: j6 | I101: 115 | J101: 9 | K101: 36 | L101: 19 | M101: 15 | N101: k6 | O101: 40 | P101: - | Q101: - | R101: - | S101: - | U101: D M6 DIN 332
G102: -9 | K102: 0 | M102: 2 | R102: -
A103: AKM5-HC | B103: HC | C103: - | D103: - | E103: STANDARD | F103: 95 | G103: 13 | H103: j6 | I103: 115 | J103: 9 | K103: 36 | L103: 19 | M103: 15 | N103: k6 | O103: 40 | P103: CLOSED DIN 6885 | Q103: 6 | R103: 0 | S103: 32 | U103: D M6 DIN 332
G104: -9 | K104: 0 | M104: 2 | R104: -3
B105: Notes:
B106: 1. EK mount is available on the AKM41 & 42 only. Items in bold do not match standard
B107: EK mounts on AKM43 & 44 require customer waiver of shaft liability. EK mounts are limited to a 240N max. radial force.
B108: 2. GN, GC, HN, HC & KK mounting flanges and shafts are predefined, tooled and available.
B109: The shaft is special order:
B110: Add two weeks to the standard motor lead-time.
B111: Price adders and minimum quantities apply. Contact customer support.
B112: AKM Series Brushless Servomotors
B113: Mount/Shaft Model Number Codes
B114: AKM6xx Models:
B115: CODE | C115: MOUNT STANDARD | D115: SHAFT STANDARD | E115: BEARING TYPE | F115: PILOT DIAMETER (mm) | I115: BOLT CIRCLE DIAMETER (mm) | J115: HOLE DIAMETER (mm) | L115: SHAFT DIAMETER (mm) | O115: SHAFT LENGTH (mm) | P115: KEYWAY TYPE | Q115: KEY WIDTH (mm) | S115: KEY LENGTH (mm) | U115: SHAFT CENTER
A116: AKM6-AN | B116: AN | C116: IEC60072 | D116: DIN 748 | E116: STANDARD | F116: 130 | G116: 14 | H116: j6 | I116: 165 | J116: 11 | K116: 36 | L116: 32 | M116: 18 | N116: k6 | O116: 58 | P116: - | Q116: - | R116: - | S116: - | U116: D M12 DIN 332
G117: -11 | K117: 0 | M117: 2 | R117: -
A118: AKM6-AC | B118: AC | C118: IEC60072 | D118: DIN 748 | E118: STANDARD | F118: 130 | G118: 14 | H118: j6 | I118: 165 | J118: 11 | K118: 36 | L118: 32 | M118: 18 | N118: k6 | O118: 58 | P118: CLOSED DIN 6885 | Q118: 10 | R118: 0 | S118: 45 | U118: D M12 DIN 332
G119: -11 | K119: 0 | M119: 2 | R119: -36
B120: Alternate AKM6xx mounts predefined for special orders:
A121: AKM6-GN | B121: GN | C121: - | D121: - | E121: STANDARD | F121: 130 | G121: 14 | H121: j6 | I121: 165 | J121: 11 | K121: 36 | L121: 24 | M121: 15 | N121: k6 | O121: 50 | P121: - | Q121: - | R121: - | S121: - | U121: D M8 DIN 332
G122: -11 | K122: 0 | M122: 2 | R122: -
A123: AKM6-GC | B123: GC | C123: - | D123: - | E123: STANDARD | F123: 130 | G123: 14 | H123: j6 | I123: 165 | J123: 11 | K123: 36 | L123: 24 | M123: 15 | N123: k6 | O123: 50 | P123: CLOSED DIN 6885 | Q123: 8 | R123: 0 | S123: 40 | U123: D M8 DIN 332
G124: -11 | K124: 0 | M124: 2 | R124: -36
A125: AKM6-KK | B125: KK | C125: NEMA ICS 16 METRIC (145) | D125: NEMA ICS 16 METRIC (28) | E125: STANDARD | F125: 110 | G125: 0 | H125: h7 | I125: 145 | J125: 9 | K125: 36 | L125: 28 | M125: 0 | N125: h6 | O125: 60 | P125: OPEN | Q125: 8 | R125: 0 | S125: 50 | U125: -
G126: -35 | K126: 0 | M126: -13 | R126: -36
A127: AKM6-LK | B127: LK | C127: NEMA ICS 16 INCH (56) | D127: NEMA ICS 16 INCH (113) | E127: STANDARD | F127: 114.3 | G127: 0 | H127: - | I127: 149.225 | J127: [3/8-16 TAP] | L127: 28.58 | M127: 0 | N127: h6 | O127: 69.85 | P127: OPEN | Q127: 64 | R127: 25 | S127: 381 | U127: -
G128: -76 | M128: -13 | R128: 0
B129: AKM7xx Models:
B130: CODE | C130: MOUNT STANDARD | D130: SHAFT STANDARD | E130: BEARING TYPE | F130: PILOT DIAMETER (mm) | I130: BOLT CIRCLE DIAMETER (mm) | J130: HOLE DIAMETER (mm) | L130: SHAFT DIAMETER (mm) | O130: SHAFT LENGTH (mm) | P130: KEYWAY TYPE | Q130: KEY WIDTH (mm) | S130: KEY LENGTH (mm) | U130: SHAFT CENTER
A131: AKM7-AN | B131: AN | C131: IEC60072 | D131: DIN 748 | E131: STANDARD | F131: 180 | G131: 14 | H131: j6 | I131: 215 | J131: 135 | K131: 43 | L131: 38 | M131: 18 | N131: k6 | O131: 80 | P131: - | Q131: - | R131: - | S131: - | U131: D M12 DIN 332
G132: -11 | K132: 0 | M132: 2 | R132: -
A133: AKM7-AC | B133: AC | C133: IEC60072 | D133: DIN 748 | E133: STANDARD | F133: 180 | G133: 14 | H133: j6 | I133: 215 | J133: 135 | K133: 43 | L133: 38 | M133: 18 | N133: k6 | O133: 80 | P133: CLOSED DIN 6885 | Q133: 10 | R133: 0 | S133: 70 | U133: D M12 DIN 332
G134: -11 | K134: 0 | M134: 2 | R134: -36
B135: Alternate AKM7xx mounts predefined for special orders:
A136: AKM7-GN | B136: GN | C136: - | D136: - | E136: STANDARD | F136: 180 | G136: 14 | H136: j6 | I136: 215 | J136: 135 | K136: 43 | L136: 32 | M136: 18 | N136: k6 | O136: 58.5 | P136: - | Q136: - | R136: - | S136: - | U136: D M12 DIN 332
G137: -11 | K137: 0 | M137: 2 | R137: -
A138: AKM7-GC | B138: GC | C138: - | D138: - | E138: STANDARD | F138: 180 | G138: 14 | H138: j6 | I138: 215 | J138: 135 | K138: 43 | L138: 32 | M138: 18 | N138: k6 | O138: 58.5 | P138: CLOSED DIN 6885 | Q138: 10 | R138: 0 | S138: 50 | U138: D M12 DIN 332
G139: -11 | K139: 0 | M139: 2 | R139: -36
A140: AKM7-KK | B140: KK | C140: NEMA ICS 16 METRIC (200) | D140: NEMA ICS 16 METRIC (35) | E140: STANDARD | F140: 114.3 | G140: 0 | H140: - | I140: 200 | J140: 135 | K140: 43 | L140: 35 | M140: 0 | N140: h6 | O140: 79 | P140: OPEN | Q140: 10 | R140: 0 | S140: 70 | U140: -
G141: -25 | K141: 0 | M141: -16 | R141: -36
B142: Notes:
B143: 1. GN, GC, KK & LK mounting flanges are predefined, tooled and available. Items in bold do not match standard The shaft is special order:
B144: Add two weeks to the standard motor lead-time.
B145: Price adders and minimum quantities apply. Contact customer support.
B146: 2. The LK flange matches the common "NEMA56" flange size.
B147: The LK shaft, however, has a much larger diameter to accommodate the high motor torque. Contact customer support and review torque ratings if smaller shaft diameters are required.
B148: AKM Series Brushless Servomotors
B149: Mount/Shaft Model Number Codes
B150: AKM8xx Models:
B151: CODE | C151: MOUNT STANDARD | D151: SHAFT STANDARD | E151: BEARING TYPE | F151: PILOT DIAMETER (mm) | I151: BOLT CIRCLE DIAMETER (mm) | J151: HOLE DIAMETER (mm) | L151: SHAFT DIAMETER (mm) | O151: SHAFT LENGTH (mm) | P151: KEYWAY TYPE | Q151: KEY WIDTH (mm) | S151: KEY LENGTH (mm) | U151: SHAFT CENTER
A152: AKM8-AN | B152: AN | C152: IEC60072 | D152: DIN 748 | E152: STANDARD | F152: 250 | G152: 16 | H152: j6 | I152: 300 | J152: 185 | K152: 520 | L152: 48 | M152: 18 | N152: k6 | O152: 110 | P152: - | Q152: - | R152: - | S152: - | U152: D M16 DIN 332
G153: -13 | K153: 0 | M153: 2 | R153: -
A154: AKM8-AC | B154: AC | C154: IEC60072 | D154: DIN 748 | E154: STANDARD | F154: 250 | G154: 16 | H154: j6 | I154: 300 | J154: 185 | K154: 520 | L154: 48 | M154: 18 | N154: k6 | O154: 110 | P154: CLOSED | Q154: 14 | R154: 0 | S154: 90 | U154: D M16 DIN 332
G155: -13 | K155: 0 | M155: 2 | R155: -43
A156: AKM8-CN | B156: CN | C156: IEC60072 | D156: DIN 748 | E156: STANDARD | F156: 230 | G156: 16 | H156: j6 | I156: 265 | J156: 145 | K156: 430 | L156: 48 | M156: 18 | N156: k6 | O156: 110 | P156: - | Q156: - | R156: - | S156: - | U156: D M16 DIN 332
G157: -13 | K157: 0 | M157: 2 | R157: -
A158: AKM8-CC | B158: CC | C158: IEC60072 | D158: DIN 748 | E158: STANDARD | F158: 230 | G158: 16 | H158: j6 | I158: 265 | J158: 145 | K158: 430 | L158: 48 | M158: 18 | N158: k6 | O158: 110 | P158: CLOSED | Q158: 14 | R158: 0 | S158: 90 | U158: D M16 DIN 332
G159: -13 | K159: 0 | M159: 2 | R159: -43
A160: AKM8-HN | B160: HN | C160: IEC60072 | D160: DIN 748 | E160: STANDARD | F160: 230 | G160: 16 | H160: j6 | I160: 265 | J160: 145 | K160: 430 | L160: 42 | M160: 18 | N160: k6 | O160: 82 | P160: - | Q160: - | R160: - | S160: - | U160: D M16 DIN 332
G161: -13 | K161: 0 | M161: 2 | R161: -
A162: AKM8-HC | B162: HC | C162: IEC60072 | D162: DIN 748 | E162: STANDARD | F162: 230 | G162: 16 | H162: j6 | I162: 265 | J162: 145 | K162: 430 | L162: 42 | M162: 18 | N162: k6 | O162: 82 | P162: CLOSED | Q162: 12 | R162: 0 | S162: 63 | U162: D M16 DIN 332
G163: -13 | K163: 0 | M163: 2 | R163: -43
A164: AKM8-GN | B164: GN | C164: IEC60072 | D164: DIN 748 | E164: STANDARD | F164: 250 | G164: 16 | H164: j6 | I164: 300 | J164: 185 | K164: 520 | L164: 48 | M164: 18 | N164: k6 | O164: 82 | P164: - | Q164: - | R164: - | S164: - | U164: D M16 DIN 332
G165: -13 | K165: 0 | M165: 2 | R165: -
A166: AKM8-GC | B166: GC | C166: IEC60072 | D166: DIN 748 | E166: STANDARD | F166: 250 | G166: 16 | H166: j6 | I166: 300 | J166: 185 | K166: 520 | L166: 48 | M166: 18 | N166: k6 | O166: 82 | P166: CLOSED | Q166: 14 | R166: 0 | S166: 63 | U166: D M16 DIN 332
G167: -13 | K167: 0 | M167: 2 | R167: -43
A168: AKM8-MN | B168: MN | C168: IEC60072 | D168: DIN 748 | E168: REINFORCED | F168: 250 | G168: 16 | H168: j6 | I168: 300 | J168: 185 | K168: 520 | L168: 48 | M168: 18 | N168: k6 | O168: 110 | P168: - | Q168: - | R168: - | S168: - | U168: D M16 DIN 332
G169: -13 | K169: 0 | M169: 2 | R169: -
A170: AKM8-MC | B170: MC | C170: IEC60072 | D170: DIN 748 | E170: REINFORCED | F170: 250 | G170: 16 | H170: j6 | I170: 300 | J170: 185 | K170: 520 | L170: 48 | M170: 18 | N170: k6 | O170: 110 | P170: CLOSED | Q170: 14 | R170: 0 | S170: 90 | U170: D M16 DIN 332
G171: -13 | K171: 0 | M171: 2 | R171: -43
A172: AKM8-TN | B172: TN | C172: IEC60072 | D172: DIN 748 | E172: REINFORCED | F172: 230 | G172: 16 | H172: j6 | I172: 265 | J172: 145 | K172: 430 | L172: 48 | M172: 18 | N172: k6 | O172: 110 | P172: - | Q172: - | R172: - | S172: - | U172: D M16 DIN 332
G173: -13 | K173: 0 | M173: 2 | R173: -
A174: AKM8-TC | B174: TC | C174: IEC60072 | D174: DIN 748 | E174: REINFORCED | F174: 230 | G174: 16 | H174: j6 | I174: 265 | J174: 145 | K174: 430 | L174: 48 | M174: 18 | N174: k6 | O174: 110 | P174: CLOSED | Q174: 14 | R174: 0 | S174: 90 | U174: D M16 DIN 332
G175: -13 | K175: 0 | M175: 2 | R175: -43

Sheet Kompatibilitätsbericht (hidden)
B1: Kompatibilitätsbericht für überarbeitete Kopie von MotorCurves_V1.64.xls
B2: Ausführen auf 06.10.2017 16:26
B4: Wenn die Arbeitsmappe in einem früheren Dateiformat gespeichert oder in einer früheren Version von Microsoft Excel geöffnet wird, sind die aufgeführten Features nicht verfügbar.
B6: Erheblicher Funktionalitätsverlust | E6: Anzahl | F6: Version
B8: Von früheren Excel-Versionen werden nur Linienfarben aus der Farbpalette unterstützt. Wenn die Arbeitsmappe in einer früheren Excel-Version geöffnet wird, werden alle Linienfarben der ähnlichsten Farbe in der Farbpalette zugeordnet. In einem Diagramm werden mehrere Datenreihen dann möglicherweise in derselben Farbe angezeigt. | E8: 3
E9: Diagram'!A1:AD37 | F9: Excel 97-2003
B12: Geringer Genauigkeitsverlust
B14: Einige Formeln in der Arbeitsmappe enthalten Verknüpfungen mit anderen Arbeitsmappen, die geschlossen sind. Wenn diese Formeln in früheren Versionen von Excel neu berechnet werden, ohne dass die verknüpften Arbeitsmappen geöffnet sind, können wegen Beschränkung auf 255 Zeichen maximal 255 Zeichen zurückgegeben werden. | E14: 33 Festgelegte Namen | F14: Excel 97-2003
B16: Einige Zellen oder Formatvorlagen in dieser Arbeitsmappe enthalten eine Formatierung, die vom ausgewählten Dateiformat nicht unterstützt wird. Diese Formate werden in das ähnlichste verfügbare Format konvertiert. | E16: 35 | F16: Excel 97-2003
